Body Name,Body,Supplier,Transaction Number,Payment Date,Amount,Directorate,Organisational Unit,Cost Centre/Detail Code,Cost Centre Description,Detail Code Description
Ashfield District Council,37UB,Mansfield & Ashfield 2020 Ltd,V0976318,17/09/2021,625.00,Chief Executive 2,Supplies & Services,A40000/D400002,Chief Executive,Refreshments and Hospitality
Ashfield District Council,37UB,Daisy Corporate Services Trading Ltd,V0977310,23/09/2021,629.36,R & B Transformation 2,Supplies & Services,A40000/D001001,Chief Executive,Equipment Purchase
Ashfield District Council,37UB,Mazars LLP,V0977417,23/09/2021,10787.00,R & B Transformation 2,Supplies & Services,A01003/D201008,Democratic Core,Audit Fees
Ashfield District Council,37UB,Candor Care Ltd,V0974399,02/09/2021,2476.00,Housing & Assets 2,Supplies & Services,G00002001/D200008,Capital Corporate,Payments to Contractors External
Ashfield District Council,37UB,Crest Wilson Ltd,V0977318,23/09/2021,11249.48,Housing & Assets 2,Supplies & Services,G00002001/D200008,Capital Corporate,Payments to Contractors External
Ashfield District Council,37UB,Dolphin Mobility Ltd,V0975815,09/09/2021,4852.00,Housing & Assets 2,Supplies & Services,G00002001/D200008,Capital Corporate,Payments to Contractors External
Ashfield District Council,37UB,Lindum Group Limited,V0976313,17/09/2021,73805.84,Housing & Assets 2,Supplies & Services,C00256/D200008,Capital Corporate,Payments to Contractors External
Ashfield District Council,37UB,Lindum Group Limited,V0976425,17/09/2021,128943.71,Housing & Assets 2,Supplies & Services,C00256/D200008,Capital Corporate,Payments to Contractors External
Ashfield District Council,37UB,Neil Shacklock Contractors Ltd,V0975816,09/09/2021,2190.00,Housing & Assets 2,Supplies & Services,G00002002/D200008,Capital Corporate,Payments to Contractors External
Ashfield District Council,37UB,Neil Shacklock Contractors Ltd,V0977299,23/09/2021,3100.00,Housing & Assets 2,Supplies & Services,G00002002/D200008,Capital Corporate,Payments to Contractors External
Ashfield District Council,37UB,Neil Shacklock Contractors Ltd,V0977395,23/09/2021,2310.00,Housing & Assets 2,Supplies & Services,G00002002/D200008,Capital Corporate,Payments to Contractors External
Ashfield District Council,37UB,Neil Shacklock Contractors Ltd,V0977785,30/09/2021,3250.00,Housing & Assets 2,Supplies & Services,G00002002/D200008,Capital Corporate,Payments to Contractors External
Ashfield District Council,37UB,Obam Lift Services Ltd,V0977415,23/09/2021,3612.00,Housing & Assets 2,Supplies & Services,G00002001/D200008,Capital Corporate,Payments to Contractors External
Ashfield District Council,37UB,Rider Levett Bucknall UK Ltd,V0974750,09/09/2021,2200.00,Housing & Assets 2,Supplies & Services,C00256/D200008,Capital Corporate,Payments to Contractors External
Ashfield District Council,37UB,T Grant & Son Ltd,V0975631,09/09/2021,4561.00,Housing & Assets 2,Supplies & Services,G00002002/D200008,Capital Corporate,Payments to Contractors External
Ashfield District Council,37UB,T Grant & Son Ltd,V0977321,23/09/2021,2540.00,Housing & Assets 2,Supplies & Services,G00002001/D200008,Capital Corporate,Payments to Contractors External
Ashfield District Council,37UB,Ven Construction,V0974769,02/09/2021,7312.00,Housing & Assets 2,Supplies & Services,G00002001/D200008,Capital Corporate,Payments to Contractors External
Ashfield District Council,37UB,Ven Construction,V0976403,17/09/2021,7979.00,Housing & Assets 2,Supplies & Services,G00002001/D200008,Capital Corporate,Payments to Contractors External
Ashfield District Council,37UB,Gleeds Advisory Ltd,V0975806,09/09/2021,750.00,Place & Communities 2,Supplies & Services,C00255/D200008,Capital Corporate,Payments to Contractors External
Ashfield District Council,37UB,Gleeds Advisory Ltd,V0975849,17/09/2021,1100.00,Place & Communities 2,Supplies & Services,C00255/D200008,Capital Corporate,Payments to Contractors External
Ashfield District Council,37UB,Kinver Business Solutions Ltd,V0975798,23/09/2021,2218.75,Place & Communities 2,Supplies & Services,c00265/D200008,Capital Corporate,Payments to Contractors External
Ashfield District Council,37UB,Kinver Business Solutions Ltd,V0975798,23/09/2021,2218.75,Place & Communities 2,Supplies & Services,c00264/D200008,Capital Corporate,Payments to Contractors External
Ashfield District Council,37UB,Kinver Business Solutions Ltd,V0975798,23/09/2021,2218.75,Place & Communities 2,Supplies & Services,C00263/D200008,Capital Corporate,Payments to Contractors External
Ashfield District Council,37UB,Land Restoration Services Ltd,V0977697,30/09/2021,1096.18,Place & Communities 2,Supplies & Services,C00258001/D200008,Capital Corporate,Payments to Contractors External
Ashfield District Council,37UB,Quality Construction and Scaffolding,V0977265,23/09/2021,1642.00,Place & Communities 2,Supplies & Services,C00255/D200008,Capital Corporate,Payments to Contractors External
Ashfield District Council,37UB,Quality Construction and Scaffolding,V0977265,23/09/2021,100.00,Place & Communities 2,Supplies & Services,C00255/D200008,Capital Corporate,Payments to Contractors External
Ashfield District Council,37UB,Sports & Leisure Management Ltd,V0975781,09/09/2021,29867.05,Place & Communities 2,Supplies & Services,C00261/D200008,Capital Corporate,Payments to Contractors External
Ashfield District Council,37UB,Sports & Leisure Management Ltd,V0975782,09/09/2021,28600.00,Place & Communities 2,Supplies & Services,C00261/D200008,Capital Corporate,Payments to Contractors External
Ashfield District Council,37UB,Sports & Leisure Management Ltd,V0975783,09/09/2021,54575.00,Place & Communities 2,Supplies & Services,C00261/D200008,Capital Corporate,Payments to Contractors External
Ashfield District Council,37UB,Sports & Leisure Management Ltd,V0977409,23/09/2021,203706.13,Place & Communities 2,Supplies & Services,C00261/D200008,Capital Corporate,Payments to Contractors External
Ashfield District Council,37UB,Sports & Leisure Management Ltd,V0977410,23/09/2021,209980.82,Place & Communities 2,Supplies & Services,C00260/D200008,Capital Corporate,Payments to Contractors External
Ashfield District Council,37UB,Sports & Leisure Management Ltd,V0977411,23/09/2021,205178.00,Place & Communities 2,Supplies & Services,C00261/D200008,Capital Corporate,Payments to Contractors External
Ashfield District Council,37UB,Sports & Leisure Management Ltd,V0974774,30/09/2021,250712.50,Place & Communities 2,Supplies & Services,C00261/D200008,Capital Corporate,Payments to Contractors External
Ashfield District Council,37UB,Sports & Leisure Management Ltd,V0974777,30/09/2021,9940.00,Place & Communities 2,Supplies & Services,C00261/D200008,Capital Corporate,Payments to Contractors External
Ashfield District Council,37UB,Stage Right Theatre Consultant,V0977779,30/09/2021,2942.00,Place & Communities 2,Supplies & Services,C00263/D200008,Capital Corporate,Payments to Contractors External
Ashfield District Council,37UB,W M Mitchell Engineering,V0977281,23/09/2021,1768.00,Place & Communities 2,Supplies & Services,C00258004/D200008,Capital Corporate,Payments to Contractors External
Ashfield District Council,37UB,York Archeological Trust,V0974786,02/09/2021,1230.00,Place & Communities 2,Supplies & Services,C00266/D200008,Capital Corporate,Payments to Contractors External
Ashfield District Council,37UB,Crest Wilson Ltd,V0977214,23/09/2021,14621.21,R & B Transformation 2,Supplies & Services,G00002001/D200008,Capital Corporate,Payments to Contractors External
Ashfield District Council,37UB,Dell Products,V0977732,30/09/2021,4530.06,R & B Transformation 2,Supplies & Services,C00244/D200008,Capital Corporate,Payments to Contractors External
Ashfield District Council,37UB,Dell Products,V0977732,30/09/2021,200.00,R & B Transformation 2,Supplies & Services,C00244/D200008,Capital Corporate,Payments to Contractors External
Ashfield District Council,37UB,Faithful & Gould Ltd,V0977645,23/09/2021,8484.74,R & B Transformation 2,Supplies & Services,C00262/D200008,Capital Corporate,Payments to Contractors External
Ashfield District Council,37UB,Sustainable Building Services (Uk) Ltd,V0975669,09/09/2021,12500.00,R & B Transformation 2,Supplies & Services,C00268/D200008,Capital Corporate,Payments to Contractors External
Ashfield District Council,37UB,Sustainable Building Services (Uk) Ltd,V0975669,09/09/2021,17126.06,R & B Transformation 2,Supplies & Services,C00267/D200008,Capital Corporate,Payments to Contractors External
Ashfield District Council,37UB,Industrial Contracting Services Ltd,V0975791,09/09/2021,6886.08,Place & Communities 2,Supplies & Services,C00243/D200008,Area Consultative Group Scheme,Payments to Contractors External
Ashfield District Council,37UB,Land Restoration Services Ltd,V0977698,30/09/2021,949.46,Place & Communities 2,Supplies & Services,D00231/D200008,Area Consultative Group Scheme,Payments to Contractors External
Ashfield District Council,37UB,Parkin Contractors Limited,V0977685,30/09/2021,1697.43,Place & Communities 2,Supplies & Services,D00250/D200008,Area Consultative Group Scheme,Payments to Contractors External
Ashfield District Council,37UB,Sutcliffe Play,V0977178,17/09/2021,3300.00,Place & Communities 2,Supplies & Services,C00095/D200008,Area Consultative Group Scheme,Payments to Contractors External
Ashfield District Council,37UB,Magenta Trends Limited,V0975711,09/09/2021,778.97,R & B Transformation 2,Supplies & Services,C00199/D200008,Area Consultative Group Scheme,Payments to Contractors External
Ashfield District Council,37UB,Greenacre Recruitment Limited,V0975634,09/09/2021,1800.00,Chief Executive 2,Supplies & Services,C00235/D200008,Capital Economy,Payments to Contractors External
Ashfield District Council,37UB,Greenacre Recruitment Limited,V0975756,09/09/2021,1950.00,Chief Executive 2,Supplies & Services,C00235/D200008,Capital Economy,Payments to Contractors External
Ashfield District Council,37UB,Greenacre Recruitment Limited,V0977219,17/09/2021,1500.00,Chief Executive 2,Supplies & Services,C00235/D200008,Capital Economy,Payments to Contractors External
Ashfield District Council,37UB,Greenacre Recruitment Limited,V0977804,30/09/2021,2400.00,Chief Executive 2,Supplies & Services,C00235/D200008,Capital Economy,Payments to Contractors External
Ashfield District Council,37UB,Greenacre Recruitment Limited,V0977819,30/09/2021,1950.00,Chief Executive 2,Supplies & Services,C00235/D200008,Capital Economy,Payments to Contractors External
Ashfield District Council,37UB,Kier Construction - North and Scotland,V0974787,02/09/2021,599808.13,Place & Communities 2,Supplies & Services,C00235/D200008,Capital Economy,Payments to Contractors External
Ashfield District Council,37UB,NMCN PLC,V0977692,30/09/2021,47500.00,Place & Communities 2,Supplies & Services,C00235/D200008,Capital Economy,Payments to Contractors External
Ashfield District Council,37UB,R B Surveyor Services Ltd,V0977652,30/09/2021,1650.00,Place & Communities 2,Supplies & Services,C00235/D200008,Capital Economy,Payments to Contractors External
Ashfield District Council,37UB,Community First Partnership Ltd,V0977693,30/09/2021,1450.00,Place & Communities 2,Supplies & Services,C00125001/D200008,Capital Environment,Payments to Contractors External
Ashfield District Council,37UB,Dementia Adventure,V0978047,30/09/2021,528.00,Place & Communities 2,Supplies & Services,C00125001/D200008,Capital Environment,Payments to Contractors External
Ashfield District Council,37UB,G K Group T/A Perrys,V0977733,30/09/2021,36052.55,Place & Communities 2,Supplies & Services,G00010002/D001001,Capital Environment,Equipment Purchase
Ashfield District Council,37UB,Guest Motors Ltd t/a Guest Truck and Van,V0978058,30/09/2021,43448.00,Place & Communities 2,Supplies & Services,G00010001/D001001,Capital Environment,Equipment Purchase
Ashfield District Council,37UB,Guest Motors Ltd t/a Guest Truck and Van,V0978060,30/09/2021,43448.00,Place & Communities 2,Supplies & Services,G00010001/D001001,Capital Environment,Equipment Purchase
Ashfield District Council,37UB,Orb Design and Print Limited,V0977653,30/09/2021,272.00,Place & Communities 2,Supplies & Services,c00125001/D200008,Capital Environment,Payments to Contractors External
Ashfield District Council,37UB,Well Read,V0974782,02/09/2021,780.00,Place & Communities 2,Supplies & Services,C00125001/D200008,Capital Environment,Payments to Contractors External
Ashfield District Council,37UB,Well Read,V0974783,02/09/2021,300.00,Place & Communities 2,Supplies & Services,C00125001/D200008,Capital Environment,Payments to Contractors External
Ashfield District Council,37UB,Lindum Group Limited,V0975632,09/09/2021,210220.83,Housing & Assets 2,Supplies & Services,G00932/D200008,Capital Housing Revenue,Payments to Contractors External
Ashfield District Council,37UB,Rider Levett Bucknall UK Ltd,V0974749,09/09/2021,2500.00,Housing & Assets 2,Supplies & Services,G00932/D200008,Capital Housing Revenue,Payments to Contractors External
Ashfield District Council,37UB,Rider Levett Bucknall UK Ltd,V0974751,09/09/2021,1000.00,Housing & Assets 2,Supplies & Services,G00931/D200008,Capital Housing Revenue,Payments to Contractors External
Ashfield District Council,37UB,Rider Levett Bucknall UK Ltd,V0977700,30/09/2021,1500.00,Housing & Assets 2,Supplies & Services,G00931/D200008,Capital Housing Revenue,Payments to Contractors External
Ashfield District Council,37UB,Wilko Retail Limited,V0976376,17/09/2021,185.00,Housing & Assets 2,Supplies & Services,G00450003/D200033,Capital Housing Revenue,Decoration Vouchers
Ashfield District Council,37UB,Wilko Retail Limited,V0976391,17/09/2021,92.50,Housing & Assets 2,Supplies & Services,G00450003/D200033,Capital Housing Revenue,Decoration Vouchers
Ashfield District Council,37UB,Wilko Retail Limited,V0977618,23/09/2021,199.79,Housing & Assets 2,Supplies & Services,G00450003/D200033,Capital Housing Revenue,Decoration Vouchers
Ashfield District Council,37UB,Wilko Retail Limited,V0977619,23/09/2021,58.33,Housing & Assets 2,Supplies & Services,G00450003/D200033,Capital Housing Revenue,Decoration Vouchers
Ashfield District Council,37UB,Wilko Retail Limited,V0977620,23/09/2021,122.50,Housing & Assets 2,Supplies & Services,G00450003/D200033,Capital Housing Revenue,Decoration Vouchers
Ashfield District Council,37UB,KC Designs,V0977221,20/09/2021,880.00,R & B Transformation 2,Supplies & Services,C00019/D200008,Capital Housing Revenue,Payments to Contractors External
Ashfield District Council,37UB,Sustainable Building Services (Uk) Ltd,V0975669,09/09/2021,49230.97,R & B Transformation 2,Supplies & Services,G00480001/D200008,Capital Housing Revenue,Payments to Contractors External
Ashfield District Council,37UB,Excel Cleaning Solutions Ltd,V0977396,23/09/2021,54.00,Housing & Assets 2,Premises Expenses,G51008/B003005,Housing OP and SN,Window Cleaning
Ashfield District Council,37UB,Excel Cleaning Solutions Ltd,V0977782,30/09/2021,54.00,Housing & Assets 2,Premises Expenses,G51008/B003005,Housing OP and SN,Window Cleaning
Ashfield District Council,37UB,Excel Cleaning Solutions Ltd,V0977783,30/09/2021,24.00,Housing & Assets 2,Premises Expenses,G51023/B003004,Housing OP and SN,Cleaning
Ashfield District Council,37UB,Nottinghamshire Fire Safety Limited,V0975678,09/09/2021,23.52,Housing & Assets 2,Premises Expenses,G51020/B003011,Housing OP and SN,Fire Alarms
Ashfield District Council,37UB,Nottinghamshire Fire Safety Limited,V0975678,09/09/2021,180.20,Housing & Assets 2,Premises Expenses,G51030/B003011,Housing OP and SN,Fire Alarms
Ashfield District Council,37UB,Nottinghamshire Fire Safety Limited,V0975678,09/09/2021,23.52,Housing & Assets 2,Premises Expenses,G51015/B003011,Housing OP and SN,Fire Alarms
Ashfield District Council,37UB,Nottinghamshire Fire Safety Limited,V0975678,09/09/2021,172.60,Housing & Assets 2,Premises Expenses,G51022/B003011,Housing OP and SN,Fire Alarms
Ashfield District Council,37UB,Nottinghamshire Fire Safety Limited,V0975678,09/09/2021,23.52,Housing & Assets 2,Premises Expenses,G51001/B003011,Housing OP and SN,Fire Alarms
Ashfield District Council,37UB,Nottinghamshire Fire Safety Limited,V0975678,09/09/2021,387.32,Housing & Assets 2,Premises Expenses,G51013/B003011,Housing OP and SN,Fire Alarms
Ashfield District Council,37UB,Nottinghamshire Fire Safety Limited,V0975678,09/09/2021,207.12,Housing & Assets 2,Premises Expenses,G51021/B003011,Housing OP and SN,Fire Alarms
Ashfield District Council,37UB,Nottinghamshire Fire Safety Limited,V0975678,09/09/2021,103.56,Housing & Assets 2,Premises Expenses,G51026/B003011,Housing OP and SN,Fire Alarms
Ashfield District Council,37UB,Nottinghamshire Fire Safety Limited,V0975679,09/09/2021,28.60,Housing & Assets 2,Premises Expenses,G51020/B003011,Housing OP and SN,Fire Alarms
Ashfield District Council,37UB,Nottinghamshire Fire Safety Limited,V0975679,09/09/2021,56.76,Housing & Assets 2,Premises Expenses,G51022/B003011,Housing OP and SN,Fire Alarms
Ashfield District Council,37UB,Nottinghamshire Fire Safety Limited,V0975679,09/09/2021,21.56,Housing & Assets 2,Premises Expenses,G51008/B003011,Housing OP and SN,Fire Alarms
Ashfield District Council,37UB,Nottinghamshire Fire Safety Limited,V0975679,09/09/2021,42.68,Housing & Assets 2,Premises Expenses,G51027/B003011,Housing OP and SN,Fire Alarms
Ashfield District Council,37UB,Nottinghamshire Fire Safety Limited,V0975679,09/09/2021,113.08,Housing & Assets 2,Premises Expenses,G51015/B003011,Housing OP and SN,Fire Alarms
Ashfield District Council,37UB,Nottinghamshire Fire Safety Limited,V0975679,09/09/2021,88.44,Housing & Assets 2,Premises Expenses,G51026/B003011,Housing OP and SN,Fire Alarms
Ashfield District Council,37UB,Nottinghamshire Fire Safety Limited,V0975679,09/09/2021,46.20,Housing & Assets 2,Premises Expenses,G51028/B003011,Housing OP and SN,Fire Alarms
Ashfield District Council,37UB,Nottinghamshire Fire Safety Limited,V0975679,09/09/2021,284.20,Housing & Assets 2,Premises Expenses,G51013/B003011,Housing OP and SN,Fire Alarms
Ashfield District Council,37UB,Nottinghamshire Fire Safety Limited,V0975679,09/09/2021,25.08,Housing & Assets 2,Premises Expenses,G51023/B003011,Housing OP and SN,Fire Alarms
Ashfield District Council,37UB,Nottinghamshire Fire Safety Limited,V0975679,09/09/2021,70.84,Housing & Assets 2,Premises Expenses,G51021/B003011,Housing OP and SN,Fire Alarms
Ashfield District Council,37UB,Nottinghamshire Fire Safety Limited,V0975679,09/09/2021,21.56,Housing & Assets 2,Premises Expenses,G51009/B003011,Housing OP and SN,Fire Alarms
Ashfield District Council,37UB,Nottinghamshire Fire Safety Limited,V0975679,09/09/2021,84.92,Housing & Assets 2,Premises Expenses,G51030/B003011,Housing OP and SN,Fire Alarms
Ashfield District Council,37UB,Nottinghamshire Fire Safety Limited,V0975679,09/09/2021,20.56,Housing & Assets 2,Premises Expenses,G51001/B003011,Housing OP and SN,Fire Alarms
Ashfield District Council,37UB,Nottinghamshire Fire Safety Limited,V0975679,09/09/2021,107.12,Housing & Assets 2,Premises Expenses,G51007/B003011,Housing OP and SN,Fire Alarms
Ashfield District Council,37UB,Stannah Lift Services Ltd,V0977416,23/09/2021,499.84,Housing & Assets 2,Premises Expenses,G51030/B003006,Housing OP and SN,Lift
Ashfield District Council,37UB,Castle Water Ltd,V0976350,23/09/2021,-30.00,R & B Transformation 2,Premises Expenses,G51022/B401,Housing OP and SN,Water rates
Ashfield District Council,37UB,Castle Water Ltd,V0976351,23/09/2021,-30.00,R & B Transformation 2,Premises Expenses,G51022/B401,Housing OP and SN,Water rates
Ashfield District Council,37UB,Castle Water Ltd,V0976352,23/09/2021,-30.00,R & B Transformation 2,Premises Expenses,G51022/B401,Housing OP and SN,Water rates
Ashfield District Council,37UB,Castle Water Ltd,V0976459,23/09/2021,4.64,R & B Transformation 2,Premises Expenses,G51015/B401,Housing OP and SN,Water rates
Ashfield District Council,37UB,Castle Water Ltd,V0976459,23/09/2021,38.90,R & B Transformation 2,Premises Expenses,G51023/B401,Housing OP and SN,Water rates
Ashfield District Council,37UB,Castle Water Ltd,V0976459,23/09/2021,76.77,R & B Transformation 2,Premises Expenses,G51027/B401,Housing OP and SN,Water rates
Ashfield District Council,37UB,Castle Water Ltd,V0976459,23/09/2021,20.36,R & B Transformation 2,Premises Expenses,G51015/B401,Housing OP and SN,Water rates
Ashfield District Council,37UB,Castle Water Ltd,V0976459,23/09/2021,1.17,R & B Transformation 2,Premises Expenses,G51015/B401,Housing OP and SN,Water rates
Ashfield District Council,37UB,Castle Water Ltd,V0976459,23/09/2021,6.26,R & B Transformation 2,Premises Expenses,G51028/B401,Housing OP and SN,Water rates
Ashfield District Council,37UB,Castle Water Ltd,V0976459,23/09/2021,8.76,R & B Transformation 2,Premises Expenses,G51015/B401,Housing OP and SN,Water rates
Ashfield District Council,37UB,Castle Water Ltd,V0976459,23/09/2021,1.17,R & B Transformation 2,Premises Expenses,G51015/B401,Housing OP and SN,Water rates
Ashfield District Council,37UB,Castle Water Ltd,V0976459,23/09/2021,113.84,R & B Transformation 2,Premises Expenses,G51009/B401,Housing OP and SN,Water rates
Ashfield District Council,37UB,Castle Water Ltd,V0976459,23/09/2021,7.39,R & B Transformation 2,Premises Expenses,G51022/B401,Housing OP and SN,Water rates
Ashfield District Council,37UB,Castle Water Ltd,V0976459,23/09/2021,1.17,R & B Transformation 2,Premises Expenses,G51015/B401,Housing OP and SN,Water rates
Ashfield District Council,37UB,Castle Water Ltd,V0976459,23/09/2021,1.65,R & B Transformation 2,Premises Expenses,G51015/B401,Housing OP and SN,Water rates
Ashfield District Council,37UB,Castle Water Ltd,V0976459,23/09/2021,12.46,R & B Transformation 2,Premises Expenses,G51022/B401,Housing OP and SN,Water rates
Ashfield District Council,37UB,Castle Water Ltd,V0976459,23/09/2021,10.27,R & B Transformation 2,Premises Expenses,G51021/B401,Housing OP and SN,Water rates
Ashfield District Council,37UB,Castle Water Ltd,V0976459,23/09/2021,28.50,R & B Transformation 2,Premises Expenses,G51026/B401,Housing OP and SN,Water rates
Ashfield District Council,37UB,Castle Water Ltd,V0976459,23/09/2021,1.17,R & B Transformation 2,Premises Expenses,G51015/B401,Housing OP and SN,Water rates
Ashfield District Council,37UB,Castle Water Ltd,V0976459,23/09/2021,23.74,R & B Transformation 2,Premises Expenses,G51020/B401,Housing OP and SN,Water rates
Ashfield District Council,37UB,Castle Water Ltd,V0976459,23/09/2021,29.39,R & B Transformation 2,Premises Expenses,G51022/B401,Housing OP and SN,Water rates
Ashfield District Council,37UB,Castle Water Ltd,V0976459,23/09/2021,1.17,R & B Transformation 2,Premises Expenses,G51015/B401,Housing OP and SN,Water rates
Ashfield District Council,37UB,Castle Water Ltd,V0976459,23/09/2021,79.65,R & B Transformation 2,Premises Expenses,G51008/B401,Housing OP and SN,Water rates
Ashfield District Council,37UB,Castle Water Ltd,V0976459,23/09/2021,24.71,R & B Transformation 2,Premises Expenses,G51028/B401,Housing OP and SN,Water rates
Ashfield District Council,37UB,Castle Water Ltd,V0976459,23/09/2021,1.48,R & B Transformation 2,Premises Expenses,G51015/B401,Housing OP and SN,Water rates
Ashfield District Council,37UB,Castle Water Ltd,V0976459,23/09/2021,41.27,R & B Transformation 2,Premises Expenses,G51015/B401,Housing OP and SN,Water rates
Ashfield District Council,37UB,Daisy Telecoms Ltd,V0975638,17/09/2021,13.77,R & B Transformation 2,Supplies & Services,G51023/D301006,Housing OP and SN,Alarm Lines
Ashfield District Council,37UB,Daisy Telecoms Ltd,V0975638,17/09/2021,44.26,R & B Transformation 2,Supplies & Services,G51030/D301006,Housing OP and SN,Alarm Lines
Ashfield District Council,37UB,Daisy Telecoms Ltd,V0975638,17/09/2021,13.52,R & B Transformation 2,Premises Expenses,G51023/B003011,Housing OP and SN,Fire Alarms
Ashfield District Council,37UB,Daisy Telecoms Ltd,V0975638,17/09/2021,38.27,R & B Transformation 2,Supplies & Services,G51027/D301002,Housing OP and SN,Telephones
Ashfield District Council,37UB,Daisy Telecoms Ltd,V0975638,17/09/2021,73.34,R & B Transformation 2,Supplies & Services,G51022/D301006,Housing OP and SN,Alarm Lines
Ashfield District Council,37UB,Daisy Telecoms Ltd,V0975638,17/09/2021,65.83,R & B Transformation 2,Supplies & Services,G51026/D301006,Housing OP and SN,Alarm Lines
Ashfield District Council,37UB,Daisy Telecoms Ltd,V0975638,17/09/2021,148.72,R & B Transformation 2,Supplies & Services,G51001/D301002,Housing OP and SN,Telephones
Ashfield District Council,37UB,Daisy Telecoms Ltd,V0975638,17/09/2021,13.52,R & B Transformation 2,Premises Expenses,G51009/B003011,Housing OP and SN,Fire Alarms
Ashfield District Council,37UB,Daisy Telecoms Ltd,V0975638,17/09/2021,13.52,R & B Transformation 2,Premises Expenses,G51030/B004006,Housing OP and SN,General; Building Repairs & Courts
Ashfield District Council,37UB,Daisy Telecoms Ltd,V0975638,17/09/2021,24.03,R & B Transformation 2,Supplies & Services,G51015/D301002,Housing OP and SN,Telephones
Ashfield District Council,37UB,Daisy Telecoms Ltd,V0975638,17/09/2021,43.31,R & B Transformation 2,Supplies & Services,G51021/D301006,Housing OP and SN,Alarm Lines
Ashfield District Council,37UB,Daisy Telecoms Ltd,V0975638,17/09/2021,15.17,R & B Transformation 2,Premises Expenses,G51028/B003011,Housing OP and SN,Fire Alarms
Ashfield District Council,37UB,Daisy Telecoms Ltd,V0975638,17/09/2021,225.87,R & B Transformation 2,Premises Expenses,G51001/B003010,Housing OP and SN,C C T V Cameras
Ashfield District Council,37UB,Daisy Telecoms Ltd,V0975638,17/09/2021,36.89,R & B Transformation 2,Supplies & Services,G51027/D301006,Housing OP and SN,Alarm Lines
Ashfield District Council,37UB,Daisy Telecoms Ltd,V0975638,17/09/2021,24.03,R & B Transformation 2,Supplies & Services,G51028/D301002,Housing OP and SN,Telephones
Ashfield District Council,37UB,Daisy Telecoms Ltd,V0975638,17/09/2021,13.52,R & B Transformation 2,Premises Expenses,G51008/B003011,Housing OP and SN,Fire Alarms
Ashfield District Council,37UB,Daisy Telecoms Ltd,V0975638,17/09/2021,27.24,R & B Transformation 2,Supplies & Services,G51028/D301006,Housing OP and SN,Alarm Lines
Ashfield District Council,37UB,Daisy Telecoms Ltd,V0975638,17/09/2021,83.84,R & B Transformation 2,Supplies & Services,G51015/D301006,Housing OP and SN,Alarm Lines
Ashfield District Council,37UB,Daisy Telecoms Ltd,V0975638,17/09/2021,13.52,R & B Transformation 2,Supplies & Services,G51022/D301002,Housing OP and SN,Telephones
Ashfield District Council,37UB,Daisy Telecoms Ltd,V0975638,17/09/2021,24.03,R & B Transformation 2,Supplies & Services,G51030/D301002,Housing OP and SN,Telephones
Ashfield District Council,37UB,Daisy Telecoms Ltd,V0977220,17/09/2021,6.87,R & B Transformation 2,Supplies & Services,G51028/D301002,Housing OP and SN,Telephones
Ashfield District Council,37UB,Daisy Telecoms Ltd,V0977220,17/09/2021,5.72,R & B Transformation 2,Supplies & Services,G51027/D301002,Housing OP and SN,Telephones
Ashfield District Council,37UB,Daisy Telecoms Ltd,V0977220,17/09/2021,13.74,R & B Transformation 2,Supplies & Services,G51015/D301002,Housing OP and SN,Telephones
Ashfield District Council,37UB,Daisy Telecoms Ltd,V0977220,17/09/2021,6.87,R & B Transformation 2,Supplies & Services,G51030/D301002,Housing OP and SN,Telephones
Ashfield District Council,37UB,EDF Energy 1 Ltd,V0976322,17/09/2021,494.28,R & B Transformation 2,Premises Expenses,G51026/B102,Housing OP and SN,Electricity
Ashfield District Council,37UB,EDF Energy 1 Ltd,V0977274,23/09/2021,24.83,R & B Transformation 2,Premises Expenses,G51043/B102,Housing OP and SN,Electricity
Ashfield District Council,37UB,EDF Energy 1 Ltd,V0977274,23/09/2021,21.40,R & B Transformation 2,Premises Expenses,G51050/B102,Housing OP and SN,Electricity
Ashfield District Council,37UB,EDF Energy 1 Ltd,V0977274,23/09/2021,26.84,R & B Transformation 2,Premises Expenses,G51059/B102,Housing OP and SN,Electricity
Ashfield District Council,37UB,EDF Energy 1 Ltd,V0977274,23/09/2021,167.87,R & B Transformation 2,Premises Expenses,G51013/B102,Housing OP and SN,Electricity
Ashfield District Council,37UB,EDF Energy 1 Ltd,V0977274,23/09/2021,46.01,R & B Transformation 2,Premises Expenses,G51017/B102,Housing OP and SN,Electricity
Ashfield District Council,37UB,EDF Energy 1 Ltd,V0977274,23/09/2021,34.20,R & B Transformation 2,Premises Expenses,G51029/B102,Housing OP and SN,Electricity
Ashfield District Council,37UB,EDF Energy 1 Ltd,V0977274,23/09/2021,55.56,R & B Transformation 2,Premises Expenses,G51032/B102,Housing OP and SN,Electricity
Ashfield District Council,37UB,EDF Energy 1 Ltd,V0977274,23/09/2021,160.92,R & B Transformation 2,Premises Expenses,G51020/B102,Housing OP and SN,Electricity
Ashfield District Council,37UB,EDF Energy 1 Ltd,V0977274,23/09/2021,49.90,R & B Transformation 2,Premises Expenses,G51032/B102,Housing OP and SN,Electricity
Ashfield District Council,37UB,EDF Energy 1 Ltd,V0977274,23/09/2021,73.04,R & B Transformation 2,Premises Expenses,G51033/B102,Housing OP and SN,Electricity
Ashfield District Council,37UB,EDF Energy 1 Ltd,V0977274,23/09/2021,23.82,R & B Transformation 2,Premises Expenses,G51046/B102,Housing OP and SN,Electricity
Ashfield District Council,37UB,EDF Energy 1 Ltd,V0977274,23/09/2021,41.78,R & B Transformation 2,Premises Expenses,G51057/B102,Housing OP and SN,Electricity
Ashfield District Council,37UB,EDF Energy 1 Ltd,V0977274,23/09/2021,54.31,R & B Transformation 2,Premises Expenses,G51009/B102,Housing OP and SN,Electricity
Ashfield District Council,37UB,EDF Energy 1 Ltd,V0977274,23/09/2021,27.59,R & B Transformation 2,Premises Expenses,G51029/B102,Housing OP and SN,Electricity
Ashfield District Council,37UB,EDF Energy 1 Ltd,V0977274,23/09/2021,23.36,R & B Transformation 2,Premises Expenses,G51029/B102,Housing OP and SN,Electricity
Ashfield District Council,37UB,EDF Energy 1 Ltd,V0977274,23/09/2021,63.54,R & B Transformation 2,Premises Expenses,G51047/B102,Housing OP and SN,Electricity
Ashfield District Council,37UB,EDF Energy 1 Ltd,V0977274,23/09/2021,34.75,R & B Transformation 2,Premises Expenses,G51049/B102,Housing OP and SN,Electricity
Ashfield District Council,37UB,EDF Energy 1 Ltd,V0977274,23/09/2021,30.38,R & B Transformation 2,Premises Expenses,G51055/B102,Housing OP and SN,Electricity
Ashfield District Council,37UB,EDF Energy 1 Ltd,V0977274,23/09/2021,35.06,R & B Transformation 2,Premises Expenses,G51054/B102,Housing OP and SN,Electricity
Ashfield District Council,37UB,EDF Energy 1 Ltd,V0977274,23/09/2021,45.59,R & B Transformation 2,Premises Expenses,G51056/B102,Housing OP and SN,Electricity
Ashfield District Council,37UB,EDF Energy 1 Ltd,V0977274,23/09/2021,131.96,R & B Transformation 2,Premises Expenses,G51008/B102,Housing OP and SN,Electricity
Ashfield District Council,37UB,EDF Energy 1 Ltd,V0977274,23/09/2021,27.01,R & B Transformation 2,Premises Expenses,G51012/B102,Housing OP and SN,Electricity
Ashfield District Council,37UB,EDF Energy 1 Ltd,V0977274,23/09/2021,72.55,R & B Transformation 2,Premises Expenses,G51024/B102,Housing OP and SN,Electricity
Ashfield District Council,37UB,EDF Energy 1 Ltd,V0977274,23/09/2021,29.56,R & B Transformation 2,Premises Expenses,G51042/B102,Housing OP and SN,Electricity
Ashfield District Council,37UB,EDF Energy 1 Ltd,V0977274,23/09/2021,29.11,R & B Transformation 2,Premises Expenses,G51043/B102,Housing OP and SN,Electricity
Ashfield District Council,37UB,EDF Energy 1 Ltd,V0977274,23/09/2021,29.25,R & B Transformation 2,Premises Expenses,G51046/B102,Housing OP and SN,Electricity
Ashfield District Council,37UB,EDF Energy 1 Ltd,V0977274,23/09/2021,29.40,R & B Transformation 2,Premises Expenses,G51046/B102,Housing OP and SN,Electricity
Ashfield District Council,37UB,EDF Energy 1 Ltd,V0977274,23/09/2021,19.59,R & B Transformation 2,Premises Expenses,G51033/B102,Housing OP and SN,Electricity
Ashfield District Council,37UB,EDF Energy 1 Ltd,V0977274,23/09/2021,29.41,R & B Transformation 2,Premises Expenses,G51042/B102,Housing OP and SN,Electricity
Ashfield District Council,37UB,EDF Energy 1 Ltd,V0977274,23/09/2021,36.17,R & B Transformation 2,Premises Expenses,G51061/B102,Housing OP and SN,Electricity
Ashfield District Council,37UB,EDF Energy 1 Ltd,V0977274,23/09/2021,55.74,R & B Transformation 2,Premises Expenses,G51032/B102,Housing OP and SN,Electricity
Ashfield District Council,37UB,EDF Energy 1 Ltd,V0977274,23/09/2021,58.99,R & B Transformation 2,Premises Expenses,G51032/B102,Housing OP and SN,Electricity
Ashfield District Council,37UB,EDF Energy 1 Ltd,V0977274,23/09/2021,27.82,R & B Transformation 2,Premises Expenses,G51048/B102,Housing OP and SN,Electricity
Ashfield District Council,37UB,EDF Energy 1 Ltd,V0977274,23/09/2021,55.17,R & B Transformation 2,Premises Expenses,G51058/B102,Housing OP and SN,Electricity
Ashfield District Council,37UB,EDF Energy 1 Ltd,V0977274,23/09/2021,25.93,R & B Transformation 2,Premises Expenses,G51061/B102,Housing OP and SN,Electricity
Ashfield District Council,37UB,EDF Energy 1 Ltd,V0977274,23/09/2021,27.39,R & B Transformation 2,Premises Expenses,G51022/B102,Housing OP and SN,Electricity
Ashfield District Council,37UB,EDF Energy 1 Ltd,V0977274,23/09/2021,60.93,R & B Transformation 2,Premises Expenses,G51032/B102,Housing OP and SN,Electricity
Ashfield District Council,37UB,EDF Energy 1 Ltd,V0977274,23/09/2021,21.55,R & B Transformation 2,Premises Expenses,G51055/B102,Housing OP and SN,Electricity
Ashfield District Council,37UB,EDF Energy 1 Ltd,V0977274,23/09/2021,34.20,R & B Transformation 2,Premises Expenses,G51058/B102,Housing OP and SN,Electricity
Ashfield District Council,37UB,EDF Energy 1 Ltd,V0977274,23/09/2021,20.04,R & B Transformation 2,Premises Expenses,G51050/B102,Housing OP and SN,Electricity
Ashfield District Council,37UB,EDF Energy 1 Ltd,V0977274,23/09/2021,31.21,R & B Transformation 2,Premises Expenses,G51017/B102,Housing OP and SN,Electricity
Ashfield District Council,37UB,EDF Energy 1 Ltd,V0977274,23/09/2021,27.09,R & B Transformation 2,Premises Expenses,G51022/B102,Housing OP and SN,Electricity
Ashfield District Council,37UB,EDF Energy 1 Ltd,V0977274,23/09/2021,92.68,R & B Transformation 2,Premises Expenses,G51023/B102,Housing OP and SN,Electricity
Ashfield District Council,37UB,EDF Energy 1 Ltd,V0977274,23/09/2021,38.70,R & B Transformation 2,Premises Expenses,G51048/B102,Housing OP and SN,Electricity
Ashfield District Council,37UB,EDF Energy 1 Ltd,V0977274,23/09/2021,26.07,R & B Transformation 2,Premises Expenses,G51054/B102,Housing OP and SN,Electricity
Ashfield District Council,37UB,EDF Energy 1 Ltd,V0977274,23/09/2021,32.75,R & B Transformation 2,Premises Expenses,G51060/B102,Housing OP and SN,Electricity
Ashfield District Council,37UB,EDF Energy 1 Ltd,V0977274,23/09/2021,210.14,R & B Transformation 2,Premises Expenses,G51007/B102,Housing OP and SN,Electricity
Ashfield District Council,37UB,EDF Energy 1 Ltd,V0977274,23/09/2021,63.21,R & B Transformation 2,Premises Expenses,G51012/B102,Housing OP and SN,Electricity
Ashfield District Council,37UB,EDF Energy 1 Ltd,V0977274,23/09/2021,35.45,R & B Transformation 2,Premises Expenses,G51021/B102,Housing OP and SN,Electricity
Ashfield District Council,37UB,EDF Energy 1 Ltd,V0977274,23/09/2021,36.94,R & B Transformation 2,Premises Expenses,G51054/B102,Housing OP and SN,Electricity
Ashfield District Council,37UB,EDF Energy 1 Ltd,V0977274,23/09/2021,25.89,R & B Transformation 2,Premises Expenses,G51039/B102,Housing OP and SN,Electricity
Ashfield District Council,37UB,EDF Energy 1 Ltd,V0977274,23/09/2021,23.72,R & B Transformation 2,Premises Expenses,G51043/B102,Housing OP and SN,Electricity
Ashfield District Council,37UB,EDF Energy 1 Ltd,V0977274,23/09/2021,262.50,R & B Transformation 2,Premises Expenses,G51022/B102,Housing OP and SN,Electricity
Ashfield District Council,37UB,EDF Energy 1 Ltd,V0977274,23/09/2021,57.83,R & B Transformation 2,Premises Expenses,G51009/B102,Housing OP and SN,Electricity
Ashfield District Council,37UB,EDF Energy 1 Ltd,V0977274,23/09/2021,29.61,R & B Transformation 2,Premises Expenses,G51012/B102,Housing OP and SN,Electricity
Ashfield District Council,37UB,EDF Energy 1 Ltd,V0977274,23/09/2021,235.54,R & B Transformation 2,Premises Expenses,G51013/B102,Housing OP and SN,Electricity
Ashfield District Council,37UB,EDF Energy 1 Ltd,V0977274,23/09/2021,60.54,R & B Transformation 2,Premises Expenses,G51032/B102,Housing OP and SN,Electricity
Ashfield District Council,37UB,EDF Energy 1 Ltd,V0977274,23/09/2021,26.80,R & B Transformation 2,Premises Expenses,G51036/B102,Housing OP and SN,Electricity
Ashfield District Council,37UB,EDF Energy 1 Ltd,V0977274,23/09/2021,27.24,R & B Transformation 2,Premises Expenses,G51039/B102,Housing OP and SN,Electricity
Ashfield District Council,37UB,EDF Energy 1 Ltd,V0977274,23/09/2021,27.29,R & B Transformation 2,Premises Expenses,G51045/B102,Housing OP and SN,Electricity
Ashfield District Council,37UB,EDF Energy 1 Ltd,V0977274,23/09/2021,34.58,R & B Transformation 2,Premises Expenses,G51063/B102,Housing OP and SN,Electricity
Ashfield District Council,37UB,EDF Energy 1 Ltd,V0977274,23/09/2021,34.09,R & B Transformation 2,Premises Expenses,G51043/B102,Housing OP and SN,Electricity
Ashfield District Council,37UB,EDF Energy 1 Ltd,V0977274,23/09/2021,26.66,R & B Transformation 2,Premises Expenses,G51049/B102,Housing OP and SN,Electricity
Ashfield District Council,37UB,EDF Energy 1 Ltd,V0977274,23/09/2021,304.23,R & B Transformation 2,Premises Expenses,G51019/B102,Housing OP and SN,Electricity
Ashfield District Council,37UB,EDF Energy 1 Ltd,V0977274,23/09/2021,36.48,R & B Transformation 2,Premises Expenses,G51022/B102,Housing OP and SN,Electricity
Ashfield District Council,37UB,EDF Energy 1 Ltd,V0977274,23/09/2021,22.59,R & B Transformation 2,Premises Expenses,G51033/B102,Housing OP and SN,Electricity
Ashfield District Council,37UB,EDF Energy 1 Ltd,V0977274,23/09/2021,30.43,R & B Transformation 2,Premises Expenses,G51042/B102,Housing OP and SN,Electricity
Ashfield District Council,37UB,EDF Energy 1 Ltd,V0977274,23/09/2021,69.72,R & B Transformation 2,Premises Expenses,G51034/B102,Housing OP and SN,Electricity
Ashfield District Council,37UB,EDF Energy 1 Ltd,V0977274,23/09/2021,26.80,R & B Transformation 2,Premises Expenses,G51036/B102,Housing OP and SN,Electricity
Ashfield District Council,37UB,EDF Energy 1 Ltd,V0977274,23/09/2021,26.23,R & B Transformation 2,Premises Expenses,G51044/B102,Housing OP and SN,Electricity
Ashfield District Council,37UB,EDF Energy 1 Ltd,V0977274,23/09/2021,31.59,R & B Transformation 2,Premises Expenses,G51013/B102,Housing OP and SN,Electricity
Ashfield District Council,37UB,EDF Energy 1 Ltd,V0977274,23/09/2021,79.29,R & B Transformation 2,Premises Expenses,G51022/B102,Housing OP and SN,Electricity
Ashfield District Council,37UB,EDF Energy 1 Ltd,V0977274,23/09/2021,298.64,R & B Transformation 2,Premises Expenses,G51028/B102,Housing OP and SN,Electricity
Ashfield District Council,37UB,EDF Energy 1 Ltd,V0977274,23/09/2021,89.26,R & B Transformation 2,Premises Expenses,G51032/B102,Housing OP and SN,Electricity
Ashfield District Council,37UB,EDF Energy 1 Ltd,V0977274,23/09/2021,28.40,R & B Transformation 2,Premises Expenses,G51049/B102,Housing OP and SN,Electricity
Ashfield District Council,37UB,EDF Energy 1 Ltd,V0977274,23/09/2021,729.12,R & B Transformation 2,Premises Expenses,G51015/B102,Housing OP and SN,Electricity
Ashfield District Council,37UB,EDF Energy 1 Ltd,V0977274,23/09/2021,28.51,R & B Transformation 2,Premises Expenses,G51062/B102,Housing OP and SN,Electricity
Ashfield District Council,37UB,EDF Energy 1 Ltd,V0977274,23/09/2021,52.97,R & B Transformation 2,Premises Expenses,G51032/B102,Housing OP and SN,Electricity
Ashfield District Council,37UB,EDF Energy 1 Ltd,V0977274,23/09/2021,43.51,R & B Transformation 2,Premises Expenses,G51038/B102,Housing OP and SN,Electricity
Ashfield District Council,37UB,EDF Energy 1 Ltd,V0977274,23/09/2021,525.46,R & B Transformation 2,Premises Expenses,G51032/B102,Housing OP and SN,Electricity
Ashfield District Council,37UB,EDF Energy 1 Ltd,V0977274,23/09/2021,43.06,R & B Transformation 2,Premises Expenses,G51037/B102,Housing OP and SN,Electricity
Ashfield District Council,37UB,EDF Energy 1 Ltd,V0977274,23/09/2021,34.06,R & B Transformation 2,Premises Expenses,G51042/B102,Housing OP and SN,Electricity
Ashfield District Council,37UB,EDF Energy 1 Ltd,V0977274,23/09/2021,24.72,R & B Transformation 2,Premises Expenses,G51044/B102,Housing OP and SN,Electricity
Ashfield District Council,37UB,EDF Energy 1 Ltd,V0977274,23/09/2021,31.99,R & B Transformation 2,Premises Expenses,G51060/B102,Housing OP and SN,Electricity
Ashfield District Council,37UB,EDF Energy 1 Ltd,V0977274,23/09/2021,26.91,R & B Transformation 2,Premises Expenses,G51061/B102,Housing OP and SN,Electricity
Ashfield District Council,37UB,EDF Energy 1 Ltd,V0977274,23/09/2021,95.85,R & B Transformation 2,Premises Expenses,G51009/B102,Housing OP and SN,Electricity
Ashfield District Council,37UB,EDF Energy 1 Ltd,V0977274,23/09/2021,-29.61,R & B Transformation 2,Premises Expenses,G51012/B102,Housing OP and SN,Electricity
Ashfield District Council,37UB,EDF Energy 1 Ltd,V0977274,23/09/2021,108.98,R & B Transformation 2,Premises Expenses,G51015/B102,Housing OP and SN,Electricity
Ashfield District Council,37UB,EDF Energy 1 Ltd,V0977274,23/09/2021,40.15,R & B Transformation 2,Premises Expenses,G51035/B102,Housing OP and SN,Electricity
Ashfield District Council,37UB,EDF Energy 1 Ltd,V0977274,23/09/2021,27.09,R & B Transformation 2,Premises Expenses,G51039/B102,Housing OP and SN,Electricity
Ashfield District Council,37UB,EDF Energy 1 Ltd,V0977274,23/09/2021,26.95,R & B Transformation 2,Premises Expenses,G51041/B102,Housing OP and SN,Electricity
Ashfield District Council,37UB,EDF Energy 1 Ltd,V0977274,23/09/2021,53.45,R & B Transformation 2,Premises Expenses,G51032/B102,Housing OP and SN,Electricity
Ashfield District Council,37UB,EDF Energy 1 Ltd,V0977274,23/09/2021,35.94,R & B Transformation 2,Premises Expenses,G51009/B102,Housing OP and SN,Electricity
Ashfield District Council,37UB,EDF Energy 1 Ltd,V0977274,23/09/2021,55.68,R & B Transformation 2,Premises Expenses,G51017/B102,Housing OP and SN,Electricity
Ashfield District Council,37UB,EDF Energy 1 Ltd,V0977274,23/09/2021,25.20,R & B Transformation 2,Premises Expenses,G51061/B102,Housing OP and SN,Electricity
Ashfield District Council,37UB,EDF Energy 1 Ltd,V0977274,23/09/2021,51.84,R & B Transformation 2,Premises Expenses,G51021/B102,Housing OP and SN,Electricity
Ashfield District Council,37UB,EDF Energy 1 Ltd,V0977274,23/09/2021,87.48,R & B Transformation 2,Premises Expenses,G51023/B102,Housing OP and SN,Electricity
Ashfield District Council,37UB,EDF Energy 1 Ltd,V0977274,23/09/2021,27.24,R & B Transformation 2,Premises Expenses,G51053/B102,Housing OP and SN,Electricity
Ashfield District Council,37UB,EDF Energy 1 Ltd,V0977274,23/09/2021,22.88,R & B Transformation 2,Premises Expenses,G51012/B102,Housing OP and SN,Electricity
Ashfield District Council,37UB,EDF Energy 1 Ltd,V0977274,23/09/2021,42.45,R & B Transformation 2,Premises Expenses,G51052/B102,Housing OP and SN,Electricity
Ashfield District Council,37UB,EDF Energy 1 Ltd,V0977274,23/09/2021,29.27,R & B Transformation 2,Premises Expenses,G51060/B102,Housing OP and SN,Electricity
Ashfield District Council,37UB,EDF Energy 1 Ltd,V0977274,23/09/2021,42.19,R & B Transformation 2,Premises Expenses,G51017/B102,Housing OP and SN,Electricity
Ashfield District Council,37UB,EDF Energy 1 Ltd,V0977274,23/09/2021,27.29,R & B Transformation 2,Premises Expenses,G51046/B102,Housing OP and SN,Electricity
Ashfield District Council,37UB,EDF Energy 1 Ltd,V0977274,23/09/2021,30.39,R & B Transformation 2,Premises Expenses,G51041/B102,Housing OP and SN,Electricity
Ashfield District Council,37UB,EDF Energy 1 Ltd,V0977274,23/09/2021,44.28,R & B Transformation 2,Premises Expenses,G51040/B102,Housing OP and SN,Electricity
Ashfield District Council,37UB,EDF Energy 1 Ltd,V0977274,23/09/2021,41.74,R & B Transformation 2,Premises Expenses,G51051/B102,Housing OP and SN,Electricity
Ashfield District Council,37UB,EDF Energy 1 Ltd,V0977274,23/09/2021,26.80,R & B Transformation 2,Premises Expenses,G51052/B102,Housing OP and SN,Electricity
Ashfield District Council,37UB,Total Gas & Power,V0976421,23/09/2021,461.73,R & B Transformation 2,Premises Expenses,G51028/B101,Housing OP and SN,Gas
Ashfield District Council,37UB,Total Gas & Power,V0976421,23/09/2021,197.31,R & B Transformation 2,Premises Expenses,G51007/B101,Housing OP and SN,Gas
Ashfield District Council,37UB,Total Gas & Power,V0976421,23/09/2021,54.72,R & B Transformation 2,Premises Expenses,G51007/B101,Housing OP and SN,Gas
Ashfield District Council,37UB,Total Gas & Power,V0976421,23/09/2021,493.38,R & B Transformation 2,Premises Expenses,G51013/B101,Housing OP and SN,Gas
Ashfield District Council,37UB,Total Gas & Power,V0976421,23/09/2021,490.02,R & B Transformation 2,Premises Expenses,G51027/B101,Housing OP and SN,Gas
Ashfield District Council,37UB,Total Gas & Power,V0976421,23/09/2021,53.89,R & B Transformation 2,Premises Expenses,G51009/B101,Housing OP and SN,Gas
Ashfield District Council,37UB,Total Gas & Power,V0976421,23/09/2021,752.13,R & B Transformation 2,Premises Expenses,G51022/B101,Housing OP and SN,Gas
Ashfield District Council,37UB,Total Gas & Power,V0976421,23/09/2021,278.07,R & B Transformation 2,Premises Expenses,G51030/B101,Housing OP and SN,Gas
Ashfield District Council,37UB,Total Gas & Power,V0976421,23/09/2021,60.14,R & B Transformation 2,Premises Expenses,G51008/B101,Housing OP and SN,Gas
Ashfield District Council,37UB,Total Gas & Power,V0976421,23/09/2021,775.84,R & B Transformation 2,Premises Expenses,G51019/B101,Housing OP and SN,Gas
Ashfield District Council,37UB,Total Gas & Power,V0976421,23/09/2021,381.06,R & B Transformation 2,Premises Expenses,G51023/B101,Housing OP and SN,Gas
Ashfield District Council,37UB,Total Gas & Power,V0976421,23/09/2021,426.35,R & B Transformation 2,Premises Expenses,G51019/B101,Housing OP and SN,Gas
Ashfield District Council,37UB,Total Gas & Power,V0976421,23/09/2021,378.62,R & B Transformation 2,Premises Expenses,G51019/B101,Housing OP and SN,Gas
Ashfield District Council,37UB,Total Gas & Power,V0976421,23/09/2021,79.38,R & B Transformation 2,Premises Expenses,G51015/B101,Housing OP and SN,Gas
Ashfield District Council,37UB,Excel Cleaning Solutions Ltd,V0977354,23/09/2021,8.00,Housing & Assets 2,Premises Expenses,G23011015/B003004,Housing Revenue Account,Cleaning
Ashfield District Council,37UB,Excel Cleaning Solutions Ltd,V0977354,23/09/2021,7.50,Housing & Assets 2,Premises Expenses,G23011020/B003004,Housing Revenue Account,Cleaning
Ashfield District Council,37UB,Excel Cleaning Solutions Ltd,V0977354,23/09/2021,8.00,Housing & Assets 2,Premises Expenses,G23011007/B003004,Housing Revenue Account,Cleaning
Ashfield District Council,37UB,Excel Cleaning Solutions Ltd,V0977354,23/09/2021,7.50,Housing & Assets 2,Premises Expenses,G23011012/B003004,Housing Revenue Account,Cleaning
Ashfield District Council,37UB,Excel Cleaning Solutions Ltd,V0977354,23/09/2021,8.00,Housing & Assets 2,Premises Expenses,G23011019/B003004,Housing Revenue Account,Cleaning
Ashfield District Council,37UB,Excel Cleaning Solutions Ltd,V0977354,23/09/2021,7.50,Housing & Assets 2,Premises Expenses,G23011004/B003004,Housing Revenue Account,Cleaning
Ashfield District Council,37UB,Excel Cleaning Solutions Ltd,V0977354,23/09/2021,7.50,Housing & Assets 2,Premises Expenses,G23011005/B003004,Housing Revenue Account,Cleaning
Ashfield District Council,37UB,Excel Cleaning Solutions Ltd,V0977354,23/09/2021,7.50,Housing & Assets 2,Premises Expenses,G23011001/B003004,Housing Revenue Account,Cleaning
Ashfield District Council,37UB,Excel Cleaning Solutions Ltd,V0977354,23/09/2021,7.50,Housing & Assets 2,Premises Expenses,G23011002/B003004,Housing Revenue Account,Cleaning
Ashfield District Council,37UB,Excel Cleaning Solutions Ltd,V0977354,23/09/2021,7.50,Housing & Assets 2,Premises Expenses,G23011014/B003004,Housing Revenue Account,Cleaning
Ashfield District Council,37UB,Excel Cleaning Solutions Ltd,V0977354,23/09/2021,7.50,Housing & Assets 2,Premises Expenses,G23011003/B003004,Housing Revenue Account,Cleaning
Ashfield District Council,37UB,Excel Cleaning Solutions Ltd,V0977354,23/09/2021,8.00,Housing & Assets 2,Premises Expenses,G23011018/B003004,Housing Revenue Account,Cleaning
Ashfield District Council,37UB,Excel Cleaning Solutions Ltd,V0977354,23/09/2021,7.50,Housing & Assets 2,Premises Expenses,G23011013/B003004,Housing Revenue Account,Cleaning
Ashfield District Council,37UB,Excel Cleaning Solutions Ltd,V0977355,23/09/2021,70.00,Housing & Assets 2,Premises Expenses,G23000/B003005,Housing Revenue Account,Window Cleaning
Ashfield District Council,37UB,Excel Cleaning Solutions Ltd,V0977355,23/09/2021,36.00,Housing & Assets 2,Premises Expenses,G23000/B003005,Housing Revenue Account,Window Cleaning
Ashfield District Council,37UB,Excel Cleaning Solutions Ltd,V0977355,23/09/2021,90.00,Housing & Assets 2,Premises Expenses,G23000/B003005,Housing Revenue Account,Window Cleaning
Ashfield District Council,37UB,Excel Cleaning Solutions Ltd,V0977355,23/09/2021,90.00,Housing & Assets 2,Premises Expenses,G23000/B003005,Housing Revenue Account,Window Cleaning
Ashfield District Council,37UB,Excel Cleaning Solutions Ltd,V0977355,23/09/2021,30.00,Housing & Assets 2,Premises Expenses,G23000/B003005,Housing Revenue Account,Window Cleaning
Ashfield District Council,37UB,Excel Cleaning Solutions Ltd,V0977396,23/09/2021,80.00,Housing & Assets 2,Premises Expenses,G23000/B003005,Housing Revenue Account,Window Cleaning
Ashfield District Council,37UB,Excel Cleaning Solutions Ltd,V0977396,23/09/2021,30.00,Housing & Assets 2,Premises Expenses,G23000/B003005,Housing Revenue Account,Window Cleaning
Ashfield District Council,37UB,Excel Cleaning Solutions Ltd,V0977396,23/09/2021,15.00,Housing & Assets 2,Premises Expenses,G23000/B003005,Housing Revenue Account,Window Cleaning
Ashfield District Council,37UB,Excel Cleaning Solutions Ltd,V0977396,23/09/2021,95.00,Housing & Assets 2,Premises Expenses,G23000/B003005,Housing Revenue Account,Window Cleaning
Ashfield District Council,37UB,Excel Cleaning Solutions Ltd,V0977396,23/09/2021,45.00,Housing & Assets 2,Premises Expenses,G23000/B003005,Housing Revenue Account,Window Cleaning
Ashfield District Council,37UB,Excel Cleaning Solutions Ltd,V0977396,23/09/2021,54.00,Housing & Assets 2,Premises Expenses,G23000/B003005,Housing Revenue Account,Window Cleaning
Ashfield District Council,37UB,Excel Cleaning Solutions Ltd,V0977396,23/09/2021,10.00,Housing & Assets 2,Premises Expenses,G23100006/B003005,Housing Revenue Account,Window Cleaning
Ashfield District Council,37UB,Excel Cleaning Solutions Ltd,V0977396,23/09/2021,16.00,Housing & Assets 2,Premises Expenses,G23000/B003005,Housing Revenue Account,Window Cleaning
Ashfield District Council,37UB,Excel Cleaning Solutions Ltd,V0977396,23/09/2021,20.00,Housing & Assets 2,Premises Expenses,G23100002/B003005,Housing Revenue Account,Window Cleaning
Ashfield District Council,37UB,Excel Cleaning Solutions Ltd,V0977396,23/09/2021,60.00,Housing & Assets 2,Premises Expenses,G23000/B003005,Housing Revenue Account,Window Cleaning
Ashfield District Council,37UB,Excel Cleaning Solutions Ltd,V0977396,23/09/2021,25.00,Housing & Assets 2,Premises Expenses,G23000/B003005,Housing Revenue Account,Window Cleaning
Ashfield District Council,37UB,Excel Cleaning Solutions Ltd,V0977396,23/09/2021,15.00,Housing & Assets 2,Premises Expenses,G23100004/B003005,Housing Revenue Account,Window Cleaning
Ashfield District Council,37UB,Excel Cleaning Solutions Ltd,V0977396,23/09/2021,20.00,Housing & Assets 2,Premises Expenses,G23000/B003005,Housing Revenue Account,Window Cleaning
Ashfield District Council,37UB,Excel Cleaning Solutions Ltd,V0977396,23/09/2021,18.00,Housing & Assets 2,Premises Expenses,G23000/B003005,Housing Revenue Account,Window Cleaning
Ashfield District Council,37UB,Excel Cleaning Solutions Ltd,V0977396,23/09/2021,40.00,Housing & Assets 2,Premises Expenses,G23000/B003005,Housing Revenue Account,Window Cleaning
Ashfield District Council,37UB,Excel Cleaning Solutions Ltd,V0977396,23/09/2021,20.00,Housing & Assets 2,Premises Expenses,G23000/B003005,Housing Revenue Account,Window Cleaning
Ashfield District Council,37UB,Excel Cleaning Solutions Ltd,V0977782,30/09/2021,20.00,Housing & Assets 2,Premises Expenses,G23000/B003005,Housing Revenue Account,Window Cleaning
Ashfield District Council,37UB,Excel Cleaning Solutions Ltd,V0977782,30/09/2021,45.00,Housing & Assets 2,Premises Expenses,G23000/B003005,Housing Revenue Account,Window Cleaning
Ashfield District Council,37UB,Excel Cleaning Solutions Ltd,V0977782,30/09/2021,80.00,Housing & Assets 2,Premises Expenses,G23000/B003005,Housing Revenue Account,Window Cleaning
Ashfield District Council,37UB,Excel Cleaning Solutions Ltd,V0977782,30/09/2021,54.00,Housing & Assets 2,Premises Expenses,G23000/B003005,Housing Revenue Account,Window Cleaning
Ashfield District Council,37UB,Excel Cleaning Solutions Ltd,V0977782,30/09/2021,25.00,Housing & Assets 2,Premises Expenses,G23000/B003005,Housing Revenue Account,Window Cleaning
Ashfield District Council,37UB,Excel Cleaning Solutions Ltd,V0977782,30/09/2021,60.00,Housing & Assets 2,Premises Expenses,G23000/B003005,Housing Revenue Account,Window Cleaning
Ashfield District Council,37UB,Excel Cleaning Solutions Ltd,V0977782,30/09/2021,40.00,Housing & Assets 2,Premises Expenses,G23000/B003005,Housing Revenue Account,Window Cleaning
Ashfield District Council,37UB,Excel Cleaning Solutions Ltd,V0977782,30/09/2021,30.00,Housing & Assets 2,Premises Expenses,G23000/B003005,Housing Revenue Account,Window Cleaning
Ashfield District Council,37UB,Excel Cleaning Solutions Ltd,V0977782,30/09/2021,20.00,Housing & Assets 2,Premises Expenses,G23000/B003005,Housing Revenue Account,Window Cleaning
Ashfield District Council,37UB,Excel Cleaning Solutions Ltd,V0977782,30/09/2021,15.00,Housing & Assets 2,Premises Expenses,G23000/B003005,Housing Revenue Account,Window Cleaning
Ashfield District Council,37UB,Excel Cleaning Solutions Ltd,V0977782,30/09/2021,18.00,Housing & Assets 2,Premises Expenses,G23000/B003005,Housing Revenue Account,Window Cleaning
Ashfield District Council,37UB,Excel Cleaning Solutions Ltd,V0977782,30/09/2021,20.00,Housing & Assets 2,Premises Expenses,G23100002/B003005,Housing Revenue Account,Window Cleaning
Ashfield District Council,37UB,Excel Cleaning Solutions Ltd,V0977782,30/09/2021,15.00,Housing & Assets 2,Premises Expenses,G23100004/B003005,Housing Revenue Account,Window Cleaning
Ashfield District Council,37UB,Excel Cleaning Solutions Ltd,V0977782,30/09/2021,95.00,Housing & Assets 2,Premises Expenses,G23000/B003005,Housing Revenue Account,Window Cleaning
Ashfield District Council,37UB,Excel Cleaning Solutions Ltd,V0977782,30/09/2021,10.00,Housing & Assets 2,Premises Expenses,G23100006/B003005,Housing Revenue Account,Window Cleaning
Ashfield District Council,37UB,Excel Cleaning Solutions Ltd,V0977782,30/09/2021,16.00,Housing & Assets 2,Premises Expenses,G23000/B003005,Housing Revenue Account,Window Cleaning
Ashfield District Council,37UB,Excel Cleaning Solutions Ltd,V0977783,30/09/2021,18.00,Housing & Assets 2,Premises Expenses,G23100007/B003005,Housing Revenue Account,Window Cleaning
Ashfield District Council,37UB,Excel Cleaning Solutions Ltd,V0977783,30/09/2021,22.00,Housing & Assets 2,Premises Expenses,G23000/B003005,Housing Revenue Account,Window Cleaning
Ashfield District Council,37UB,Excel Cleaning Solutions Ltd,V0977783,30/09/2021,46.00,Housing & Assets 2,Premises Expenses,G23000/B003005,Housing Revenue Account,Window Cleaning
Ashfield District Council,37UB,Hoot Fire & Security Ltd,V0977293,23/09/2021,73.50,Housing & Assets 2,Premises Expenses,G23100002/B002002,Housing Revenue Account,"Fire,Intruder,CCTV ,Access Control"
Ashfield District Council,37UB,PHS Group Plc,V0977311,23/09/2021,-3641.55,Housing & Assets 2,Supplies & Services,N23000/D002002,Housing Revenue Account,Ladies Disposal Machine Maintenance
Ashfield District Council,37UB,PHS Group Plc,V0977316,23/09/2021,6591.81,Housing & Assets 2,Supplies & Services,N23000/D002002,Housing Revenue Account,Ladies Disposal Machine Maintenance
Ashfield District Council,37UB,PHS Group Plc,V0977325,23/09/2021,114.90,Housing & Assets 2,Supplies & Services,G23100007/D002002,Housing Revenue Account,Ladies Disposal Machine Maintenance
Ashfield District Council,37UB,PHS Group Plc,V0977331,23/09/2021,82.50,Housing & Assets 2,Supplies & Services,G23000/D200008,Housing Revenue Account,Payments to Contractors External
Ashfield District Council,37UB,PHS Group Plc,V0977333,23/09/2021,82.50,Housing & Assets 2,Supplies & Services,G23100006/D002002,Housing Revenue Account,Ladies Disposal Machine Maintenance
Ashfield District Council,37UB,PHS Group Plc,V0977336,23/09/2021,98.70,Housing & Assets 2,Supplies & Services,G23100004/D002002,Housing Revenue Account,Ladies Disposal Machine Maintenance
Ashfield District Council,37UB,PPL PRS Ltd,V0977304,23/09/2021,2805.37,Housing & Assets 2,Supplies & Services,G23100/D200014,Housing Revenue Account,Licences
Ashfield District Council,37UB,PPL PRS Ltd,V0977317,23/09/2021,-1712.64,Housing & Assets 2,Supplies & Services,G23100/D200014,Housing Revenue Account,Licences
Ashfield District Council,37UB,Taft Plumbing and Heating LLP,V0974827,02/09/2021,32.00,Housing & Assets 2,Premises Expenses,G23100004/B001001,Housing Revenue Account,General Repairs Asset Maintenance
Ashfield District Council,37UB,Taft Plumbing and Heating LLP,V0974828,02/09/2021,92.00,Housing & Assets 2,Premises Expenses,G23100007/B001001,Housing Revenue Account,General Repairs Asset Maintenance
Ashfield District Council,37UB,Taft Plumbing and Heating LLP,V0974829,02/09/2021,56.00,Housing & Assets 2,Premises Expenses,G23100002/B001001,Housing Revenue Account,General Repairs Asset Maintenance
Ashfield District Council,37UB,Taft Plumbing and Heating LLP,V0974830,02/09/2021,48.00,Housing & Assets 2,Premises Expenses,G23100006/B001001,Housing Revenue Account,General Repairs Asset Maintenance
Ashfield District Council,37UB,Taft Plumbing and Heating LLP,V0977659,30/09/2021,50.00,Housing & Assets 2,Premises Expenses,G23100006/B002001,Housing Revenue Account,Mechanical Ventilation Asset Maintenance
Ashfield District Council,37UB,Taft Plumbing and Heating LLP,V0977660,30/09/2021,854.00,Housing & Assets 2,Premises Expenses,G23100002/B002001,Housing Revenue Account,Mechanical Ventilation Asset Maintenance
Ashfield District Council,37UB,British Gas Trading Limited,V0975799,17/09/2021,26.76,R & B Transformation 2,Premises Expenses,G23011029/B102,Housing Revenue Account,Electricity
Ashfield District Council,37UB,British Gas Trading Limited,V0976457,17/09/2021,173.18,R & B Transformation 2,Premises Expenses,G23011004/B101,Housing Revenue Account,Gas
Ashfield District Council,37UB,British Gas Trading Limited,V0976457,17/09/2021,51.77,R & B Transformation 2,Premises Expenses,G23011004/B102,Housing Revenue Account,Electricity
Ashfield District Council,37UB,British Gas Trading Limited,V0976458,17/09/2021,120.45,R & B Transformation 2,Premises Expenses,G23011038/B101,Housing Revenue Account,Gas
Ashfield District Council,37UB,British Gas Trading Limited,V0976458,17/09/2021,281.69,R & B Transformation 2,Premises Expenses,G23011038/B102,Housing Revenue Account,Electricity
Ashfield District Council,37UB,Castle Water Ltd,V0976459,23/09/2021,-34.80,R & B Transformation 2,Premises Expenses,G23100004/B401,Housing Revenue Account,Water rates
Ashfield District Council,37UB,Castle Water Ltd,V0976459,23/09/2021,134.38,R & B Transformation 2,Premises Expenses,N23000/B401,Housing Revenue Account,Water rates
Ashfield District Council,37UB,Castle Water Ltd,V0976459,23/09/2021,-13.07,R & B Transformation 2,Premises Expenses,G23100007/B401,Housing Revenue Account,Water rates
Ashfield District Council,37UB,Castle Water Ltd,V0976459,23/09/2021,16.97,R & B Transformation 2,Premises Expenses,G23100006/B401,Housing Revenue Account,Water rates
Ashfield District Council,37UB,Castle Water Ltd,V0976459,23/09/2021,-15.79,R & B Transformation 2,Premises Expenses,G23100006/B401,Housing Revenue Account,Water rates
Ashfield District Council,37UB,Castle Water Ltd,V0976459,23/09/2021,45.16,R & B Transformation 2,Premises Expenses,G23100007/B401,Housing Revenue Account,Water rates
Ashfield District Council,37UB,Castle Water Ltd,V0976459,23/09/2021,7.39,R & B Transformation 2,Premises Expenses,G23100003/B401,Housing Revenue Account,Water rates
Ashfield District Council,37UB,Castle Water Ltd,V0976459,23/09/2021,11.65,R & B Transformation 2,Premises Expenses,G23100004/B401,Housing Revenue Account,Water rates
Ashfield District Council,37UB,Castle Water Ltd,V0976459,23/09/2021,16.97,R & B Transformation 2,Premises Expenses,G23100006/B401,Housing Revenue Account,Water rates
Ashfield District Council,37UB,Castle Water Ltd,V0976459,23/09/2021,8.94,R & B Transformation 2,Premises Expenses,G23100004/B401,Housing Revenue Account,Water rates
Ashfield District Council,37UB,Castle Water Ltd,V0976459,23/09/2021,10.43,R & B Transformation 2,Premises Expenses,G23100002/B401,Housing Revenue Account,Water rates
Ashfield District Council,37UB,Castle Water Ltd,V0976459,23/09/2021,36.81,R & B Transformation 2,Premises Expenses,G23100007/B401,Housing Revenue Account,Water rates
Ashfield District Council,37UB,Daisy Telecoms Ltd,V0975638,17/09/2021,13.52,R & B Transformation 2,Premises Expenses,G23100004/B003026,Housing Revenue Account,Radio Controlled /Radio Equipment
Ashfield District Council,37UB,Daisy Telecoms Ltd,V0975638,17/09/2021,14.51,R & B Transformation 2,Premises Expenses,G23100007/B003026,Housing Revenue Account,Radio Controlled /Radio Equipment
Ashfield District Council,37UB,Daisy Telecoms Ltd,V0975638,17/09/2021,13.52,R & B Transformation 2,Premises Expenses,G23100006/B003026,Housing Revenue Account,Radio Controlled /Radio Equipment
Ashfield District Council,37UB,Daisy Telecoms Ltd,V0975638,17/09/2021,13.52,R & B Transformation 2,Premises Expenses,G23100001/B003026,Housing Revenue Account,Radio Controlled /Radio Equipment
Ashfield District Council,37UB,Daisy Telecoms Ltd,V0975638,17/09/2021,58.09,R & B Transformation 2,Supplies & Services,N23000/D301006,Housing Revenue Account,Alarm Lines
Ashfield District Council,37UB,Daisy Telecoms Ltd,V0975638,17/09/2021,13.52,R & B Transformation 2,Premises Expenses,G23100005/B003026,Housing Revenue Account,Radio Controlled /Radio Equipment
Ashfield District Council,37UB,Daisy Telecoms Ltd,V0975644,17/09/2021,36.32,R & B Transformation 2,Supplies & Services,G23100002/d301002,Housing Revenue Account,Telephones
Ashfield District Council,37UB,Daisy Telecoms Ltd,V0975644,17/09/2021,48.52,R & B Transformation 2,Supplies & Services,N23000/d301002,Housing Revenue Account,Telephones
Ashfield District Council,37UB,Daisy Telecoms Ltd,V0975644,17/09/2021,104.10,R & B Transformation 2,Supplies & Services,G23100007/d301002,Housing Revenue Account,Telephones
Ashfield District Council,37UB,EDF Energy 1 Ltd,V0976322,17/09/2021,553.37,R & B Transformation 2,Premises Expenses,N23000/B102,Housing Revenue Account,Electricity
Ashfield District Council,37UB,EDF Energy 1 Ltd,V0977274,23/09/2021,40.55,R & B Transformation 2,Premises Expenses,G23100004/B102,Housing Revenue Account,Electricity
Ashfield District Council,37UB,EDF Energy 1 Ltd,V0977274,23/09/2021,35.69,R & B Transformation 2,Premises Expenses,G23100006/B102,Housing Revenue Account,Electricity
Ashfield District Council,37UB,EDF Energy 1 Ltd,V0977274,23/09/2021,54.94,R & B Transformation 2,Premises Expenses,G23100007/B102,Housing Revenue Account,Electricity
Ashfield District Council,37UB,EDF Energy 1 Ltd,V0977274,23/09/2021,53.01,R & B Transformation 2,Premises Expenses,G23100007/B102,Housing Revenue Account,Electricity
Ashfield District Council,37UB,EDF Energy 1 Ltd,V0977274,23/09/2021,78.11,R & B Transformation 2,Premises Expenses,G23100007/B102,Housing Revenue Account,Electricity
Ashfield District Council,37UB,EDF Energy 1 Ltd,V0977274,23/09/2021,53.26,R & B Transformation 2,Premises Expenses,G23100007/B102,Housing Revenue Account,Electricity
Ashfield District Council,37UB,EDF Energy 1 Ltd,V0977274,23/09/2021,53.23,R & B Transformation 2,Premises Expenses,G23100007/B102,Housing Revenue Account,Electricity
Ashfield District Council,37UB,Severn Trent Water Ltd,V0977803,30/09/2021,565.37,R & B Transformation 2,Premises Expenses,G23011050/B401,Housing Revenue Account,Water rates
Ashfield District Council,37UB,Total Gas & Power,V0976421,23/09/2021,106.66,R & B Transformation 2,Premises Expenses,N23000/B101,Housing Revenue Account,Gas
Ashfield District Council,37UB,Total Gas & Power,V0976421,23/09/2021,53.70,R & B Transformation 2,Premises Expenses,G23100007/B101,Housing Revenue Account,Gas
Ashfield District Council,37UB,Total Gas & Power,V0976421,23/09/2021,53.03,R & B Transformation 2,Premises Expenses,G23100006/B101,Housing Revenue Account,Gas
Ashfield District Council,37UB,Total Gas & Power,V0976421,23/09/2021,52.41,R & B Transformation 2,Premises Expenses,G23100005/B101,Housing Revenue Account,Gas
Ashfield District Council,37UB,Total Gas & Power,V0976421,23/09/2021,60.29,R & B Transformation 2,Premises Expenses,G23100002/B101,Housing Revenue Account,Gas
Ashfield District Council,37UB,Total Gas & Power,V0976421,23/09/2021,57.91,R & B Transformation 2,Premises Expenses,G23100004/B101,Housing Revenue Account,Gas
Ashfield District Council,37UB,Royal Mail,V0974487,02/09/2021,67.92,R & B Transformation 2,Supplies & Services,G53000/D301001,Lettings and PS,Postages
Ashfield District Council,37UB,Royal Mail,V0973358,17/09/2021,147.32,R & B Transformation 2,Supplies & Services,G53000/D301001,Lettings and PS,Postages
Ashfield District Council,37UB,Royal Mail,V0974821,17/09/2021,47.25,R & B Transformation 2,Supplies & Services,G53000/D301001,Lettings and PS,Postages
Ashfield District Council,37UB,Royal Mail,V0975736,23/09/2021,70.02,R & B Transformation 2,Supplies & Services,G53000/D301001,Lettings and PS,Postages
Ashfield District Council,37UB,Royal Mail,V0976440,30/09/2021,28.32,R & B Transformation 2,Supplies & Services,G53000/D301001,Lettings and PS,Postages
Ashfield District Council,37UB,Trowers & Hamlins LLP,V0976305,17/09/2021,706.00,Housing & Assets 2,Supplies & Services,G58000/D201010,Procurement Section,Professional and Consultancy Services
Ashfield District Council,37UB,Wilko Retail Limited,V0972934,02/09/2021,120.50,Housing & Assets 2,Supplies & Services,G56004/D200033,Tech Servs Planned Responsive,Decoration Vouchers
Ashfield District Council,37UB,Wilko Retail Limited,V0974753,02/09/2021,122.12,Housing & Assets 2,Supplies & Services,G56004/D200033,Tech Servs Planned Responsive,Decoration Vouchers
Ashfield District Council,37UB,Wilko Retail Limited,V0974838,02/09/2021,63.33,Housing & Assets 2,Supplies & Services,G56004/D200033,Tech Servs Planned Responsive,Decoration Vouchers
Ashfield District Council,37UB,Wilko Retail Limited,V0974839,02/09/2021,96.67,Housing & Assets 2,Supplies & Services,G56004/D200033,Tech Servs Planned Responsive,Decoration Vouchers
Ashfield District Council,37UB,Wilko Retail Limited,V0974840,02/09/2021,135.42,Housing & Assets 2,Supplies & Services,G56004/D200033,Tech Servs Planned Responsive,Decoration Vouchers
Ashfield District Council,37UB,Wilko Retail Limited,V0974841,02/09/2021,77.50,Housing & Assets 2,Supplies & Services,G56004/D200033,Tech Servs Planned Responsive,Decoration Vouchers
Ashfield District Council,37UB,Wilko Retail Limited,V0974842,02/09/2021,99.37,Housing & Assets 2,Supplies & Services,G56004/D200033,Tech Servs Planned Responsive,Decoration Vouchers
Ashfield District Council,37UB,Wilko Retail Limited,V0974843,02/09/2021,148.33,Housing & Assets 2,Supplies & Services,G56004/D200033,Tech Servs Planned Responsive,Decoration Vouchers
Ashfield District Council,37UB,Wilko Retail Limited,V0974844,02/09/2021,225.83,Housing & Assets 2,Supplies & Services,G56004/D200033,Tech Servs Planned Responsive,Decoration Vouchers
Ashfield District Council,37UB,Wilko Retail Limited,V0974845,02/09/2021,51.67,Housing & Assets 2,Supplies & Services,G56004/D200033,Tech Servs Planned Responsive,Decoration Vouchers
Ashfield District Council,37UB,Wilko Retail Limited,V0974846,02/09/2021,148.33,Housing & Assets 2,Supplies & Services,G56004/D200033,Tech Servs Planned Responsive,Decoration Vouchers
Ashfield District Council,37UB,Wilko Retail Limited,V0974847,02/09/2021,83.33,Housing & Assets 2,Supplies & Services,G56004/D200033,Tech Servs Planned Responsive,Decoration Vouchers
Ashfield District Council,37UB,Wilko Retail Limited,V0975819,09/09/2021,70.83,Housing & Assets 2,Supplies & Services,G56004/D200033,Tech Servs Planned Responsive,Decoration Vouchers
Ashfield District Council,37UB,Wilko Retail Limited,V0975820,09/09/2021,99.58,Housing & Assets 2,Supplies & Services,G56004/D200033,Tech Servs Planned Responsive,Decoration Vouchers
Ashfield District Council,37UB,Wilko Retail Limited,V0975821,09/09/2021,198.17,Housing & Assets 2,Supplies & Services,G56004/D200033,Tech Servs Planned Responsive,Decoration Vouchers
Ashfield District Council,37UB,Wilko Retail Limited,V0975822,09/09/2021,99.54,Housing & Assets 2,Supplies & Services,G56004/D200033,Tech Servs Planned Responsive,Decoration Vouchers
Ashfield District Council,37UB,Wilko Retail Limited,V0975823,09/09/2021,148.33,Housing & Assets 2,Supplies & Services,G56004/D200033,Tech Servs Planned Responsive,Decoration Vouchers
Ashfield District Council,37UB,Wilko Retail Limited,V0975824,09/09/2021,173.87,Housing & Assets 2,Supplies & Services,G56004/D200033,Tech Servs Planned Responsive,Decoration Vouchers
Ashfield District Council,37UB,Wilko Retail Limited,V0975825,09/09/2021,125.00,Housing & Assets 2,Supplies & Services,G56004/D200033,Tech Servs Planned Responsive,Decoration Vouchers
Ashfield District Council,37UB,Wilko Retail Limited,V0975826,09/09/2021,148.33,Housing & Assets 2,Supplies & Services,G56004/D200033,Tech Servs Planned Responsive,Decoration Vouchers
Ashfield District Council,37UB,Wilko Retail Limited,V0975827,09/09/2021,180.83,Housing & Assets 2,Supplies & Services,G56004/D200033,Tech Servs Planned Responsive,Decoration Vouchers
Ashfield District Council,37UB,Wilko Retail Limited,V0975828,09/09/2021,193.33,Housing & Assets 2,Supplies & Services,G56004/D200033,Tech Servs Planned Responsive,Decoration Vouchers
Ashfield District Council,37UB,Wilko Retail Limited,V0975829,09/09/2021,76.71,Housing & Assets 2,Supplies & Services,G56004/D200033,Tech Servs Planned Responsive,Decoration Vouchers
Ashfield District Council,37UB,Wilko Retail Limited,V0975830,09/09/2021,100.00,Housing & Assets 2,Supplies & Services,G56004/D200033,Tech Servs Planned Responsive,Decoration Vouchers
Ashfield District Council,37UB,Wilko Retail Limited,V0975830,09/09/2021,1.67,Housing & Assets 2,Supplies & Services,G56004/D200033,Tech Servs Planned Responsive,Decoration Vouchers
Ashfield District Council,37UB,Wilko Retail Limited,V0975831,09/09/2021,148.33,Housing & Assets 2,Supplies & Services,G56004/D200033,Tech Servs Planned Responsive,Decoration Vouchers
Ashfield District Council,37UB,Wilko Retail Limited,V0975832,09/09/2021,181.71,Housing & Assets 2,Supplies & Services,G56004/D200033,Tech Servs Planned Responsive,Decoration Vouchers
Ashfield District Council,37UB,Wilko Retail Limited,V0975833,09/09/2021,148.33,Housing & Assets 2,Supplies & Services,G56004/D200033,Tech Servs Planned Responsive,Decoration Vouchers
Ashfield District Council,37UB,Wilko Retail Limited,V0975834,09/09/2021,77.50,Housing & Assets 2,Supplies & Services,G56004/D200033,Tech Servs Planned Responsive,Decoration Vouchers
Ashfield District Council,37UB,Wilko Retail Limited,V0975835,09/09/2021,148.33,Housing & Assets 2,Supplies & Services,G56004/D200033,Tech Servs Planned Responsive,Decoration Vouchers
Ashfield District Council,37UB,Wilko Retail Limited,V0975836,09/09/2021,51.87,Housing & Assets 2,Supplies & Services,G56004/D200033,Tech Servs Planned Responsive,Decoration Vouchers
Ashfield District Council,37UB,Wilko Retail Limited,V0975837,09/09/2021,83.33,Housing & Assets 2,Supplies & Services,G56004/D200033,Tech Servs Planned Responsive,Decoration Vouchers
Ashfield District Council,37UB,Wilko Retail Limited,V0976374,17/09/2021,148.33,Housing & Assets 2,Supplies & Services,G56004/D200033,Tech Servs Planned Responsive,Decoration Vouchers
Ashfield District Council,37UB,Wilko Retail Limited,V0976375,17/09/2021,146.46,Housing & Assets 2,Supplies & Services,G56004/D200033,Tech Servs Planned Responsive,Decoration Vouchers
Ashfield District Council,37UB,Wilko Retail Limited,V0976377,17/09/2021,148.17,Housing & Assets 2,Supplies & Services,G56004/D200033,Tech Servs Planned Responsive,Decoration Vouchers
Ashfield District Council,37UB,Wilko Retail Limited,V0976378,17/09/2021,174.17,Housing & Assets 2,Supplies & Services,G56004/D200033,Tech Servs Planned Responsive,Decoration Vouchers
Ashfield District Council,37UB,Wilko Retail Limited,V0976379,17/09/2021,122.50,Housing & Assets 2,Supplies & Services,G56004/D200033,Tech Servs Planned Responsive,Decoration Vouchers
Ashfield District Council,37UB,Wilko Retail Limited,V0976380,17/09/2021,103.33,Housing & Assets 2,Supplies & Services,G56004/D200033,Tech Servs Planned Responsive,Decoration Vouchers
Ashfield District Council,37UB,Wilko Retail Limited,V0976381,17/09/2021,148.33,Housing & Assets 2,Supplies & Services,G56004/D200033,Tech Servs Planned Responsive,Decoration Vouchers
Ashfield District Council,37UB,Wilko Retail Limited,V0976382,17/09/2021,147.53,Housing & Assets 2,Supplies & Services,G56004/D200033,Tech Servs Planned Responsive,Decoration Vouchers
Ashfield District Council,37UB,Wilko Retail Limited,V0976383,17/09/2021,129.17,Housing & Assets 2,Supplies & Services,G56004/D200033,Tech Servs Planned Responsive,Decoration Vouchers
Ashfield District Council,37UB,Wilko Retail Limited,V0976384,17/09/2021,174.17,Housing & Assets 2,Supplies & Services,G56004/D200033,Tech Servs Planned Responsive,Decoration Vouchers
Ashfield District Council,37UB,Wilko Retail Limited,V0976385,17/09/2021,57.92,Housing & Assets 2,Supplies & Services,G56004/D200033,Tech Servs Planned Responsive,Decoration Vouchers
Ashfield District Council,37UB,Wilko Retail Limited,V0976386,17/09/2021,145.96,Housing & Assets 2,Supplies & Services,G56004/D200033,Tech Servs Planned Responsive,Decoration Vouchers
Ashfield District Council,37UB,Wilko Retail Limited,V0976387,17/09/2021,173.79,Housing & Assets 2,Supplies & Services,G56004/D200033,Tech Servs Planned Responsive,Decoration Vouchers
Ashfield District Council,37UB,Wilko Retail Limited,V0976388,17/09/2021,71.67,Housing & Assets 2,Supplies & Services,G56004/D200033,Tech Servs Planned Responsive,Decoration Vouchers
Ashfield District Council,37UB,Wilko Retail Limited,V0976389,17/09/2021,83.33,Housing & Assets 2,Supplies & Services,G56004/D200033,Tech Servs Planned Responsive,Decoration Vouchers
Ashfield District Council,37UB,Wilko Retail Limited,V0976390,17/09/2021,58.33,Housing & Assets 2,Supplies & Services,G56004/D200033,Tech Servs Planned Responsive,Decoration Vouchers
Ashfield District Council,37UB,Wilko Retail Limited,V0977373,23/09/2021,148.33,Housing & Assets 2,Supplies & Services,G56004/D200033,Tech Servs Planned Responsive,Decoration Vouchers
Ashfield District Council,37UB,Wilko Retail Limited,V0977374,23/09/2021,96.67,Housing & Assets 2,Supplies & Services,G56004/D200033,Tech Servs Planned Responsive,Decoration Vouchers
Ashfield District Council,37UB,Wilko Retail Limited,V0977621,23/09/2021,121.04,Housing & Assets 2,Supplies & Services,G56004/D200033,Tech Servs Planned Responsive,Decoration Vouchers
Ashfield District Council,37UB,Wilko Retail Limited,V0977621,23/09/2021,1.67,Housing & Assets 2,Supplies & Services,G56004/D200033,Tech Servs Planned Responsive,Decoration Vouchers
Ashfield District Council,37UB,Wilko Retail Limited,V0977622,23/09/2021,100.00,Housing & Assets 2,Supplies & Services,G56004/D200033,Tech Servs Planned Responsive,Decoration Vouchers
Ashfield District Council,37UB,Wilko Retail Limited,V0977623,23/09/2021,99.71,Housing & Assets 2,Supplies & Services,G56004/D200033,Tech Servs Planned Responsive,Decoration Vouchers
Ashfield District Council,37UB,Wilko Retail Limited,V0977624,23/09/2021,174.17,Housing & Assets 2,Supplies & Services,G56004/D200033,Tech Servs Planned Responsive,Decoration Vouchers
Ashfield District Council,37UB,Wilko Retail Limited,V0977625,23/09/2021,174.17,Housing & Assets 2,Supplies & Services,G56004/D200033,Tech Servs Planned Responsive,Decoration Vouchers
Ashfield District Council,37UB,Wilko Retail Limited,V0977626,23/09/2021,148.12,Housing & Assets 2,Supplies & Services,G56004/D200033,Tech Servs Planned Responsive,Decoration Vouchers
Ashfield District Council,37UB,Impact Fork Trucks Ltd,V0975649,09/09/2021,2022.29,Place & Communities 2,Transport Related Expenses,G57000/C019,Technical Services Depot,Vehicle and Plant Maintenance
Ashfield District Council,37UB,Maun Motors Self Drive,V0975720,17/09/2021,1125.00,Place & Communities 2,Transport Related Expenses,G57000/C201,Technical Services Depot,Hire of vehicles
Ashfield District Council,37UB,AGS Tech Ltd,V0976202,13/09/2021,50.00,R & B Transformation 2,Supplies & Services,G57002/D200008,Technical Services Depot,Payments to Contractors External
Ashfield District Council,37UB,AGS Tech Ltd,V0976203,13/09/2021,175.92,R & B Transformation 2,Supplies & Services,G57002/D200008,Technical Services Depot,Payments to Contractors External
Ashfield District Council,37UB,AGS Tech Ltd,V0976204,13/09/2021,50.00,R & B Transformation 2,Supplies & Services,G57002/D200008,Technical Services Depot,Payments to Contractors External
Ashfield District Council,37UB,AGS Tech Ltd,V0976205,13/09/2021,50.00,R & B Transformation 2,Supplies & Services,G57002/D200008,Technical Services Depot,Payments to Contractors External
Ashfield District Council,37UB,AGS Tech Ltd,V0976206,13/09/2021,50.00,R & B Transformation 2,Supplies & Services,G57002/D200008,Technical Services Depot,Payments to Contractors External
Ashfield District Council,37UB,AGS Tech Ltd,V0976207,13/09/2021,50.00,R & B Transformation 2,Supplies & Services,G57002/D200008,Technical Services Depot,Payments to Contractors External
Ashfield District Council,37UB,AGS Tech Ltd,V0976208,13/09/2021,50.00,R & B Transformation 2,Supplies & Services,G57002/D200008,Technical Services Depot,Payments to Contractors External
Ashfield District Council,37UB,AGS Tech Ltd,V0976209,13/09/2021,50.00,R & B Transformation 2,Supplies & Services,G57002/D200008,Technical Services Depot,Payments to Contractors External
Ashfield District Council,37UB,AGS Tech Ltd,V0976210,13/09/2021,77.90,R & B Transformation 2,Supplies & Services,G57002/D200008,Technical Services Depot,Payments to Contractors External
Ashfield District Council,37UB,AGS Tech Ltd,V0976211,13/09/2021,50.00,R & B Transformation 2,Supplies & Services,G57002/D200008,Technical Services Depot,Payments to Contractors External
Ashfield District Council,37UB,Byron Glass Co Ltd,V0976021,13/09/2021,50.60,R & B Transformation 2,Supplies & Services,G57000/D001004,Technical Services Depot,Chemicals and Materials Purchase
Ashfield District Council,37UB,Byron Glass Co Ltd,V0976022,13/09/2021,147.00,R & B Transformation 2,Supplies & Services,G57000/D001004,Technical Services Depot,Chemicals and Materials Purchase
Ashfield District Council,37UB,Byron Glass Co Ltd,V0976023,13/09/2021,28.50,R & B Transformation 2,Supplies & Services,G57000/D001004,Technical Services Depot,Chemicals and Materials Purchase
Ashfield District Council,37UB,Byron Glass Co Ltd,V0976024,13/09/2021,46.75,R & B Transformation 2,Supplies & Services,G57000/D001004,Technical Services Depot,Chemicals and Materials Purchase
Ashfield District Council,37UB,Byron Glass Co Ltd,V0976025,13/09/2021,95.00,R & B Transformation 2,Supplies & Services,G57000/D001004,Technical Services Depot,Chemicals and Materials Purchase
Ashfield District Council,37UB,Byron Glass Co Ltd,V0976026,13/09/2021,50.00,R & B Transformation 2,Supplies & Services,G57000/D001004,Technical Services Depot,Chemicals and Materials Purchase
Ashfield District Council,37UB,Byron Glass Co Ltd,V0976027,13/09/2021,20.00,R & B Transformation 2,Supplies & Services,G57000/D001004,Technical Services Depot,Chemicals and Materials Purchase
Ashfield District Council,37UB,Byron Glass Co Ltd,V0976027,13/09/2021,35.90,R & B Transformation 2,Supplies & Services,G57000/D001004,Technical Services Depot,Chemicals and Materials Purchase
Ashfield District Council,37UB,Byron Glass Co Ltd,V0976027,13/09/2021,20.00,R & B Transformation 2,Supplies & Services,G57000/D001004,Technical Services Depot,Chemicals and Materials Purchase
Ashfield District Council,37UB,Byron Glass Co Ltd,V0976027,13/09/2021,20.00,R & B Transformation 2,Supplies & Services,G57000/D001004,Technical Services Depot,Chemicals and Materials Purchase
Ashfield District Council,37UB,Byron Glass Co Ltd,V0976028,13/09/2021,20.00,R & B Transformation 2,Supplies & Services,G57000/D001004,Technical Services Depot,Chemicals and Materials Purchase
Ashfield District Council,37UB,Byron Glass Co Ltd,V0976028,13/09/2021,34.25,R & B Transformation 2,Supplies & Services,G57000/D001004,Technical Services Depot,Chemicals and Materials Purchase
Ashfield District Council,37UB,Byron Glass Co Ltd,V0976028,13/09/2021,20.00,R & B Transformation 2,Supplies & Services,G57000/D001004,Technical Services Depot,Chemicals and Materials Purchase
Ashfield District Council,37UB,Byron Glass Co Ltd,V0976029,13/09/2021,28.60,R & B Transformation 2,Supplies & Services,G57000/D001004,Technical Services Depot,Chemicals and Materials Purchase
Ashfield District Council,37UB,Byron Glass Co Ltd,V0976030,13/09/2021,34.35,R & B Transformation 2,Supplies & Services,G57000/D001004,Technical Services Depot,Chemicals and Materials Purchase
Ashfield District Council,37UB,Byron Glass Co Ltd,V0976030,13/09/2021,30.00,R & B Transformation 2,Supplies & Services,G57000/D001004,Technical Services Depot,Chemicals and Materials Purchase
Ashfield District Council,37UB,Byron Glass Co Ltd,V0976031,13/09/2021,26.40,R & B Transformation 2,Supplies & Services,G57000/D001004,Technical Services Depot,Chemicals and Materials Purchase
Ashfield District Council,37UB,Byron Glass Co Ltd,V0976032,13/09/2021,44.55,R & B Transformation 2,Supplies & Services,G57000/D001004,Technical Services Depot,Chemicals and Materials Purchase
Ashfield District Council,37UB,Byron Glass Co Ltd,V0976033,13/09/2021,7.25,R & B Transformation 2,Supplies & Services,G57000/D001004,Technical Services Depot,Chemicals and Materials Purchase
Ashfield District Council,37UB,Byron Glass Co Ltd,V0976034,13/09/2021,30.00,R & B Transformation 2,Supplies & Services,G57000/D001004,Technical Services Depot,Chemicals and Materials Purchase
Ashfield District Council,37UB,Byron Glass Co Ltd,V0976034,13/09/2021,45.90,R & B Transformation 2,Supplies & Services,G57000/D001004,Technical Services Depot,Chemicals and Materials Purchase
Ashfield District Council,37UB,Byron Glass Co Ltd,V0976035,13/09/2021,47.50,R & B Transformation 2,Supplies & Services,G57000/D001004,Technical Services Depot,Chemicals and Materials Purchase
Ashfield District Council,37UB,Byron Glass Co Ltd,V0976036,13/09/2021,29.62,R & B Transformation 2,Supplies & Services,G57000/D001004,Technical Services Depot,Chemicals and Materials Purchase
Ashfield District Council,37UB,Byron Glass Co Ltd,V0976036,13/09/2021,32.20,R & B Transformation 2,Supplies & Services,G57000/D001004,Technical Services Depot,Chemicals and Materials Purchase
Ashfield District Council,37UB,Byron Glass Co Ltd,V0976036,13/09/2021,29.62,R & B Transformation 2,Supplies & Services,G57000/D001004,Technical Services Depot,Chemicals and Materials Purchase
Ashfield District Council,37UB,Byron Glass Co Ltd,V0976036,13/09/2021,29.62,R & B Transformation 2,Supplies & Services,G57000/D001004,Technical Services Depot,Chemicals and Materials Purchase
Ashfield District Council,37UB,Byron Glass Co Ltd,V0976036,13/09/2021,29.62,R & B Transformation 2,Supplies & Services,G57000/D001004,Technical Services Depot,Chemicals and Materials Purchase
Ashfield District Council,37UB,Byron Glass Co Ltd,V0976036,13/09/2021,29.63,R & B Transformation 2,Supplies & Services,G57000/D001004,Technical Services Depot,Chemicals and Materials Purchase
Ashfield District Council,37UB,Byron Glass Co Ltd,V0976036,13/09/2021,29.62,R & B Transformation 2,Supplies & Services,G57000/D001004,Technical Services Depot,Chemicals and Materials Purchase
Ashfield District Council,37UB,Byron Glass Co Ltd,V0976036,13/09/2021,29.62,R & B Transformation 2,Supplies & Services,G57000/D001004,Technical Services Depot,Chemicals and Materials Purchase
Ashfield District Council,37UB,Byron Glass Co Ltd,V0976037,13/09/2021,31.90,R & B Transformation 2,Supplies & Services,G57000/D001004,Technical Services Depot,Chemicals and Materials Purchase
Ashfield District Council,37UB,Byron Glass Co Ltd,V0976038,13/09/2021,40.70,R & B Transformation 2,Supplies & Services,G57000/D001004,Technical Services Depot,Chemicals and Materials Purchase
Ashfield District Council,37UB,Byron Glass Co Ltd,V0976039,13/09/2021,26.19,R & B Transformation 2,Supplies & Services,G57000/D001004,Technical Services Depot,Chemicals and Materials Purchase
Ashfield District Council,37UB,Byron Glass Co Ltd,V0976040,13/09/2021,12.65,R & B Transformation 2,Supplies & Services,G57000/D001004,Technical Services Depot,Chemicals and Materials Purchase
Ashfield District Council,37UB,Byron Glass Co Ltd,V0976041,13/09/2021,20.40,R & B Transformation 2,Supplies & Services,G57000/D001004,Technical Services Depot,Chemicals and Materials Purchase
Ashfield District Council,37UB,Byron Glass Co Ltd,V0976041,13/09/2021,21.40,R & B Transformation 2,Supplies & Services,G57000/D001004,Technical Services Depot,Chemicals and Materials Purchase
Ashfield District Council,37UB,Byron Glass Co Ltd,V0976042,13/09/2021,22.55,R & B Transformation 2,Supplies & Services,G57000/D001004,Technical Services Depot,Chemicals and Materials Purchase
Ashfield District Council,37UB,Byron Glass Co Ltd,V0976042,13/09/2021,22.55,R & B Transformation 2,Supplies & Services,G57000/D001004,Technical Services Depot,Chemicals and Materials Purchase
Ashfield District Council,37UB,Candor Care Ltd,V0976224,13/09/2021,1498.00,R & B Transformation 2,Supplies & Services,G57002/D200008,Technical Services Depot,Payments to Contractors External
Ashfield District Council,37UB,Cash & Carry Windows Ltd,V0977437,24/09/2021,104.50,R & B Transformation 2,Supplies & Services,G57002/D200008,Technical Services Depot,Payments to Contractors External
Ashfield District Council,37UB,Cash & Carry Windows Ltd,V0977437,24/09/2021,97.00,R & B Transformation 2,Supplies & Services,G57002/D200008,Technical Services Depot,Payments to Contractors External
Ashfield District Council,37UB,Cash & Carry Windows Ltd,V0977437,24/09/2021,104.50,R & B Transformation 2,Supplies & Services,G57002/D200008,Technical Services Depot,Payments to Contractors External
Ashfield District Council,37UB,Cash & Carry Windows Ltd,V0977437,24/09/2021,104.50,R & B Transformation 2,Supplies & Services,G57002/D200008,Technical Services Depot,Payments to Contractors External
Ashfield District Council,37UB,Cash & Carry Windows Ltd,V0977437,24/09/2021,97.00,R & B Transformation 2,Supplies & Services,G57002/D200008,Technical Services Depot,Payments to Contractors External
Ashfield District Council,37UB,City Plumbing Supplies Holdings Ltd,V0976081,13/09/2021,10.84,R & B Transformation 2,Supplies & Services,G57000/D001004,Technical Services Depot,Chemicals and Materials Purchase
Ashfield District Council,37UB,City Plumbing Supplies Holdings Ltd,V0976083,13/09/2021,30.44,R & B Transformation 2,Supplies & Services,G57000/D001004,Technical Services Depot,Chemicals and Materials Purchase
Ashfield District Council,37UB,City Plumbing Supplies Holdings Ltd,V0976088,13/09/2021,107.08,R & B Transformation 2,Supplies & Services,G57000/D001004,Technical Services Depot,Chemicals and Materials Purchase
Ashfield District Council,37UB,City Plumbing Supplies Holdings Ltd,V0976089,13/09/2021,21.44,R & B Transformation 2,Supplies & Services,G57000/D001004,Technical Services Depot,Chemicals and Materials Purchase
Ashfield District Council,37UB,City Plumbing Supplies Holdings Ltd,V0976090,13/09/2021,96.29,R & B Transformation 2,Supplies & Services,G57000/D001004,Technical Services Depot,Chemicals and Materials Purchase
Ashfield District Council,37UB,City Plumbing Supplies Holdings Ltd,V0976563,20/09/2021,55.99,R & B Transformation 2,Supplies & Services,G57000/D001004,Technical Services Depot,Chemicals and Materials Purchase
Ashfield District Council,37UB,City Plumbing Supplies Holdings Ltd,V0976564,20/09/2021,13.02,R & B Transformation 2,Supplies & Services,G57000/D001004,Technical Services Depot,Chemicals and Materials Purchase
Ashfield District Council,37UB,City Plumbing Supplies Holdings Ltd,V0976566,20/09/2021,33.71,R & B Transformation 2,Supplies & Services,G57000/D001004,Technical Services Depot,Chemicals and Materials Purchase
Ashfield District Council,37UB,City Plumbing Supplies Holdings Ltd,V0977505,24/09/2021,37.22,R & B Transformation 2,Supplies & Services,G57000/D001004,Technical Services Depot,Chemicals and Materials Purchase
Ashfield District Council,37UB,City Plumbing Supplies Holdings Ltd,V0977507,24/09/2021,5.38,R & B Transformation 2,Supplies & Services,G57000/D001004,Technical Services Depot,Chemicals and Materials Purchase
Ashfield District Council,37UB,City Plumbing Supplies Holdings Ltd,V0977508,24/09/2021,44.22,R & B Transformation 2,Supplies & Services,G57000/D001004,Technical Services Depot,Chemicals and Materials Purchase
Ashfield District Council,37UB,City Plumbing Supplies Holdings Ltd,V0977587,24/09/2021,26.65,R & B Transformation 2,Supplies & Services,G57000/D001004,Technical Services Depot,Chemicals and Materials Purchase
Ashfield District Council,37UB,City Plumbing Supplies Holdings Ltd,V0977591,24/09/2021,31.97,R & B Transformation 2,Supplies & Services,G57000/D001004,Technical Services Depot,Chemicals and Materials Purchase
Ashfield District Council,37UB,City Plumbing Supplies Holdings Ltd,V0977592,24/09/2021,84.32,R & B Transformation 2,Supplies & Services,G57000/D001004,Technical Services Depot,Chemicals and Materials Purchase
Ashfield District Council,37UB,City Plumbing Supplies Holdings Ltd,V0977596,24/09/2021,13.02,R & B Transformation 2,Supplies & Services,G57000/D001004,Technical Services Depot,Chemicals and Materials Purchase
Ashfield District Council,37UB,Crown Paints Limited,V0975047,06/09/2021,38.77,R & B Transformation 2,Supplies & Services,G57000/D001004,Technical Services Depot,Chemicals and Materials Purchase
Ashfield District Council,37UB,Crown Paints Limited,V0975047,06/09/2021,10.45,R & B Transformation 2,Supplies & Services,G57000/D001004,Technical Services Depot,Chemicals and Materials Purchase
Ashfield District Council,37UB,Daisy Corporate Services Trading Ltd,V0975636,17/09/2021,1843.60,R & B Transformation 2,Supplies & Services,G57000/D301003,Technical Services Depot,Mobiles
Ashfield District Council,37UB,Daisy Telecoms Ltd,V0975638,17/09/2021,18.38,R & B Transformation 2,Supplies & Services,G57000/D301003,Technical Services Depot,Mobiles
Ashfield District Council,37UB,Dalrod UK Ltd,V0976227,13/09/2021,244.79,R & B Transformation 2,Supplies & Services,G57002/D200008,Technical Services Depot,Payments to Contractors External
Ashfield District Council,37UB,Dalrod UK Ltd,V0976228,13/09/2021,152.91,R & B Transformation 2,Supplies & Services,G57002/D200008,Technical Services Depot,Payments to Contractors External
Ashfield District Council,37UB,Dalrod UK Ltd,V0976229,13/09/2021,66.35,R & B Transformation 2,Supplies & Services,G57002/D200008,Technical Services Depot,Payments to Contractors External
Ashfield District Council,37UB,Dalrod UK Ltd,V0976230,13/09/2021,66.35,R & B Transformation 2,Supplies & Services,G57002/D200008,Technical Services Depot,Payments to Contractors External
Ashfield District Council,37UB,Dalrod UK Ltd,V0976231,13/09/2021,66.35,R & B Transformation 2,Supplies & Services,G57002/D200008,Technical Services Depot,Payments to Contractors External
Ashfield District Council,37UB,Dalrod UK Ltd,V0976232,13/09/2021,219.26,R & B Transformation 2,Supplies & Services,G57002/D200008,Technical Services Depot,Payments to Contractors External
Ashfield District Council,37UB,Dalrod UK Ltd,V0976233,13/09/2021,66.35,R & B Transformation 2,Supplies & Services,G57002/D200008,Technical Services Depot,Payments to Contractors External
Ashfield District Council,37UB,Dalrod UK Ltd,V0976234,13/09/2021,91.88,R & B Transformation 2,Supplies & Services,G57002/D200008,Technical Services Depot,Payments to Contractors External
Ashfield District Council,37UB,Dalrod UK Ltd,V0977438,24/09/2021,79.12,R & B Transformation 2,Supplies & Services,G57002/D200008,Technical Services Depot,Payments to Contractors External
Ashfield District Council,37UB,Dalrod UK Ltd,V0977439,24/09/2021,85.64,R & B Transformation 2,Supplies & Services,G57002/D200008,Technical Services Depot,Payments to Contractors External
Ashfield District Council,37UB,Dalrod UK Ltd,V0977440,24/09/2021,91.88,R & B Transformation 2,Supplies & Services,G57002/D200008,Technical Services Depot,Payments to Contractors External
Ashfield District Council,37UB,Dalrod UK Ltd,V0977441,24/09/2021,79.12,R & B Transformation 2,Supplies & Services,G57002/D200008,Technical Services Depot,Payments to Contractors External
Ashfield District Council,37UB,Dalrod UK Ltd,V0977442,24/09/2021,116.86,R & B Transformation 2,Supplies & Services,G57002/D200008,Technical Services Depot,Payments to Contractors External
Ashfield District Council,37UB,Dalrod UK Ltd,V0977525,24/09/2021,117.41,R & B Transformation 2,Supplies & Services,G57002/D200008,Technical Services Depot,Payments to Contractors External
Ashfield District Council,37UB,Dalrod UK Ltd,V0977541,24/09/2021,66.35,R & B Transformation 2,Supplies & Services,G57002/D200008,Technical Services Depot,Payments to Contractors External
Ashfield District Council,37UB,Dalrod UK Ltd,V0977542,24/09/2021,66.35,R & B Transformation 2,Supplies & Services,G57002/D200008,Technical Services Depot,Payments to Contractors External
Ashfield District Council,37UB,Dalrod UK Ltd,V0977543,24/09/2021,85.64,R & B Transformation 2,Supplies & Services,G57002/D200008,Technical Services Depot,Payments to Contractors External
Ashfield District Council,37UB,Dalrod UK Ltd,V0977544,24/09/2021,85.64,R & B Transformation 2,Supplies & Services,G57002/D200008,Technical Services Depot,Payments to Contractors External
Ashfield District Council,37UB,Dalrod UK Ltd,V0977545,24/09/2021,51.05,R & B Transformation 2,Supplies & Services,G57002/D200008,Technical Services Depot,Payments to Contractors External
Ashfield District Council,37UB,Dalrod UK Ltd,V0977546,24/09/2021,66.35,R & B Transformation 2,Supplies & Services,G57002/D200008,Technical Services Depot,Payments to Contractors External
Ashfield District Council,37UB,Dalrod UK Ltd,V0977547,24/09/2021,79.12,R & B Transformation 2,Supplies & Services,G57002/D200008,Technical Services Depot,Payments to Contractors External
Ashfield District Council,37UB,Dalrod UK Ltd,V0977548,24/09/2021,66.35,R & B Transformation 2,Supplies & Services,G57002/D200008,Technical Services Depot,Payments to Contractors External
Ashfield District Council,37UB,Dalrod UK Ltd,V0977549,24/09/2021,85.64,R & B Transformation 2,Supplies & Services,G57002/D200008,Technical Services Depot,Payments to Contractors External
Ashfield District Council,37UB,Dalrod UK Ltd,V0977550,24/09/2021,168.02,R & B Transformation 2,Supplies & Services,G57002/D200008,Technical Services Depot,Payments to Contractors External
Ashfield District Council,37UB,Deltron Lifts Limited,V0976188,13/09/2021,125.50,R & B Transformation 2,Supplies & Services,G57002/D200008,Technical Services Depot,Payments to Contractors External
Ashfield District Council,37UB,Deltron Lifts Limited,V0976189,13/09/2021,150.00,R & B Transformation 2,Supplies & Services,G57002/D200008,Technical Services Depot,Payments to Contractors External
Ashfield District Council,37UB,Deltron Lifts Limited,V0976190,13/09/2021,80.00,R & B Transformation 2,Supplies & Services,G57002/D200008,Technical Services Depot,Payments to Contractors External
Ashfield District Council,37UB,Deltron Lifts Limited,V0976191,13/09/2021,150.00,R & B Transformation 2,Supplies & Services,G57002/D200008,Technical Services Depot,Payments to Contractors External
Ashfield District Council,37UB,Deltron Lifts Limited,V0976192,13/09/2021,150.00,R & B Transformation 2,Supplies & Services,G57002/D200008,Technical Services Depot,Payments to Contractors External
Ashfield District Council,37UB,Deltron Lifts Limited,V0976193,13/09/2021,594.00,R & B Transformation 2,Supplies & Services,G57002/D200008,Technical Services Depot,Payments to Contractors External
Ashfield District Council,37UB,Deltron Lifts Limited,V0976194,13/09/2021,125.50,R & B Transformation 2,Supplies & Services,G57002/D200008,Technical Services Depot,Payments to Contractors External
Ashfield District Council,37UB,Deltron Lifts Limited,V0976195,13/09/2021,1250.00,R & B Transformation 2,Supplies & Services,G57002/D200008,Technical Services Depot,Payments to Contractors External
Ashfield District Council,37UB,Deltron Lifts Limited,V0976196,13/09/2021,45.50,R & B Transformation 2,Supplies & Services,G57002/D200008,Technical Services Depot,Payments to Contractors External
Ashfield District Council,37UB,Deltron Lifts Limited,V0976197,13/09/2021,45.50,R & B Transformation 2,Supplies & Services,G57002/D200008,Technical Services Depot,Payments to Contractors External
Ashfield District Council,37UB,Deltron Lifts Limited,V0976198,13/09/2021,150.00,R & B Transformation 2,Supplies & Services,G57002/D200008,Technical Services Depot,Payments to Contractors External
Ashfield District Council,37UB,Deltron Lifts Limited,V0976199,13/09/2021,10.00,R & B Transformation 2,Supplies & Services,G57002/D200008,Technical Services Depot,Payments to Contractors External
Ashfield District Council,37UB,Deltron Lifts Limited,V0976200,13/09/2021,10.00,R & B Transformation 2,Supplies & Services,G57002/D200008,Technical Services Depot,Payments to Contractors External
Ashfield District Council,37UB,Deltron Lifts Limited,V0976201,13/09/2021,10.00,R & B Transformation 2,Supplies & Services,G57002/D200008,Technical Services Depot,Payments to Contractors External
Ashfield District Council,37UB,Deltron Lifts Limited,V0977445,24/09/2021,125.50,R & B Transformation 2,Supplies & Services,G57002/D200008,Technical Services Depot,Payments to Contractors External
Ashfield District Council,37UB,Deltron Lifts Limited,V0977446,24/09/2021,45.50,R & B Transformation 2,Supplies & Services,G57002/D200008,Technical Services Depot,Payments to Contractors External
Ashfield District Council,37UB,Deltron Lifts Limited,V0977447,24/09/2021,475.00,R & B Transformation 2,Supplies & Services,G57002/D200008,Technical Services Depot,Payments to Contractors External
Ashfield District Council,37UB,Deltron Lifts Limited,V0977448,24/09/2021,325.00,R & B Transformation 2,Supplies & Services,G57002/D200008,Technical Services Depot,Payments to Contractors External
Ashfield District Council,37UB,Deltron Lifts Limited,V0977540,24/09/2021,125.50,R & B Transformation 2,Supplies & Services,G57002/D200008,Technical Services Depot,Payments to Contractors External
Ashfield District Council,37UB,Dutton Recruitment Ltd,V0976572,20/09/2021,255.93,R & B Transformation 2,Employee Expenses,G57000/A200004,Technical Services Depot,Agency Staff
Ashfield District Council,37UB,Dutton Recruitment Ltd,V0977167,20/09/2021,1191.38,R & B Transformation 2,Employee Expenses,G57000/A200004,Technical Services Depot,Agency Staff
Ashfield District Council,37UB,Dutton Recruitment Ltd,V0977168,20/09/2021,590.00,R & B Transformation 2,Employee Expenses,G57000/A200004,Technical Services Depot,Agency Staff
Ashfield District Council,37UB,Dutton Recruitment Ltd,V0977476,24/09/2021,653.05,R & B Transformation 2,Employee Expenses,G57000/A200004,Technical Services Depot,Agency Staff
Ashfield District Council,37UB,Environtec Limited,V0976470,20/09/2021,200.00,R & B Transformation 2,Supplies & Services,G57002/D200008,Technical Services Depot,Payments to Contractors External
Ashfield District Council,37UB,Environtec Limited,V0976471,20/09/2021,200.00,R & B Transformation 2,Supplies & Services,G57002/D200008,Technical Services Depot,Payments to Contractors External
Ashfield District Council,37UB,Environtec Limited,V0976518,20/09/2021,750.00,R & B Transformation 2,Employee Expenses,G57000/A200019,Technical Services Depot,Divisional Training
Ashfield District Council,37UB,Hays,V0977572,24/09/2021,422.70,R & B Transformation 2,Employee Expenses,G57000/A200004,Technical Services Depot,Agency Staff
Ashfield District Council,37UB,Hays,V0977573,24/09/2021,1056.75,R & B Transformation 2,Employee Expenses,G57000/A200004,Technical Services Depot,Agency Staff
Ashfield District Council,37UB,J Tomlinson Ltd,V0974876,06/09/2021,65.26,R & B Transformation 2,Supplies & Services,G57002/D200008,Technical Services Depot,Payments to Contractors External
Ashfield District Council,37UB,J Tomlinson Ltd,V0974877,06/09/2021,65.26,R & B Transformation 2,Supplies & Services,G57002/D200008,Technical Services Depot,Payments to Contractors External
Ashfield District Council,37UB,J Tomlinson Ltd,V0974878,06/09/2021,65.26,R & B Transformation 2,Supplies & Services,G57002/D200008,Technical Services Depot,Payments to Contractors External
Ashfield District Council,37UB,J Tomlinson Ltd,V0974879,06/09/2021,65.26,R & B Transformation 2,Supplies & Services,G57002/D200008,Technical Services Depot,Payments to Contractors External
Ashfield District Council,37UB,J Tomlinson Ltd,V0974880,06/09/2021,65.26,R & B Transformation 2,Supplies & Services,G57002/D200008,Technical Services Depot,Payments to Contractors External
Ashfield District Council,37UB,J Tomlinson Ltd,V0974881,06/09/2021,65.26,R & B Transformation 2,Supplies & Services,G57002/D200008,Technical Services Depot,Payments to Contractors External
Ashfield District Council,37UB,J Tomlinson Ltd,V0974882,06/09/2021,65.26,R & B Transformation 2,Supplies & Services,G57002/D200008,Technical Services Depot,Payments to Contractors External
Ashfield District Council,37UB,J Tomlinson Ltd,V0974883,06/09/2021,65.26,R & B Transformation 2,Supplies & Services,G57002/D200008,Technical Services Depot,Payments to Contractors External
Ashfield District Council,37UB,J Tomlinson Ltd,V0974884,06/09/2021,65.26,R & B Transformation 2,Supplies & Services,G57002/D200008,Technical Services Depot,Payments to Contractors External
Ashfield District Council,37UB,J Tomlinson Ltd,V0974885,06/09/2021,65.26,R & B Transformation 2,Supplies & Services,G57002/D200008,Technical Services Depot,Payments to Contractors External
Ashfield District Council,37UB,J Tomlinson Ltd,V0974886,06/09/2021,65.26,R & B Transformation 2,Supplies & Services,G57002/D200008,Technical Services Depot,Payments to Contractors External
Ashfield District Council,37UB,J Tomlinson Ltd,V0974887,06/09/2021,65.26,R & B Transformation 2,Supplies & Services,G57002/D200008,Technical Services Depot,Payments to Contractors External
Ashfield District Council,37UB,J Tomlinson Ltd,V0974888,06/09/2021,65.26,R & B Transformation 2,Supplies & Services,G57002/D200008,Technical Services Depot,Payments to Contractors External
Ashfield District Council,37UB,J Tomlinson Ltd,V0974889,06/09/2021,65.26,R & B Transformation 2,Supplies & Services,G57002/D200008,Technical Services Depot,Payments to Contractors External
Ashfield District Council,37UB,J Tomlinson Ltd,V0974890,06/09/2021,65.26,R & B Transformation 2,Supplies & Services,G57002/D200008,Technical Services Depot,Payments to Contractors External
Ashfield District Council,37UB,J Tomlinson Ltd,V0974891,06/09/2021,65.26,R & B Transformation 2,Supplies & Services,G57002/D200008,Technical Services Depot,Payments to Contractors External
Ashfield District Council,37UB,J Tomlinson Ltd,V0974892,06/09/2021,60.82,R & B Transformation 2,Supplies & Services,G57002/D200008,Technical Services Depot,Payments to Contractors External
Ashfield District Council,37UB,J Tomlinson Ltd,V0974893,06/09/2021,65.26,R & B Transformation 2,Supplies & Services,G57002/D200008,Technical Services Depot,Payments to Contractors External
Ashfield District Council,37UB,J Tomlinson Ltd,V0974894,06/09/2021,65.26,R & B Transformation 2,Supplies & Services,G57002/D200008,Technical Services Depot,Payments to Contractors External
Ashfield District Council,37UB,J Tomlinson Ltd,V0974895,06/09/2021,65.26,R & B Transformation 2,Supplies & Services,G57002/D200008,Technical Services Depot,Payments to Contractors External
Ashfield District Council,37UB,J Tomlinson Ltd,V0974896,06/09/2021,65.26,R & B Transformation 2,Supplies & Services,G57002/D200008,Technical Services Depot,Payments to Contractors External
Ashfield District Council,37UB,J Tomlinson Ltd,V0974897,06/09/2021,65.26,R & B Transformation 2,Supplies & Services,G57002/D200008,Technical Services Depot,Payments to Contractors External
Ashfield District Council,37UB,J Tomlinson Ltd,V0974898,06/09/2021,65.26,R & B Transformation 2,Supplies & Services,G57002/D200008,Technical Services Depot,Payments to Contractors External
Ashfield District Council,37UB,J Tomlinson Ltd,V0974899,06/09/2021,65.26,R & B Transformation 2,Supplies & Services,G57002/D200008,Technical Services Depot,Payments to Contractors External
Ashfield District Council,37UB,J Tomlinson Ltd,V0974900,06/09/2021,65.26,R & B Transformation 2,Supplies & Services,G57002/D200008,Technical Services Depot,Payments to Contractors External
Ashfield District Council,37UB,J Tomlinson Ltd,V0974901,06/09/2021,65.26,R & B Transformation 2,Supplies & Services,G57002/D200008,Technical Services Depot,Payments to Contractors External
Ashfield District Council,37UB,J Tomlinson Ltd,V0974902,06/09/2021,65.26,R & B Transformation 2,Supplies & Services,G57002/D200008,Technical Services Depot,Payments to Contractors External
Ashfield District Council,37UB,J Tomlinson Ltd,V0974903,06/09/2021,65.26,R & B Transformation 2,Supplies & Services,G57002/D200008,Technical Services Depot,Payments to Contractors External
Ashfield District Council,37UB,J Tomlinson Ltd,V0974904,06/09/2021,65.26,R & B Transformation 2,Supplies & Services,G57002/D200008,Technical Services Depot,Payments to Contractors External
Ashfield District Council,37UB,J Tomlinson Ltd,V0974905,06/09/2021,65.26,R & B Transformation 2,Supplies & Services,G57002/D200008,Technical Services Depot,Payments to Contractors External
Ashfield District Council,37UB,J Tomlinson Ltd,V0974906,06/09/2021,65.26,R & B Transformation 2,Supplies & Services,G57002/D200008,Technical Services Depot,Payments to Contractors External
Ashfield District Council,37UB,J Tomlinson Ltd,V0974907,06/09/2021,65.26,R & B Transformation 2,Supplies & Services,G57002/D200008,Technical Services Depot,Payments to Contractors External
Ashfield District Council,37UB,J Tomlinson Ltd,V0974908,06/09/2021,65.26,R & B Transformation 2,Supplies & Services,G57002/D200008,Technical Services Depot,Payments to Contractors External
Ashfield District Council,37UB,J Tomlinson Ltd,V0974909,06/09/2021,65.26,R & B Transformation 2,Supplies & Services,G57002/D200008,Technical Services Depot,Payments to Contractors External
Ashfield District Council,37UB,J Tomlinson Ltd,V0974910,06/09/2021,65.26,R & B Transformation 2,Supplies & Services,G57002/D200008,Technical Services Depot,Payments to Contractors External
Ashfield District Council,37UB,J Tomlinson Ltd,V0974911,06/09/2021,65.26,R & B Transformation 2,Supplies & Services,G57002/D200008,Technical Services Depot,Payments to Contractors External
Ashfield District Council,37UB,J Tomlinson Ltd,V0974912,06/09/2021,65.26,R & B Transformation 2,Supplies & Services,G57002/D200008,Technical Services Depot,Payments to Contractors External
Ashfield District Council,37UB,J Tomlinson Ltd,V0974913,06/09/2021,65.26,R & B Transformation 2,Supplies & Services,G57002/D200008,Technical Services Depot,Payments to Contractors External
Ashfield District Council,37UB,J Tomlinson Ltd,V0974914,06/09/2021,65.26,R & B Transformation 2,Supplies & Services,G57002/D200008,Technical Services Depot,Payments to Contractors External
Ashfield District Council,37UB,J Tomlinson Ltd,V0974915,06/09/2021,65.26,R & B Transformation 2,Supplies & Services,G57002/D200008,Technical Services Depot,Payments to Contractors External
Ashfield District Council,37UB,J Tomlinson Ltd,V0974916,06/09/2021,65.26,R & B Transformation 2,Supplies & Services,G57002/D200008,Technical Services Depot,Payments to Contractors External
Ashfield District Council,37UB,J Tomlinson Ltd,V0974917,06/09/2021,65.26,R & B Transformation 2,Supplies & Services,G57002/D200008,Technical Services Depot,Payments to Contractors External
Ashfield District Council,37UB,J Tomlinson Ltd,V0974918,06/09/2021,65.26,R & B Transformation 2,Supplies & Services,G57002/D200008,Technical Services Depot,Payments to Contractors External
Ashfield District Council,37UB,J Tomlinson Ltd,V0974919,06/09/2021,65.26,R & B Transformation 2,Supplies & Services,G57002/D200008,Technical Services Depot,Payments to Contractors External
Ashfield District Council,37UB,J Tomlinson Ltd,V0974920,06/09/2021,65.26,R & B Transformation 2,Supplies & Services,G57002/D200008,Technical Services Depot,Payments to Contractors External
Ashfield District Council,37UB,J Tomlinson Ltd,V0974921,06/09/2021,65.26,R & B Transformation 2,Supplies & Services,G57002/D200008,Technical Services Depot,Payments to Contractors External
Ashfield District Council,37UB,J Tomlinson Ltd,V0974922,06/09/2021,65.26,R & B Transformation 2,Supplies & Services,G57002/D200008,Technical Services Depot,Payments to Contractors External
Ashfield District Council,37UB,J Tomlinson Ltd,V0974923,06/09/2021,65.26,R & B Transformation 2,Supplies & Services,G57002/D200008,Technical Services Depot,Payments to Contractors External
Ashfield District Council,37UB,J Tomlinson Ltd,V0974924,06/09/2021,65.26,R & B Transformation 2,Supplies & Services,G57002/D200008,Technical Services Depot,Payments to Contractors External
Ashfield District Council,37UB,J Tomlinson Ltd,V0974925,06/09/2021,65.26,R & B Transformation 2,Supplies & Services,G57002/D200008,Technical Services Depot,Payments to Contractors External
Ashfield District Council,37UB,J Tomlinson Ltd,V0974926,06/09/2021,65.26,R & B Transformation 2,Supplies & Services,G57002/D200008,Technical Services Depot,Payments to Contractors External
Ashfield District Council,37UB,J Tomlinson Ltd,V0974927,06/09/2021,65.26,R & B Transformation 2,Supplies & Services,G57002/D200008,Technical Services Depot,Payments to Contractors External
Ashfield District Council,37UB,J Tomlinson Ltd,V0974928,06/09/2021,65.26,R & B Transformation 2,Supplies & Services,G57002/D200008,Technical Services Depot,Payments to Contractors External
Ashfield District Council,37UB,J Tomlinson Ltd,V0974929,06/09/2021,65.26,R & B Transformation 2,Supplies & Services,G57002/D200008,Technical Services Depot,Payments to Contractors External
Ashfield District Council,37UB,J Tomlinson Ltd,V0974930,06/09/2021,65.26,R & B Transformation 2,Supplies & Services,G57002/D200008,Technical Services Depot,Payments to Contractors External
Ashfield District Council,37UB,J Tomlinson Ltd,V0974931,06/09/2021,65.26,R & B Transformation 2,Supplies & Services,G57002/D200008,Technical Services Depot,Payments to Contractors External
Ashfield District Council,37UB,J Tomlinson Ltd,V0974932,06/09/2021,65.26,R & B Transformation 2,Supplies & Services,G57002/D200008,Technical Services Depot,Payments to Contractors External
Ashfield District Council,37UB,J Tomlinson Ltd,V0974933,06/09/2021,65.26,R & B Transformation 2,Supplies & Services,G57002/D200008,Technical Services Depot,Payments to Contractors External
Ashfield District Council,37UB,J Tomlinson Ltd,V0974934,06/09/2021,65.26,R & B Transformation 2,Supplies & Services,G57002/D200008,Technical Services Depot,Payments to Contractors External
Ashfield District Council,37UB,J Tomlinson Ltd,V0974935,06/09/2021,65.26,R & B Transformation 2,Supplies & Services,G57002/D200008,Technical Services Depot,Payments to Contractors External
Ashfield District Council,37UB,J Tomlinson Ltd,V0974936,06/09/2021,65.26,R & B Transformation 2,Supplies & Services,G57002/D200008,Technical Services Depot,Payments to Contractors External
Ashfield District Council,37UB,J Tomlinson Ltd,V0974937,06/09/2021,65.26,R & B Transformation 2,Supplies & Services,G57002/D200008,Technical Services Depot,Payments to Contractors External
Ashfield District Council,37UB,J Tomlinson Ltd,V0974938,06/09/2021,65.26,R & B Transformation 2,Supplies & Services,G57002/D200008,Technical Services Depot,Payments to Contractors External
Ashfield District Council,37UB,J Tomlinson Ltd,V0974939,06/09/2021,65.26,R & B Transformation 2,Supplies & Services,G57002/D200008,Technical Services Depot,Payments to Contractors External
Ashfield District Council,37UB,J Tomlinson Ltd,V0974940,06/09/2021,65.26,R & B Transformation 2,Supplies & Services,G57002/D200008,Technical Services Depot,Payments to Contractors External
Ashfield District Council,37UB,J Tomlinson Ltd,V0974941,06/09/2021,65.26,R & B Transformation 2,Supplies & Services,G57002/D200008,Technical Services Depot,Payments to Contractors External
Ashfield District Council,37UB,J Tomlinson Ltd,V0974942,06/09/2021,65.26,R & B Transformation 2,Supplies & Services,G57002/D200008,Technical Services Depot,Payments to Contractors External
Ashfield District Council,37UB,J Tomlinson Ltd,V0974943,06/09/2021,65.26,R & B Transformation 2,Supplies & Services,G57002/D200008,Technical Services Depot,Payments to Contractors External
Ashfield District Council,37UB,J Tomlinson Ltd,V0974944,06/09/2021,65.26,R & B Transformation 2,Supplies & Services,G57002/D200008,Technical Services Depot,Payments to Contractors External
Ashfield District Council,37UB,J Tomlinson Ltd,V0974945,06/09/2021,65.26,R & B Transformation 2,Supplies & Services,G57002/D200008,Technical Services Depot,Payments to Contractors External
Ashfield District Council,37UB,J Tomlinson Ltd,V0974946,06/09/2021,65.26,R & B Transformation 2,Supplies & Services,G57002/D200008,Technical Services Depot,Payments to Contractors External
Ashfield District Council,37UB,J Tomlinson Ltd,V0974947,06/09/2021,65.26,R & B Transformation 2,Supplies & Services,G57002/D200008,Technical Services Depot,Payments to Contractors External
Ashfield District Council,37UB,J Tomlinson Ltd,V0974948,06/09/2021,65.26,R & B Transformation 2,Supplies & Services,G57002/D200008,Technical Services Depot,Payments to Contractors External
Ashfield District Council,37UB,J Tomlinson Ltd,V0974949,06/09/2021,65.26,R & B Transformation 2,Supplies & Services,G57002/D200008,Technical Services Depot,Payments to Contractors External
Ashfield District Council,37UB,J Tomlinson Ltd,V0974950,06/09/2021,65.26,R & B Transformation 2,Supplies & Services,G57002/D200008,Technical Services Depot,Payments to Contractors External
Ashfield District Council,37UB,J Tomlinson Ltd,V0974951,06/09/2021,65.26,R & B Transformation 2,Supplies & Services,G57002/D200008,Technical Services Depot,Payments to Contractors External
Ashfield District Council,37UB,J Tomlinson Ltd,V0974952,06/09/2021,65.26,R & B Transformation 2,Supplies & Services,G57002/D200008,Technical Services Depot,Payments to Contractors External
Ashfield District Council,37UB,J Tomlinson Ltd,V0974953,06/09/2021,65.26,R & B Transformation 2,Supplies & Services,G57002/D200008,Technical Services Depot,Payments to Contractors External
Ashfield District Council,37UB,J Tomlinson Ltd,V0974954,06/09/2021,65.26,R & B Transformation 2,Supplies & Services,G57002/D200008,Technical Services Depot,Payments to Contractors External
Ashfield District Council,37UB,J Tomlinson Ltd,V0974955,06/09/2021,65.26,R & B Transformation 2,Supplies & Services,G57002/D200008,Technical Services Depot,Payments to Contractors External
Ashfield District Council,37UB,J Tomlinson Ltd,V0974956,06/09/2021,65.26,R & B Transformation 2,Supplies & Services,G57002/D200008,Technical Services Depot,Payments to Contractors External
Ashfield District Council,37UB,J Tomlinson Ltd,V0974957,06/09/2021,65.26,R & B Transformation 2,Supplies & Services,G57002/D200008,Technical Services Depot,Payments to Contractors External
Ashfield District Council,37UB,J Tomlinson Ltd,V0974958,06/09/2021,65.26,R & B Transformation 2,Supplies & Services,G57002/D200008,Technical Services Depot,Payments to Contractors External
Ashfield District Council,37UB,J Tomlinson Ltd,V0974959,06/09/2021,65.26,R & B Transformation 2,Supplies & Services,G57002/D200008,Technical Services Depot,Payments to Contractors External
Ashfield District Council,37UB,J Tomlinson Ltd,V0974960,06/09/2021,65.26,R & B Transformation 2,Supplies & Services,G57002/D200008,Technical Services Depot,Payments to Contractors External
Ashfield District Council,37UB,J Tomlinson Ltd,V0974961,06/09/2021,65.26,R & B Transformation 2,Supplies & Services,G57002/D200008,Technical Services Depot,Payments to Contractors External
Ashfield District Council,37UB,J Tomlinson Ltd,V0974962,06/09/2021,65.26,R & B Transformation 2,Supplies & Services,G57002/D200008,Technical Services Depot,Payments to Contractors External
Ashfield District Council,37UB,J Tomlinson Ltd,V0974963,06/09/2021,65.26,R & B Transformation 2,Supplies & Services,G57002/D200008,Technical Services Depot,Payments to Contractors External
Ashfield District Council,37UB,J Tomlinson Ltd,V0974964,06/09/2021,65.26,R & B Transformation 2,Supplies & Services,G57002/D200008,Technical Services Depot,Payments to Contractors External
Ashfield District Council,37UB,J Tomlinson Ltd,V0974965,06/09/2021,65.26,R & B Transformation 2,Supplies & Services,G57002/D200008,Technical Services Depot,Payments to Contractors External
Ashfield District Council,37UB,J Tomlinson Ltd,V0974966,06/09/2021,65.26,R & B Transformation 2,Supplies & Services,G57002/D200008,Technical Services Depot,Payments to Contractors External
Ashfield District Council,37UB,J Tomlinson Ltd,V0974967,06/09/2021,65.26,R & B Transformation 2,Supplies & Services,G57002/D200008,Technical Services Depot,Payments to Contractors External
Ashfield District Council,37UB,J Tomlinson Ltd,V0974968,06/09/2021,65.26,R & B Transformation 2,Supplies & Services,G57002/D200008,Technical Services Depot,Payments to Contractors External
Ashfield District Council,37UB,J Tomlinson Ltd,V0974969,06/09/2021,65.26,R & B Transformation 2,Supplies & Services,G57002/D200008,Technical Services Depot,Payments to Contractors External
Ashfield District Council,37UB,J Tomlinson Ltd,V0974970,06/09/2021,65.26,R & B Transformation 2,Supplies & Services,G57002/D200008,Technical Services Depot,Payments to Contractors External
Ashfield District Council,37UB,J Tomlinson Ltd,V0974971,06/09/2021,65.26,R & B Transformation 2,Supplies & Services,G57002/D200008,Technical Services Depot,Payments to Contractors External
Ashfield District Council,37UB,J Tomlinson Ltd,V0974972,06/09/2021,65.26,R & B Transformation 2,Supplies & Services,G57002/D200008,Technical Services Depot,Payments to Contractors External
Ashfield District Council,37UB,J Tomlinson Ltd,V0974973,06/09/2021,65.26,R & B Transformation 2,Supplies & Services,G57002/D200008,Technical Services Depot,Payments to Contractors External
Ashfield District Council,37UB,J Tomlinson Ltd,V0974974,06/09/2021,65.26,R & B Transformation 2,Supplies & Services,G57002/D200008,Technical Services Depot,Payments to Contractors External
Ashfield District Council,37UB,J Tomlinson Ltd,V0974975,06/09/2021,65.26,R & B Transformation 2,Supplies & Services,G57002/D200008,Technical Services Depot,Payments to Contractors External
Ashfield District Council,37UB,J Tomlinson Ltd,V0974976,06/09/2021,65.26,R & B Transformation 2,Supplies & Services,G57002/D200008,Technical Services Depot,Payments to Contractors External
Ashfield District Council,37UB,J Tomlinson Ltd,V0974977,06/09/2021,65.26,R & B Transformation 2,Supplies & Services,G57002/D200008,Technical Services Depot,Payments to Contractors External
Ashfield District Council,37UB,J Tomlinson Ltd,V0974978,06/09/2021,65.26,R & B Transformation 2,Supplies & Services,G57002/D200008,Technical Services Depot,Payments to Contractors External
Ashfield District Council,37UB,J Tomlinson Ltd,V0974979,06/09/2021,65.26,R & B Transformation 2,Supplies & Services,G57002/D200008,Technical Services Depot,Payments to Contractors External
Ashfield District Council,37UB,J Tomlinson Ltd,V0974980,06/09/2021,65.26,R & B Transformation 2,Supplies & Services,G57002/D200008,Technical Services Depot,Payments to Contractors External
Ashfield District Council,37UB,J Tomlinson Ltd,V0974981,06/09/2021,65.26,R & B Transformation 2,Supplies & Services,G57002/D200008,Technical Services Depot,Payments to Contractors External
Ashfield District Council,37UB,J Tomlinson Ltd,V0974982,06/09/2021,65.26,R & B Transformation 2,Supplies & Services,G57002/D200008,Technical Services Depot,Payments to Contractors External
Ashfield District Council,37UB,J Tomlinson Ltd,V0974983,06/09/2021,65.26,R & B Transformation 2,Supplies & Services,G57002/D200008,Technical Services Depot,Payments to Contractors External
Ashfield District Council,37UB,J Tomlinson Ltd,V0974984,06/09/2021,65.26,R & B Transformation 2,Supplies & Services,G57002/D200008,Technical Services Depot,Payments to Contractors External
Ashfield District Council,37UB,J Tomlinson Ltd,V0974985,06/09/2021,65.26,R & B Transformation 2,Supplies & Services,G57002/D200008,Technical Services Depot,Payments to Contractors External
Ashfield District Council,37UB,J Tomlinson Ltd,V0974986,06/09/2021,65.26,R & B Transformation 2,Supplies & Services,G57002/D200008,Technical Services Depot,Payments to Contractors External
Ashfield District Council,37UB,J Tomlinson Ltd,V0974987,06/09/2021,65.26,R & B Transformation 2,Supplies & Services,G57002/D200008,Technical Services Depot,Payments to Contractors External
Ashfield District Council,37UB,J Tomlinson Ltd,V0974988,06/09/2021,65.26,R & B Transformation 2,Supplies & Services,G57002/D200008,Technical Services Depot,Payments to Contractors External
Ashfield District Council,37UB,J Tomlinson Ltd,V0974989,06/09/2021,65.26,R & B Transformation 2,Supplies & Services,G57002/D200008,Technical Services Depot,Payments to Contractors External
Ashfield District Council,37UB,J Tomlinson Ltd,V0974990,06/09/2021,65.26,R & B Transformation 2,Supplies & Services,G57002/D200008,Technical Services Depot,Payments to Contractors External
Ashfield District Council,37UB,J Tomlinson Ltd,V0974991,06/09/2021,65.26,R & B Transformation 2,Supplies & Services,G57002/D200008,Technical Services Depot,Payments to Contractors External
Ashfield District Council,37UB,J Tomlinson Ltd,V0974992,06/09/2021,65.26,R & B Transformation 2,Supplies & Services,G57002/D200008,Technical Services Depot,Payments to Contractors External
Ashfield District Council,37UB,J Tomlinson Ltd,V0974993,06/09/2021,65.26,R & B Transformation 2,Supplies & Services,G57002/D200008,Technical Services Depot,Payments to Contractors External
Ashfield District Council,37UB,J Tomlinson Ltd,V0974994,06/09/2021,65.26,R & B Transformation 2,Supplies & Services,G57002/D200008,Technical Services Depot,Payments to Contractors External
Ashfield District Council,37UB,J Tomlinson Ltd,V0974995,06/09/2021,65.26,R & B Transformation 2,Supplies & Services,G57002/D200008,Technical Services Depot,Payments to Contractors External
Ashfield District Council,37UB,J Tomlinson Ltd,V0974996,06/09/2021,65.26,R & B Transformation 2,Supplies & Services,G57002/D200008,Technical Services Depot,Payments to Contractors External
Ashfield District Council,37UB,J Tomlinson Ltd,V0974997,06/09/2021,65.26,R & B Transformation 2,Supplies & Services,G57002/D200008,Technical Services Depot,Payments to Contractors External
Ashfield District Council,37UB,J Tomlinson Ltd,V0974998,06/09/2021,65.26,R & B Transformation 2,Supplies & Services,G57002/D200008,Technical Services Depot,Payments to Contractors External
Ashfield District Council,37UB,J Tomlinson Ltd,V0974999,06/09/2021,65.26,R & B Transformation 2,Supplies & Services,G57002/D200008,Technical Services Depot,Payments to Contractors External
Ashfield District Council,37UB,J Tomlinson Ltd,V0975000,06/09/2021,65.26,R & B Transformation 2,Supplies & Services,G57002/D200008,Technical Services Depot,Payments to Contractors External
Ashfield District Council,37UB,J Tomlinson Ltd,V0975001,06/09/2021,65.26,R & B Transformation 2,Supplies & Services,G57002/D200008,Technical Services Depot,Payments to Contractors External
Ashfield District Council,37UB,J Tomlinson Ltd,V0975002,06/09/2021,65.26,R & B Transformation 2,Supplies & Services,G57002/D200008,Technical Services Depot,Payments to Contractors External
Ashfield District Council,37UB,J Tomlinson Ltd,V0975003,06/09/2021,65.26,R & B Transformation 2,Supplies & Services,G57002/D200008,Technical Services Depot,Payments to Contractors External
Ashfield District Council,37UB,J Tomlinson Ltd,V0975004,06/09/2021,65.26,R & B Transformation 2,Supplies & Services,G57002/D200008,Technical Services Depot,Payments to Contractors External
Ashfield District Council,37UB,J Tomlinson Ltd,V0975005,06/09/2021,65.26,R & B Transformation 2,Supplies & Services,G57002/D200008,Technical Services Depot,Payments to Contractors External
Ashfield District Council,37UB,J Tomlinson Ltd,V0975006,06/09/2021,65.26,R & B Transformation 2,Supplies & Services,G57002/D200008,Technical Services Depot,Payments to Contractors External
Ashfield District Council,37UB,J Tomlinson Ltd,V0975007,06/09/2021,65.26,R & B Transformation 2,Supplies & Services,G57002/D200008,Technical Services Depot,Payments to Contractors External
Ashfield District Council,37UB,J Tomlinson Ltd,V0975008,06/09/2021,65.26,R & B Transformation 2,Supplies & Services,G57002/D200008,Technical Services Depot,Payments to Contractors External
Ashfield District Council,37UB,J Tomlinson Ltd,V0975009,06/09/2021,65.26,R & B Transformation 2,Supplies & Services,G57002/D200008,Technical Services Depot,Payments to Contractors External
Ashfield District Council,37UB,J Tomlinson Ltd,V0975010,06/09/2021,65.26,R & B Transformation 2,Supplies & Services,G57002/D200008,Technical Services Depot,Payments to Contractors External
Ashfield District Council,37UB,J Tomlinson Ltd,V0975011,06/09/2021,65.26,R & B Transformation 2,Supplies & Services,G57002/D200008,Technical Services Depot,Payments to Contractors External
Ashfield District Council,37UB,J Tomlinson Ltd,V0975012,06/09/2021,65.26,R & B Transformation 2,Supplies & Services,G57002/D200008,Technical Services Depot,Payments to Contractors External
Ashfield District Council,37UB,J Tomlinson Ltd,V0975013,06/09/2021,65.26,R & B Transformation 2,Supplies & Services,G57002/D200008,Technical Services Depot,Payments to Contractors External
Ashfield District Council,37UB,J Tomlinson Ltd,V0975014,06/09/2021,65.26,R & B Transformation 2,Supplies & Services,G57002/D200008,Technical Services Depot,Payments to Contractors External
Ashfield District Council,37UB,J Tomlinson Ltd,V0975015,06/09/2021,65.26,R & B Transformation 2,Supplies & Services,G57002/D200008,Technical Services Depot,Payments to Contractors External
Ashfield District Council,37UB,J Tomlinson Ltd,V0975016,06/09/2021,65.26,R & B Transformation 2,Supplies & Services,G57002/D200008,Technical Services Depot,Payments to Contractors External
Ashfield District Council,37UB,J Tomlinson Ltd,V0975017,06/09/2021,65.26,R & B Transformation 2,Supplies & Services,G57002/D200008,Technical Services Depot,Payments to Contractors External
Ashfield District Council,37UB,J Tomlinson Ltd,V0975018,06/09/2021,65.26,R & B Transformation 2,Supplies & Services,G57002/D200008,Technical Services Depot,Payments to Contractors External
Ashfield District Council,37UB,J Tomlinson Ltd,V0975019,06/09/2021,65.26,R & B Transformation 2,Supplies & Services,G57002/D200008,Technical Services Depot,Payments to Contractors External
Ashfield District Council,37UB,J Tomlinson Ltd,V0975020,06/09/2021,65.26,R & B Transformation 2,Supplies & Services,G57002/D200008,Technical Services Depot,Payments to Contractors External
Ashfield District Council,37UB,J Tomlinson Ltd,V0975021,06/09/2021,65.26,R & B Transformation 2,Supplies & Services,G57002/D200008,Technical Services Depot,Payments to Contractors External
Ashfield District Council,37UB,J Tomlinson Ltd,V0975022,06/09/2021,65.26,R & B Transformation 2,Supplies & Services,G57002/D200008,Technical Services Depot,Payments to Contractors External
Ashfield District Council,37UB,J Tomlinson Ltd,V0975023,06/09/2021,65.26,R & B Transformation 2,Supplies & Services,G57002/D200008,Technical Services Depot,Payments to Contractors External
Ashfield District Council,37UB,J Tomlinson Ltd,V0975024,06/09/2021,65.26,R & B Transformation 2,Supplies & Services,G57002/D200008,Technical Services Depot,Payments to Contractors External
Ashfield District Council,37UB,J Tomlinson Ltd,V0975025,06/09/2021,65.26,R & B Transformation 2,Supplies & Services,G57002/D200008,Technical Services Depot,Payments to Contractors External
Ashfield District Council,37UB,J Tomlinson Ltd,V0975026,06/09/2021,65.26,R & B Transformation 2,Supplies & Services,G57002/D200008,Technical Services Depot,Payments to Contractors External
Ashfield District Council,37UB,J Tomlinson Ltd,V0975027,06/09/2021,65.26,R & B Transformation 2,Supplies & Services,G57002/D200008,Technical Services Depot,Payments to Contractors External
Ashfield District Council,37UB,J Tomlinson Ltd,V0975028,06/09/2021,65.26,R & B Transformation 2,Supplies & Services,G57002/D200008,Technical Services Depot,Payments to Contractors External
Ashfield District Council,37UB,J Tomlinson Ltd,V0975029,06/09/2021,65.26,R & B Transformation 2,Supplies & Services,G57002/D200008,Technical Services Depot,Payments to Contractors External
Ashfield District Council,37UB,J Tomlinson Ltd,V0975030,06/09/2021,65.26,R & B Transformation 2,Supplies & Services,G57002/D200008,Technical Services Depot,Payments to Contractors External
Ashfield District Council,37UB,J Tomlinson Ltd,V0975031,06/09/2021,65.26,R & B Transformation 2,Supplies & Services,G57002/D200008,Technical Services Depot,Payments to Contractors External
Ashfield District Council,37UB,J Tomlinson Ltd,V0975032,06/09/2021,65.26,R & B Transformation 2,Supplies & Services,G57002/D200008,Technical Services Depot,Payments to Contractors External
Ashfield District Council,37UB,J Tomlinson Ltd,V0975033,06/09/2021,65.26,R & B Transformation 2,Supplies & Services,G57002/D200008,Technical Services Depot,Payments to Contractors External
Ashfield District Council,37UB,J Tomlinson Ltd,V0975088,06/09/2021,65.26,R & B Transformation 2,Supplies & Services,G57002/D200008,Technical Services Depot,Payments to Contractors External
Ashfield District Council,37UB,J Tomlinson Ltd,V0975089,06/09/2021,65.26,R & B Transformation 2,Supplies & Services,G57002/D200008,Technical Services Depot,Payments to Contractors External
Ashfield District Council,37UB,J Tomlinson Ltd,V0975090,06/09/2021,65.26,R & B Transformation 2,Supplies & Services,G57002/D200008,Technical Services Depot,Payments to Contractors External
Ashfield District Council,37UB,J Tomlinson Ltd,V0975091,06/09/2021,65.26,R & B Transformation 2,Supplies & Services,G57002/D200008,Technical Services Depot,Payments to Contractors External
Ashfield District Council,37UB,J Tomlinson Ltd,V0975092,06/09/2021,65.26,R & B Transformation 2,Supplies & Services,G57002/D200008,Technical Services Depot,Payments to Contractors External
Ashfield District Council,37UB,J Tomlinson Ltd,V0975093,06/09/2021,65.26,R & B Transformation 2,Supplies & Services,G57002/D200008,Technical Services Depot,Payments to Contractors External
Ashfield District Council,37UB,J Tomlinson Ltd,V0975094,06/09/2021,65.26,R & B Transformation 2,Supplies & Services,G57002/D200008,Technical Services Depot,Payments to Contractors External
Ashfield District Council,37UB,J Tomlinson Ltd,V0975095,06/09/2021,65.26,R & B Transformation 2,Supplies & Services,G57002/D200008,Technical Services Depot,Payments to Contractors External
Ashfield District Council,37UB,J Tomlinson Ltd,V0975096,06/09/2021,65.26,R & B Transformation 2,Supplies & Services,G57002/D200008,Technical Services Depot,Payments to Contractors External
Ashfield District Council,37UB,J Tomlinson Ltd,V0975097,06/09/2021,65.26,R & B Transformation 2,Supplies & Services,G57002/D200008,Technical Services Depot,Payments to Contractors External
Ashfield District Council,37UB,J Tomlinson Ltd,V0975098,06/09/2021,65.26,R & B Transformation 2,Supplies & Services,G57002/D200008,Technical Services Depot,Payments to Contractors External
Ashfield District Council,37UB,J Tomlinson Ltd,V0975099,06/09/2021,65.26,R & B Transformation 2,Supplies & Services,G57002/D200008,Technical Services Depot,Payments to Contractors External
Ashfield District Council,37UB,J Tomlinson Ltd,V0975100,06/09/2021,65.26,R & B Transformation 2,Supplies & Services,G57002/D200008,Technical Services Depot,Payments to Contractors External
Ashfield District Council,37UB,J Tomlinson Ltd,V0975101,06/09/2021,65.26,R & B Transformation 2,Supplies & Services,G57002/D200008,Technical Services Depot,Payments to Contractors External
Ashfield District Council,37UB,J Tomlinson Ltd,V0975102,06/09/2021,65.26,R & B Transformation 2,Supplies & Services,G57002/D200008,Technical Services Depot,Payments to Contractors External
Ashfield District Council,37UB,J Tomlinson Ltd,V0975103,06/09/2021,65.26,R & B Transformation 2,Supplies & Services,G57002/D200008,Technical Services Depot,Payments to Contractors External
Ashfield District Council,37UB,J Tomlinson Ltd,V0975104,06/09/2021,65.26,R & B Transformation 2,Supplies & Services,G57002/D200008,Technical Services Depot,Payments to Contractors External
Ashfield District Council,37UB,J Tomlinson Ltd,V0975105,06/09/2021,65.26,R & B Transformation 2,Supplies & Services,G57002/D200008,Technical Services Depot,Payments to Contractors External
Ashfield District Council,37UB,J Tomlinson Ltd,V0975106,06/09/2021,65.26,R & B Transformation 2,Supplies & Services,G57002/D200008,Technical Services Depot,Payments to Contractors External
Ashfield District Council,37UB,J Tomlinson Ltd,V0975107,06/09/2021,65.26,R & B Transformation 2,Supplies & Services,G57002/D200008,Technical Services Depot,Payments to Contractors External
Ashfield District Council,37UB,J Tomlinson Ltd,V0975108,06/09/2021,65.26,R & B Transformation 2,Supplies & Services,G57002/D200008,Technical Services Depot,Payments to Contractors External
Ashfield District Council,37UB,J Tomlinson Ltd,V0975109,06/09/2021,65.26,R & B Transformation 2,Supplies & Services,G57002/D200008,Technical Services Depot,Payments to Contractors External
Ashfield District Council,37UB,J Tomlinson Ltd,V0975110,06/09/2021,65.26,R & B Transformation 2,Supplies & Services,G57002/D200008,Technical Services Depot,Payments to Contractors External
Ashfield District Council,37UB,J Tomlinson Ltd,V0975111,06/09/2021,65.26,R & B Transformation 2,Supplies & Services,G57002/D200008,Technical Services Depot,Payments to Contractors External
Ashfield District Council,37UB,J Tomlinson Ltd,V0975112,06/09/2021,65.26,R & B Transformation 2,Supplies & Services,G57002/D200008,Technical Services Depot,Payments to Contractors External
Ashfield District Council,37UB,J Tomlinson Ltd,V0975113,06/09/2021,65.26,R & B Transformation 2,Supplies & Services,G57002/D200008,Technical Services Depot,Payments to Contractors External
Ashfield District Council,37UB,J Tomlinson Ltd,V0975114,06/09/2021,65.26,R & B Transformation 2,Supplies & Services,G57002/D200008,Technical Services Depot,Payments to Contractors External
Ashfield District Council,37UB,J Tomlinson Ltd,V0975115,06/09/2021,65.26,R & B Transformation 2,Supplies & Services,G57002/D200008,Technical Services Depot,Payments to Contractors External
Ashfield District Council,37UB,J Tomlinson Ltd,V0975116,06/09/2021,65.26,R & B Transformation 2,Supplies & Services,G57002/D200008,Technical Services Depot,Payments to Contractors External
Ashfield District Council,37UB,J Tomlinson Ltd,V0975117,06/09/2021,65.26,R & B Transformation 2,Supplies & Services,G57002/D200008,Technical Services Depot,Payments to Contractors External
Ashfield District Council,37UB,J Tomlinson Ltd,V0975118,06/09/2021,65.26,R & B Transformation 2,Supplies & Services,G57002/D200008,Technical Services Depot,Payments to Contractors External
Ashfield District Council,37UB,J Tomlinson Ltd,V0975119,06/09/2021,65.26,R & B Transformation 2,Supplies & Services,G57002/D200008,Technical Services Depot,Payments to Contractors External
Ashfield District Council,37UB,J Tomlinson Ltd,V0975120,06/09/2021,65.26,R & B Transformation 2,Supplies & Services,G57002/D200008,Technical Services Depot,Payments to Contractors External
Ashfield District Council,37UB,J Tomlinson Ltd,V0975121,06/09/2021,65.26,R & B Transformation 2,Supplies & Services,G57002/D200008,Technical Services Depot,Payments to Contractors External
Ashfield District Council,37UB,J Tomlinson Ltd,V0975122,06/09/2021,65.26,R & B Transformation 2,Supplies & Services,G57002/D200008,Technical Services Depot,Payments to Contractors External
Ashfield District Council,37UB,J Tomlinson Ltd,V0975123,06/09/2021,65.26,R & B Transformation 2,Supplies & Services,G57002/D200008,Technical Services Depot,Payments to Contractors External
Ashfield District Council,37UB,J Tomlinson Ltd,V0975124,06/09/2021,65.26,R & B Transformation 2,Supplies & Services,G57002/D200008,Technical Services Depot,Payments to Contractors External
Ashfield District Council,37UB,J Tomlinson Ltd,V0975125,06/09/2021,65.26,R & B Transformation 2,Supplies & Services,G57002/D200008,Technical Services Depot,Payments to Contractors External
Ashfield District Council,37UB,J Tomlinson Ltd,V0975126,06/09/2021,65.26,R & B Transformation 2,Supplies & Services,G57002/D200008,Technical Services Depot,Payments to Contractors External
Ashfield District Council,37UB,J Tomlinson Ltd,V0975127,06/09/2021,65.26,R & B Transformation 2,Supplies & Services,G57002/D200008,Technical Services Depot,Payments to Contractors External
Ashfield District Council,37UB,J Tomlinson Ltd,V0975128,06/09/2021,65.26,R & B Transformation 2,Supplies & Services,G57002/D200008,Technical Services Depot,Payments to Contractors External
Ashfield District Council,37UB,J Tomlinson Ltd,V0975129,06/09/2021,65.26,R & B Transformation 2,Supplies & Services,G57002/D200008,Technical Services Depot,Payments to Contractors External
Ashfield District Council,37UB,J Tomlinson Ltd,V0975130,06/09/2021,65.26,R & B Transformation 2,Supplies & Services,G57002/D200008,Technical Services Depot,Payments to Contractors External
Ashfield District Council,37UB,J Tomlinson Ltd,V0975131,06/09/2021,65.26,R & B Transformation 2,Supplies & Services,G57002/D200008,Technical Services Depot,Payments to Contractors External
Ashfield District Council,37UB,J Tomlinson Ltd,V0975132,06/09/2021,60.82,R & B Transformation 2,Supplies & Services,G57002/D200008,Technical Services Depot,Payments to Contractors External
Ashfield District Council,37UB,J Tomlinson Ltd,V0975133,06/09/2021,65.26,R & B Transformation 2,Supplies & Services,G57002/D200008,Technical Services Depot,Payments to Contractors External
Ashfield District Council,37UB,J Tomlinson Ltd,V0975134,06/09/2021,60.82,R & B Transformation 2,Supplies & Services,G57002/D200008,Technical Services Depot,Payments to Contractors External
Ashfield District Council,37UB,J Tomlinson Ltd,V0975135,06/09/2021,65.26,R & B Transformation 2,Supplies & Services,G57002/D200008,Technical Services Depot,Payments to Contractors External
Ashfield District Council,37UB,J Tomlinson Ltd,V0975136,06/09/2021,65.26,R & B Transformation 2,Supplies & Services,G57002/D200008,Technical Services Depot,Payments to Contractors External
Ashfield District Council,37UB,J Tomlinson Ltd,V0975137,06/09/2021,65.26,R & B Transformation 2,Supplies & Services,G57002/D200008,Technical Services Depot,Payments to Contractors External
Ashfield District Council,37UB,J Tomlinson Ltd,V0975138,06/09/2021,65.26,R & B Transformation 2,Supplies & Services,G57002/D200008,Technical Services Depot,Payments to Contractors External
Ashfield District Council,37UB,J Tomlinson Ltd,V0975139,06/09/2021,65.26,R & B Transformation 2,Supplies & Services,G57002/D200008,Technical Services Depot,Payments to Contractors External
Ashfield District Council,37UB,J Tomlinson Ltd,V0975140,06/09/2021,65.26,R & B Transformation 2,Supplies & Services,G57002/D200008,Technical Services Depot,Payments to Contractors External
Ashfield District Council,37UB,J Tomlinson Ltd,V0975141,06/09/2021,65.26,R & B Transformation 2,Supplies & Services,G57002/D200008,Technical Services Depot,Payments to Contractors External
Ashfield District Council,37UB,J Tomlinson Ltd,V0975142,06/09/2021,65.26,R & B Transformation 2,Supplies & Services,G57002/D200008,Technical Services Depot,Payments to Contractors External
Ashfield District Council,37UB,J Tomlinson Ltd,V0975143,06/09/2021,65.26,R & B Transformation 2,Supplies & Services,G57002/D200008,Technical Services Depot,Payments to Contractors External
Ashfield District Council,37UB,J Tomlinson Ltd,V0975144,06/09/2021,65.26,R & B Transformation 2,Supplies & Services,G57002/D200008,Technical Services Depot,Payments to Contractors External
Ashfield District Council,37UB,J Tomlinson Ltd,V0975145,06/09/2021,65.26,R & B Transformation 2,Supplies & Services,G57002/D200008,Technical Services Depot,Payments to Contractors External
Ashfield District Council,37UB,J Tomlinson Ltd,V0975146,06/09/2021,65.26,R & B Transformation 2,Supplies & Services,G57002/D200008,Technical Services Depot,Payments to Contractors External
Ashfield District Council,37UB,J Tomlinson Ltd,V0975147,06/09/2021,65.26,R & B Transformation 2,Supplies & Services,G57002/D200008,Technical Services Depot,Payments to Contractors External
Ashfield District Council,37UB,J Tomlinson Ltd,V0975148,06/09/2021,65.26,R & B Transformation 2,Supplies & Services,G57002/D200008,Technical Services Depot,Payments to Contractors External
Ashfield District Council,37UB,J Tomlinson Ltd,V0975149,06/09/2021,65.26,R & B Transformation 2,Supplies & Services,G57002/D200008,Technical Services Depot,Payments to Contractors External
Ashfield District Council,37UB,J Tomlinson Ltd,V0975150,06/09/2021,65.26,R & B Transformation 2,Supplies & Services,G57002/D200008,Technical Services Depot,Payments to Contractors External
Ashfield District Council,37UB,J Tomlinson Ltd,V0975151,06/09/2021,65.26,R & B Transformation 2,Supplies & Services,G57002/D200008,Technical Services Depot,Payments to Contractors External
Ashfield District Council,37UB,J Tomlinson Ltd,V0975152,06/09/2021,65.26,R & B Transformation 2,Supplies & Services,G57002/D200008,Technical Services Depot,Payments to Contractors External
Ashfield District Council,37UB,J Tomlinson Ltd,V0975153,06/09/2021,65.26,R & B Transformation 2,Supplies & Services,G57002/D200008,Technical Services Depot,Payments to Contractors External
Ashfield District Council,37UB,J Tomlinson Ltd,V0975154,06/09/2021,65.26,R & B Transformation 2,Supplies & Services,G57002/D200008,Technical Services Depot,Payments to Contractors External
Ashfield District Council,37UB,J Tomlinson Ltd,V0975155,06/09/2021,65.26,R & B Transformation 2,Supplies & Services,G57002/D200008,Technical Services Depot,Payments to Contractors External
Ashfield District Council,37UB,J Tomlinson Ltd,V0975156,06/09/2021,65.26,R & B Transformation 2,Supplies & Services,G57002/D200008,Technical Services Depot,Payments to Contractors External
Ashfield District Council,37UB,J Tomlinson Ltd,V0975157,06/09/2021,65.26,R & B Transformation 2,Supplies & Services,G57002/D200008,Technical Services Depot,Payments to Contractors External
Ashfield District Council,37UB,J Tomlinson Ltd,V0975158,06/09/2021,65.26,R & B Transformation 2,Supplies & Services,G57002/D200008,Technical Services Depot,Payments to Contractors External
Ashfield District Council,37UB,J Tomlinson Ltd,V0975159,06/09/2021,65.26,R & B Transformation 2,Supplies & Services,G57002/D200008,Technical Services Depot,Payments to Contractors External
Ashfield District Council,37UB,J Tomlinson Ltd,V0975160,06/09/2021,65.26,R & B Transformation 2,Supplies & Services,G57002/D200008,Technical Services Depot,Payments to Contractors External
Ashfield District Council,37UB,J Tomlinson Ltd,V0975161,06/09/2021,65.26,R & B Transformation 2,Supplies & Services,G57002/D200008,Technical Services Depot,Payments to Contractors External
Ashfield District Council,37UB,J Tomlinson Ltd,V0975162,06/09/2021,65.26,R & B Transformation 2,Supplies & Services,G57002/D200008,Technical Services Depot,Payments to Contractors External
Ashfield District Council,37UB,J Tomlinson Ltd,V0975163,06/09/2021,65.26,R & B Transformation 2,Supplies & Services,G57002/D200008,Technical Services Depot,Payments to Contractors External
Ashfield District Council,37UB,J Tomlinson Ltd,V0975164,06/09/2021,65.26,R & B Transformation 2,Supplies & Services,G57002/D200008,Technical Services Depot,Payments to Contractors External
Ashfield District Council,37UB,J Tomlinson Ltd,V0975165,06/09/2021,65.26,R & B Transformation 2,Supplies & Services,G57002/D200008,Technical Services Depot,Payments to Contractors External
Ashfield District Council,37UB,J Tomlinson Ltd,V0975166,06/09/2021,65.26,R & B Transformation 2,Supplies & Services,G57002/D200008,Technical Services Depot,Payments to Contractors External
Ashfield District Council,37UB,J Tomlinson Ltd,V0975167,06/09/2021,65.26,R & B Transformation 2,Supplies & Services,G57002/D200008,Technical Services Depot,Payments to Contractors External
Ashfield District Council,37UB,J Tomlinson Ltd,V0975168,06/09/2021,65.26,R & B Transformation 2,Supplies & Services,G57002/D200008,Technical Services Depot,Payments to Contractors External
Ashfield District Council,37UB,J Tomlinson Ltd,V0975169,06/09/2021,65.26,R & B Transformation 2,Supplies & Services,G57002/D200008,Technical Services Depot,Payments to Contractors External
Ashfield District Council,37UB,J Tomlinson Ltd,V0975170,06/09/2021,65.26,R & B Transformation 2,Supplies & Services,G57002/D200008,Technical Services Depot,Payments to Contractors External
Ashfield District Council,37UB,J Tomlinson Ltd,V0975171,06/09/2021,65.26,R & B Transformation 2,Supplies & Services,G57002/D200008,Technical Services Depot,Payments to Contractors External
Ashfield District Council,37UB,J Tomlinson Ltd,V0975172,06/09/2021,65.26,R & B Transformation 2,Supplies & Services,G57002/D200008,Technical Services Depot,Payments to Contractors External
Ashfield District Council,37UB,J Tomlinson Ltd,V0975173,06/09/2021,65.26,R & B Transformation 2,Supplies & Services,G57002/D200008,Technical Services Depot,Payments to Contractors External
Ashfield District Council,37UB,J Tomlinson Ltd,V0975174,06/09/2021,65.26,R & B Transformation 2,Supplies & Services,G57002/D200008,Technical Services Depot,Payments to Contractors External
Ashfield District Council,37UB,J Tomlinson Ltd,V0975175,06/09/2021,65.26,R & B Transformation 2,Supplies & Services,G57002/D200008,Technical Services Depot,Payments to Contractors External
Ashfield District Council,37UB,J Tomlinson Ltd,V0975176,06/09/2021,65.26,R & B Transformation 2,Supplies & Services,G57002/D200008,Technical Services Depot,Payments to Contractors External
Ashfield District Council,37UB,J Tomlinson Ltd,V0975177,06/09/2021,65.26,R & B Transformation 2,Supplies & Services,G57002/D200008,Technical Services Depot,Payments to Contractors External
Ashfield District Council,37UB,J Tomlinson Ltd,V0975178,06/09/2021,65.26,R & B Transformation 2,Supplies & Services,G57002/D200008,Technical Services Depot,Payments to Contractors External
Ashfield District Council,37UB,J Tomlinson Ltd,V0975179,06/09/2021,65.26,R & B Transformation 2,Supplies & Services,G57002/D200008,Technical Services Depot,Payments to Contractors External
Ashfield District Council,37UB,J Tomlinson Ltd,V0975180,06/09/2021,65.26,R & B Transformation 2,Supplies & Services,G57002/D200008,Technical Services Depot,Payments to Contractors External
Ashfield District Council,37UB,J Tomlinson Ltd,V0975181,06/09/2021,65.26,R & B Transformation 2,Supplies & Services,G57002/D200008,Technical Services Depot,Payments to Contractors External
Ashfield District Council,37UB,J Tomlinson Ltd,V0975182,06/09/2021,65.26,R & B Transformation 2,Supplies & Services,G57002/D200008,Technical Services Depot,Payments to Contractors External
Ashfield District Council,37UB,J Tomlinson Ltd,V0975183,06/09/2021,65.26,R & B Transformation 2,Supplies & Services,G57002/D200008,Technical Services Depot,Payments to Contractors External
Ashfield District Council,37UB,J Tomlinson Ltd,V0975184,06/09/2021,65.26,R & B Transformation 2,Supplies & Services,G57002/D200008,Technical Services Depot,Payments to Contractors External
Ashfield District Council,37UB,J Tomlinson Ltd,V0975185,06/09/2021,65.26,R & B Transformation 2,Supplies & Services,G57002/D200008,Technical Services Depot,Payments to Contractors External
Ashfield District Council,37UB,J Tomlinson Ltd,V0975186,06/09/2021,65.26,R & B Transformation 2,Supplies & Services,G57002/D200008,Technical Services Depot,Payments to Contractors External
Ashfield District Council,37UB,J Tomlinson Ltd,V0975187,06/09/2021,65.26,R & B Transformation 2,Supplies & Services,G57002/D200008,Technical Services Depot,Payments to Contractors External
Ashfield District Council,37UB,J Tomlinson Ltd,V0975188,06/09/2021,65.26,R & B Transformation 2,Supplies & Services,G57002/D200008,Technical Services Depot,Payments to Contractors External
Ashfield District Council,37UB,J Tomlinson Ltd,V0975189,06/09/2021,65.26,R & B Transformation 2,Supplies & Services,G57002/D200008,Technical Services Depot,Payments to Contractors External
Ashfield District Council,37UB,J Tomlinson Ltd,V0975190,06/09/2021,65.26,R & B Transformation 2,Supplies & Services,G57002/D200008,Technical Services Depot,Payments to Contractors External
Ashfield District Council,37UB,J Tomlinson Ltd,V0975191,06/09/2021,65.26,R & B Transformation 2,Supplies & Services,G57002/D200008,Technical Services Depot,Payments to Contractors External
Ashfield District Council,37UB,J Tomlinson Ltd,V0975192,06/09/2021,65.26,R & B Transformation 2,Supplies & Services,G57002/D200008,Technical Services Depot,Payments to Contractors External
Ashfield District Council,37UB,J Tomlinson Ltd,V0975193,06/09/2021,65.26,R & B Transformation 2,Supplies & Services,G57002/D200008,Technical Services Depot,Payments to Contractors External
Ashfield District Council,37UB,J Tomlinson Ltd,V0975194,06/09/2021,65.26,R & B Transformation 2,Supplies & Services,G57002/D200008,Technical Services Depot,Payments to Contractors External
Ashfield District Council,37UB,J Tomlinson Ltd,V0975195,06/09/2021,65.26,R & B Transformation 2,Supplies & Services,G57002/D200008,Technical Services Depot,Payments to Contractors External
Ashfield District Council,37UB,J Tomlinson Ltd,V0975196,06/09/2021,65.26,R & B Transformation 2,Supplies & Services,G57002/D200008,Technical Services Depot,Payments to Contractors External
Ashfield District Council,37UB,J Tomlinson Ltd,V0975197,06/09/2021,65.26,R & B Transformation 2,Supplies & Services,G57002/D200008,Technical Services Depot,Payments to Contractors External
Ashfield District Council,37UB,J Tomlinson Ltd,V0975198,06/09/2021,65.26,R & B Transformation 2,Supplies & Services,G57002/D200008,Technical Services Depot,Payments to Contractors External
Ashfield District Council,37UB,J Tomlinson Ltd,V0975199,06/09/2021,65.26,R & B Transformation 2,Supplies & Services,G57002/D200008,Technical Services Depot,Payments to Contractors External
Ashfield District Council,37UB,J Tomlinson Ltd,V0975200,06/09/2021,65.26,R & B Transformation 2,Supplies & Services,G57002/D200008,Technical Services Depot,Payments to Contractors External
Ashfield District Council,37UB,J Tomlinson Ltd,V0975201,06/09/2021,65.26,R & B Transformation 2,Supplies & Services,G57002/D200008,Technical Services Depot,Payments to Contractors External
Ashfield District Council,37UB,J Tomlinson Ltd,V0975202,06/09/2021,65.26,R & B Transformation 2,Supplies & Services,G57002/D200008,Technical Services Depot,Payments to Contractors External
Ashfield District Council,37UB,J Tomlinson Ltd,V0975203,06/09/2021,65.26,R & B Transformation 2,Supplies & Services,G57002/D200008,Technical Services Depot,Payments to Contractors External
Ashfield District Council,37UB,J Tomlinson Ltd,V0975204,06/09/2021,65.26,R & B Transformation 2,Supplies & Services,G57002/D200008,Technical Services Depot,Payments to Contractors External
Ashfield District Council,37UB,J Tomlinson Ltd,V0975205,06/09/2021,65.26,R & B Transformation 2,Supplies & Services,G57002/D200008,Technical Services Depot,Payments to Contractors External
Ashfield District Council,37UB,J Tomlinson Ltd,V0975206,06/09/2021,65.26,R & B Transformation 2,Supplies & Services,G57002/D200008,Technical Services Depot,Payments to Contractors External
Ashfield District Council,37UB,J Tomlinson Ltd,V0975207,06/09/2021,65.26,R & B Transformation 2,Supplies & Services,G57002/D200008,Technical Services Depot,Payments to Contractors External
Ashfield District Council,37UB,J Tomlinson Ltd,V0975208,06/09/2021,65.26,R & B Transformation 2,Supplies & Services,G57002/D200008,Technical Services Depot,Payments to Contractors External
Ashfield District Council,37UB,J Tomlinson Ltd,V0975209,06/09/2021,65.26,R & B Transformation 2,Supplies & Services,G57002/D200008,Technical Services Depot,Payments to Contractors External
Ashfield District Council,37UB,J Tomlinson Ltd,V0975210,06/09/2021,65.26,R & B Transformation 2,Supplies & Services,G57002/D200008,Technical Services Depot,Payments to Contractors External
Ashfield District Council,37UB,J Tomlinson Ltd,V0975211,06/09/2021,65.26,R & B Transformation 2,Supplies & Services,G57002/D200008,Technical Services Depot,Payments to Contractors External
Ashfield District Council,37UB,J Tomlinson Ltd,V0975212,06/09/2021,65.26,R & B Transformation 2,Supplies & Services,G57002/D200008,Technical Services Depot,Payments to Contractors External
Ashfield District Council,37UB,J Tomlinson Ltd,V0975213,06/09/2021,65.26,R & B Transformation 2,Supplies & Services,G57002/D200008,Technical Services Depot,Payments to Contractors External
Ashfield District Council,37UB,J Tomlinson Ltd,V0975214,06/09/2021,65.26,R & B Transformation 2,Supplies & Services,G57002/D200008,Technical Services Depot,Payments to Contractors External
Ashfield District Council,37UB,J Tomlinson Ltd,V0975215,06/09/2021,65.26,R & B Transformation 2,Supplies & Services,G57002/D200008,Technical Services Depot,Payments to Contractors External
Ashfield District Council,37UB,J Tomlinson Ltd,V0975216,06/09/2021,65.26,R & B Transformation 2,Supplies & Services,G57002/D200008,Technical Services Depot,Payments to Contractors External
Ashfield District Council,37UB,J Tomlinson Ltd,V0975217,06/09/2021,65.26,R & B Transformation 2,Supplies & Services,G57002/D200008,Technical Services Depot,Payments to Contractors External
Ashfield District Council,37UB,J Tomlinson Ltd,V0975218,06/09/2021,65.26,R & B Transformation 2,Supplies & Services,G57002/D200008,Technical Services Depot,Payments to Contractors External
Ashfield District Council,37UB,J Tomlinson Ltd,V0975219,06/09/2021,65.26,R & B Transformation 2,Supplies & Services,G57002/D200008,Technical Services Depot,Payments to Contractors External
Ashfield District Council,37UB,J Tomlinson Ltd,V0975220,06/09/2021,65.26,R & B Transformation 2,Supplies & Services,G57002/D200008,Technical Services Depot,Payments to Contractors External
Ashfield District Council,37UB,J Tomlinson Ltd,V0975221,06/09/2021,65.26,R & B Transformation 2,Supplies & Services,G57002/D200008,Technical Services Depot,Payments to Contractors External
Ashfield District Council,37UB,J Tomlinson Ltd,V0975222,06/09/2021,65.26,R & B Transformation 2,Supplies & Services,G57002/D200008,Technical Services Depot,Payments to Contractors External
Ashfield District Council,37UB,J Tomlinson Ltd,V0975223,06/09/2021,65.26,R & B Transformation 2,Supplies & Services,G57002/D200008,Technical Services Depot,Payments to Contractors External
Ashfield District Council,37UB,J Tomlinson Ltd,V0975224,06/09/2021,65.26,R & B Transformation 2,Supplies & Services,G57002/D200008,Technical Services Depot,Payments to Contractors External
Ashfield District Council,37UB,J Tomlinson Ltd,V0975225,06/09/2021,65.26,R & B Transformation 2,Supplies & Services,G57002/D200008,Technical Services Depot,Payments to Contractors External
Ashfield District Council,37UB,J Tomlinson Ltd,V0975226,06/09/2021,65.26,R & B Transformation 2,Supplies & Services,G57002/D200008,Technical Services Depot,Payments to Contractors External
Ashfield District Council,37UB,J Tomlinson Ltd,V0975227,06/09/2021,65.26,R & B Transformation 2,Supplies & Services,G57002/D200008,Technical Services Depot,Payments to Contractors External
Ashfield District Council,37UB,J Tomlinson Ltd,V0975228,06/09/2021,65.26,R & B Transformation 2,Supplies & Services,G57002/D200008,Technical Services Depot,Payments to Contractors External
Ashfield District Council,37UB,J Tomlinson Ltd,V0975229,06/09/2021,65.26,R & B Transformation 2,Supplies & Services,G57002/D200008,Technical Services Depot,Payments to Contractors External
Ashfield District Council,37UB,J Tomlinson Ltd,V0975230,06/09/2021,65.26,R & B Transformation 2,Supplies & Services,G57002/D200008,Technical Services Depot,Payments to Contractors External
Ashfield District Council,37UB,J Tomlinson Ltd,V0975231,06/09/2021,65.26,R & B Transformation 2,Supplies & Services,G57002/D200008,Technical Services Depot,Payments to Contractors External
Ashfield District Council,37UB,J Tomlinson Ltd,V0975232,06/09/2021,65.26,R & B Transformation 2,Supplies & Services,G57002/D200008,Technical Services Depot,Payments to Contractors External
Ashfield District Council,37UB,J Tomlinson Ltd,V0975233,06/09/2021,65.26,R & B Transformation 2,Supplies & Services,G57002/D200008,Technical Services Depot,Payments to Contractors External
Ashfield District Council,37UB,J Tomlinson Ltd,V0975234,06/09/2021,65.26,R & B Transformation 2,Supplies & Services,G57002/D200008,Technical Services Depot,Payments to Contractors External
Ashfield District Council,37UB,J Tomlinson Ltd,V0975235,06/09/2021,65.26,R & B Transformation 2,Supplies & Services,G57002/D200008,Technical Services Depot,Payments to Contractors External
Ashfield District Council,37UB,J Tomlinson Ltd,V0975236,06/09/2021,65.26,R & B Transformation 2,Supplies & Services,G57002/D200008,Technical Services Depot,Payments to Contractors External
Ashfield District Council,37UB,J Tomlinson Ltd,V0975237,06/09/2021,65.26,R & B Transformation 2,Supplies & Services,G57002/D200008,Technical Services Depot,Payments to Contractors External
Ashfield District Council,37UB,J Tomlinson Ltd,V0975238,06/09/2021,65.26,R & B Transformation 2,Supplies & Services,G57002/D200008,Technical Services Depot,Payments to Contractors External
Ashfield District Council,37UB,J Tomlinson Ltd,V0975239,06/09/2021,65.26,R & B Transformation 2,Supplies & Services,G57002/D200008,Technical Services Depot,Payments to Contractors External
Ashfield District Council,37UB,J Tomlinson Ltd,V0975240,06/09/2021,65.26,R & B Transformation 2,Supplies & Services,G57002/D200008,Technical Services Depot,Payments to Contractors External
Ashfield District Council,37UB,J Tomlinson Ltd,V0975241,06/09/2021,65.26,R & B Transformation 2,Supplies & Services,G57002/D200008,Technical Services Depot,Payments to Contractors External
Ashfield District Council,37UB,J Tomlinson Ltd,V0975242,06/09/2021,65.26,R & B Transformation 2,Supplies & Services,G57002/D200008,Technical Services Depot,Payments to Contractors External
Ashfield District Council,37UB,J Tomlinson Ltd,V0975243,06/09/2021,65.26,R & B Transformation 2,Supplies & Services,G57002/D200008,Technical Services Depot,Payments to Contractors External
Ashfield District Council,37UB,J Tomlinson Ltd,V0975244,06/09/2021,65.26,R & B Transformation 2,Supplies & Services,G57002/D200008,Technical Services Depot,Payments to Contractors External
Ashfield District Council,37UB,J Tomlinson Ltd,V0975245,06/09/2021,65.26,R & B Transformation 2,Supplies & Services,G57002/D200008,Technical Services Depot,Payments to Contractors External
Ashfield District Council,37UB,J Tomlinson Ltd,V0975246,06/09/2021,65.26,R & B Transformation 2,Supplies & Services,G57002/D200008,Technical Services Depot,Payments to Contractors External
Ashfield District Council,37UB,J Tomlinson Ltd,V0975247,06/09/2021,65.26,R & B Transformation 2,Supplies & Services,G57002/D200008,Technical Services Depot,Payments to Contractors External
Ashfield District Council,37UB,J Tomlinson Ltd,V0975248,06/09/2021,65.26,R & B Transformation 2,Supplies & Services,G57002/D200008,Technical Services Depot,Payments to Contractors External
Ashfield District Council,37UB,J Tomlinson Ltd,V0975249,06/09/2021,65.26,R & B Transformation 2,Supplies & Services,G57002/D200008,Technical Services Depot,Payments to Contractors External
Ashfield District Council,37UB,J Tomlinson Ltd,V0975250,06/09/2021,65.26,R & B Transformation 2,Supplies & Services,G57002/D200008,Technical Services Depot,Payments to Contractors External
Ashfield District Council,37UB,J Tomlinson Ltd,V0975251,06/09/2021,65.26,R & B Transformation 2,Supplies & Services,G57002/D200008,Technical Services Depot,Payments to Contractors External
Ashfield District Council,37UB,J Tomlinson Ltd,V0975252,06/09/2021,65.26,R & B Transformation 2,Supplies & Services,G57002/D200008,Technical Services Depot,Payments to Contractors External
Ashfield District Council,37UB,J Tomlinson Ltd,V0975253,06/09/2021,65.26,R & B Transformation 2,Supplies & Services,G57002/D200008,Technical Services Depot,Payments to Contractors External
Ashfield District Council,37UB,J Tomlinson Ltd,V0975254,06/09/2021,65.26,R & B Transformation 2,Supplies & Services,G57002/D200008,Technical Services Depot,Payments to Contractors External
Ashfield District Council,37UB,J Tomlinson Ltd,V0975255,06/09/2021,65.26,R & B Transformation 2,Supplies & Services,G57002/D200008,Technical Services Depot,Payments to Contractors External
Ashfield District Council,37UB,J Tomlinson Ltd,V0975256,06/09/2021,65.26,R & B Transformation 2,Supplies & Services,G57002/D200008,Technical Services Depot,Payments to Contractors External
Ashfield District Council,37UB,J Tomlinson Ltd,V0975257,06/09/2021,65.26,R & B Transformation 2,Supplies & Services,G57002/D200008,Technical Services Depot,Payments to Contractors External
Ashfield District Council,37UB,J Tomlinson Ltd,V0975258,06/09/2021,65.26,R & B Transformation 2,Supplies & Services,G57002/D200008,Technical Services Depot,Payments to Contractors External
Ashfield District Council,37UB,J Tomlinson Ltd,V0975259,06/09/2021,65.26,R & B Transformation 2,Supplies & Services,G57002/D200008,Technical Services Depot,Payments to Contractors External
Ashfield District Council,37UB,J Tomlinson Ltd,V0975260,06/09/2021,65.26,R & B Transformation 2,Supplies & Services,G57002/D200008,Technical Services Depot,Payments to Contractors External
Ashfield District Council,37UB,J Tomlinson Ltd,V0975261,06/09/2021,65.26,R & B Transformation 2,Supplies & Services,G57002/D200008,Technical Services Depot,Payments to Contractors External
Ashfield District Council,37UB,J Tomlinson Ltd,V0975262,06/09/2021,65.26,R & B Transformation 2,Supplies & Services,G57002/D200008,Technical Services Depot,Payments to Contractors External
Ashfield District Council,37UB,J Tomlinson Ltd,V0975263,06/09/2021,65.26,R & B Transformation 2,Supplies & Services,G57002/D200008,Technical Services Depot,Payments to Contractors External
Ashfield District Council,37UB,J Tomlinson Ltd,V0975264,06/09/2021,65.26,R & B Transformation 2,Supplies & Services,G57002/D200008,Technical Services Depot,Payments to Contractors External
Ashfield District Council,37UB,J Tomlinson Ltd,V0975265,06/09/2021,65.26,R & B Transformation 2,Supplies & Services,G57002/D200008,Technical Services Depot,Payments to Contractors External
Ashfield District Council,37UB,J Tomlinson Ltd,V0975266,06/09/2021,65.26,R & B Transformation 2,Supplies & Services,G57002/D200008,Technical Services Depot,Payments to Contractors External
Ashfield District Council,37UB,J Tomlinson Ltd,V0975267,06/09/2021,65.26,R & B Transformation 2,Supplies & Services,G57002/D200008,Technical Services Depot,Payments to Contractors External
Ashfield District Council,37UB,J Tomlinson Ltd,V0975268,06/09/2021,65.26,R & B Transformation 2,Supplies & Services,G57002/D200008,Technical Services Depot,Payments to Contractors External
Ashfield District Council,37UB,J Tomlinson Ltd,V0975269,06/09/2021,65.26,R & B Transformation 2,Supplies & Services,G57002/D200008,Technical Services Depot,Payments to Contractors External
Ashfield District Council,37UB,J Tomlinson Ltd,V0975270,06/09/2021,65.26,R & B Transformation 2,Supplies & Services,G57002/D200008,Technical Services Depot,Payments to Contractors External
Ashfield District Council,37UB,J Tomlinson Ltd,V0975271,06/09/2021,65.26,R & B Transformation 2,Supplies & Services,G57002/D200008,Technical Services Depot,Payments to Contractors External
Ashfield District Council,37UB,J Tomlinson Ltd,V0975272,06/09/2021,65.26,R & B Transformation 2,Supplies & Services,G57002/D200008,Technical Services Depot,Payments to Contractors External
Ashfield District Council,37UB,J Tomlinson Ltd,V0975273,06/09/2021,65.26,R & B Transformation 2,Supplies & Services,G57002/D200008,Technical Services Depot,Payments to Contractors External
Ashfield District Council,37UB,J Tomlinson Ltd,V0975274,06/09/2021,65.26,R & B Transformation 2,Supplies & Services,G57002/D200008,Technical Services Depot,Payments to Contractors External
Ashfield District Council,37UB,J Tomlinson Ltd,V0975275,06/09/2021,65.26,R & B Transformation 2,Supplies & Services,G57002/D200008,Technical Services Depot,Payments to Contractors External
Ashfield District Council,37UB,J Tomlinson Ltd,V0975276,06/09/2021,65.26,R & B Transformation 2,Supplies & Services,G57002/D200008,Technical Services Depot,Payments to Contractors External
Ashfield District Council,37UB,J Tomlinson Ltd,V0975277,06/09/2021,65.26,R & B Transformation 2,Supplies & Services,G57002/D200008,Technical Services Depot,Payments to Contractors External
Ashfield District Council,37UB,J Tomlinson Ltd,V0975278,06/09/2021,65.26,R & B Transformation 2,Supplies & Services,G57002/D200008,Technical Services Depot,Payments to Contractors External
Ashfield District Council,37UB,J Tomlinson Ltd,V0975279,06/09/2021,65.26,R & B Transformation 2,Supplies & Services,G57002/D200008,Technical Services Depot,Payments to Contractors External
Ashfield District Council,37UB,J Tomlinson Ltd,V0975280,06/09/2021,65.26,R & B Transformation 2,Supplies & Services,G57002/D200008,Technical Services Depot,Payments to Contractors External
Ashfield District Council,37UB,J Tomlinson Ltd,V0975281,06/09/2021,65.26,R & B Transformation 2,Supplies & Services,G57002/D200008,Technical Services Depot,Payments to Contractors External
Ashfield District Council,37UB,J Tomlinson Ltd,V0975282,06/09/2021,65.26,R & B Transformation 2,Supplies & Services,G57002/D200008,Technical Services Depot,Payments to Contractors External
Ashfield District Council,37UB,J Tomlinson Ltd,V0975283,06/09/2021,65.26,R & B Transformation 2,Supplies & Services,G57002/D200008,Technical Services Depot,Payments to Contractors External
Ashfield District Council,37UB,J Tomlinson Ltd,V0975284,06/09/2021,65.26,R & B Transformation 2,Supplies & Services,G57002/D200008,Technical Services Depot,Payments to Contractors External
Ashfield District Council,37UB,J Tomlinson Ltd,V0975285,06/09/2021,65.26,R & B Transformation 2,Supplies & Services,G57002/D200008,Technical Services Depot,Payments to Contractors External
Ashfield District Council,37UB,J Tomlinson Ltd,V0975286,06/09/2021,65.26,R & B Transformation 2,Supplies & Services,G57002/D200008,Technical Services Depot,Payments to Contractors External
Ashfield District Council,37UB,J Tomlinson Ltd,V0975287,06/09/2021,65.26,R & B Transformation 2,Supplies & Services,G57002/D200008,Technical Services Depot,Payments to Contractors External
Ashfield District Council,37UB,J Tomlinson Ltd,V0975288,06/09/2021,65.26,R & B Transformation 2,Supplies & Services,G57002/D200008,Technical Services Depot,Payments to Contractors External
Ashfield District Council,37UB,J Tomlinson Ltd,V0975289,06/09/2021,65.26,R & B Transformation 2,Supplies & Services,G57002/D200008,Technical Services Depot,Payments to Contractors External
Ashfield District Council,37UB,J Tomlinson Ltd,V0975290,06/09/2021,65.26,R & B Transformation 2,Supplies & Services,G57002/D200008,Technical Services Depot,Payments to Contractors External
Ashfield District Council,37UB,J Tomlinson Ltd,V0975291,06/09/2021,65.26,R & B Transformation 2,Supplies & Services,G57002/D200008,Technical Services Depot,Payments to Contractors External
Ashfield District Council,37UB,J Tomlinson Ltd,V0975292,06/09/2021,65.26,R & B Transformation 2,Supplies & Services,G57002/D200008,Technical Services Depot,Payments to Contractors External
Ashfield District Council,37UB,J Tomlinson Ltd,V0975293,06/09/2021,65.26,R & B Transformation 2,Supplies & Services,G57002/D200008,Technical Services Depot,Payments to Contractors External
Ashfield District Council,37UB,J Tomlinson Ltd,V0975294,06/09/2021,65.26,R & B Transformation 2,Supplies & Services,G57002/D200008,Technical Services Depot,Payments to Contractors External
Ashfield District Council,37UB,J Tomlinson Ltd,V0975295,06/09/2021,65.26,R & B Transformation 2,Supplies & Services,G57002/D200008,Technical Services Depot,Payments to Contractors External
Ashfield District Council,37UB,J Tomlinson Ltd,V0975296,06/09/2021,65.26,R & B Transformation 2,Supplies & Services,G57002/D200008,Technical Services Depot,Payments to Contractors External
Ashfield District Council,37UB,J Tomlinson Ltd,V0975297,06/09/2021,65.26,R & B Transformation 2,Supplies & Services,G57002/D200008,Technical Services Depot,Payments to Contractors External
Ashfield District Council,37UB,J Tomlinson Ltd,V0975298,06/09/2021,65.26,R & B Transformation 2,Supplies & Services,G57002/D200008,Technical Services Depot,Payments to Contractors External
Ashfield District Council,37UB,J Tomlinson Ltd,V0975299,06/09/2021,65.26,R & B Transformation 2,Supplies & Services,G57002/D200008,Technical Services Depot,Payments to Contractors External
Ashfield District Council,37UB,J Tomlinson Ltd,V0975300,06/09/2021,65.26,R & B Transformation 2,Supplies & Services,G57002/D200008,Technical Services Depot,Payments to Contractors External
Ashfield District Council,37UB,J Tomlinson Ltd,V0975301,06/09/2021,65.26,R & B Transformation 2,Supplies & Services,G57002/D200008,Technical Services Depot,Payments to Contractors External
Ashfield District Council,37UB,J Tomlinson Ltd,V0975302,06/09/2021,65.26,R & B Transformation 2,Supplies & Services,G57002/D200008,Technical Services Depot,Payments to Contractors External
Ashfield District Council,37UB,J Tomlinson Ltd,V0975303,06/09/2021,65.26,R & B Transformation 2,Supplies & Services,G57002/D200008,Technical Services Depot,Payments to Contractors External
Ashfield District Council,37UB,J Tomlinson Ltd,V0975304,06/09/2021,65.26,R & B Transformation 2,Supplies & Services,G57002/D200008,Technical Services Depot,Payments to Contractors External
Ashfield District Council,37UB,J Tomlinson Ltd,V0975305,06/09/2021,65.26,R & B Transformation 2,Supplies & Services,G57002/D200008,Technical Services Depot,Payments to Contractors External
Ashfield District Council,37UB,J Tomlinson Ltd,V0975306,06/09/2021,65.26,R & B Transformation 2,Supplies & Services,G57002/D200008,Technical Services Depot,Payments to Contractors External
Ashfield District Council,37UB,J Tomlinson Ltd,V0975307,06/09/2021,65.26,R & B Transformation 2,Supplies & Services,G57002/D200008,Technical Services Depot,Payments to Contractors External
Ashfield District Council,37UB,J Tomlinson Ltd,V0975308,06/09/2021,65.26,R & B Transformation 2,Supplies & Services,G57002/D200008,Technical Services Depot,Payments to Contractors External
Ashfield District Council,37UB,J Tomlinson Ltd,V0975309,06/09/2021,65.26,R & B Transformation 2,Supplies & Services,G57002/D200008,Technical Services Depot,Payments to Contractors External
Ashfield District Council,37UB,J Tomlinson Ltd,V0975310,06/09/2021,65.26,R & B Transformation 2,Supplies & Services,G57002/D200008,Technical Services Depot,Payments to Contractors External
Ashfield District Council,37UB,J Tomlinson Ltd,V0975311,06/09/2021,65.26,R & B Transformation 2,Supplies & Services,G57002/D200008,Technical Services Depot,Payments to Contractors External
Ashfield District Council,37UB,J Tomlinson Ltd,V0975312,06/09/2021,65.26,R & B Transformation 2,Supplies & Services,G57002/D200008,Technical Services Depot,Payments to Contractors External
Ashfield District Council,37UB,J Tomlinson Ltd,V0975313,06/09/2021,65.26,R & B Transformation 2,Supplies & Services,G57002/D200008,Technical Services Depot,Payments to Contractors External
Ashfield District Council,37UB,J Tomlinson Ltd,V0975314,06/09/2021,65.26,R & B Transformation 2,Supplies & Services,G57002/D200008,Technical Services Depot,Payments to Contractors External
Ashfield District Council,37UB,J Tomlinson Ltd,V0975315,06/09/2021,65.26,R & B Transformation 2,Supplies & Services,G57002/D200008,Technical Services Depot,Payments to Contractors External
Ashfield District Council,37UB,J Tomlinson Ltd,V0975316,06/09/2021,65.26,R & B Transformation 2,Supplies & Services,G57002/D200008,Technical Services Depot,Payments to Contractors External
Ashfield District Council,37UB,J Tomlinson Ltd,V0975317,06/09/2021,65.26,R & B Transformation 2,Supplies & Services,G57002/D200008,Technical Services Depot,Payments to Contractors External
Ashfield District Council,37UB,J Tomlinson Ltd,V0975318,06/09/2021,65.26,R & B Transformation 2,Supplies & Services,G57002/D200008,Technical Services Depot,Payments to Contractors External
Ashfield District Council,37UB,J Tomlinson Ltd,V0975319,06/09/2021,65.26,R & B Transformation 2,Supplies & Services,G57002/D200008,Technical Services Depot,Payments to Contractors External
Ashfield District Council,37UB,J Tomlinson Ltd,V0975320,06/09/2021,65.26,R & B Transformation 2,Supplies & Services,G57002/D200008,Technical Services Depot,Payments to Contractors External
Ashfield District Council,37UB,J Tomlinson Ltd,V0975321,06/09/2021,65.26,R & B Transformation 2,Supplies & Services,G57002/D200008,Technical Services Depot,Payments to Contractors External
Ashfield District Council,37UB,J Tomlinson Ltd,V0975322,06/09/2021,65.26,R & B Transformation 2,Supplies & Services,G57002/D200008,Technical Services Depot,Payments to Contractors External
Ashfield District Council,37UB,J Tomlinson Ltd,V0975323,06/09/2021,65.26,R & B Transformation 2,Supplies & Services,G57002/D200008,Technical Services Depot,Payments to Contractors External
Ashfield District Council,37UB,J Tomlinson Ltd,V0975324,06/09/2021,65.26,R & B Transformation 2,Supplies & Services,G57002/D200008,Technical Services Depot,Payments to Contractors External
Ashfield District Council,37UB,J Tomlinson Ltd,V0975325,06/09/2021,65.26,R & B Transformation 2,Supplies & Services,G57002/D200008,Technical Services Depot,Payments to Contractors External
Ashfield District Council,37UB,J Tomlinson Ltd,V0975326,06/09/2021,65.26,R & B Transformation 2,Supplies & Services,G57002/D200008,Technical Services Depot,Payments to Contractors External
Ashfield District Council,37UB,J Tomlinson Ltd,V0975327,06/09/2021,65.26,R & B Transformation 2,Supplies & Services,G57002/D200008,Technical Services Depot,Payments to Contractors External
Ashfield District Council,37UB,J Tomlinson Ltd,V0975328,06/09/2021,65.26,R & B Transformation 2,Supplies & Services,G57002/D200008,Technical Services Depot,Payments to Contractors External
Ashfield District Council,37UB,J Tomlinson Ltd,V0975329,06/09/2021,65.26,R & B Transformation 2,Supplies & Services,G57002/D200008,Technical Services Depot,Payments to Contractors External
Ashfield District Council,37UB,J Tomlinson Ltd,V0975330,06/09/2021,65.26,R & B Transformation 2,Supplies & Services,G57002/D200008,Technical Services Depot,Payments to Contractors External
Ashfield District Council,37UB,J Tomlinson Ltd,V0975331,06/09/2021,65.26,R & B Transformation 2,Supplies & Services,G57002/D200008,Technical Services Depot,Payments to Contractors External
Ashfield District Council,37UB,J Tomlinson Ltd,V0975332,06/09/2021,65.26,R & B Transformation 2,Supplies & Services,G57002/D200008,Technical Services Depot,Payments to Contractors External
Ashfield District Council,37UB,J Tomlinson Ltd,V0975333,06/09/2021,65.26,R & B Transformation 2,Supplies & Services,G57002/D200008,Technical Services Depot,Payments to Contractors External
Ashfield District Council,37UB,J Tomlinson Ltd,V0975334,06/09/2021,65.26,R & B Transformation 2,Supplies & Services,G57002/D200008,Technical Services Depot,Payments to Contractors External
Ashfield District Council,37UB,J Tomlinson Ltd,V0975335,06/09/2021,65.26,R & B Transformation 2,Supplies & Services,G57002/D200008,Technical Services Depot,Payments to Contractors External
Ashfield District Council,37UB,J Tomlinson Ltd,V0975336,06/09/2021,65.26,R & B Transformation 2,Supplies & Services,G57002/D200008,Technical Services Depot,Payments to Contractors External
Ashfield District Council,37UB,J Tomlinson Ltd,V0975337,06/09/2021,65.26,R & B Transformation 2,Supplies & Services,G57002/D200008,Technical Services Depot,Payments to Contractors External
Ashfield District Council,37UB,J Tomlinson Ltd,V0975338,06/09/2021,65.26,R & B Transformation 2,Supplies & Services,G57002/D200008,Technical Services Depot,Payments to Contractors External
Ashfield District Council,37UB,J Tomlinson Ltd,V0975339,06/09/2021,65.26,R & B Transformation 2,Supplies & Services,G57002/D200008,Technical Services Depot,Payments to Contractors External
Ashfield District Council,37UB,J Tomlinson Ltd,V0975340,06/09/2021,65.26,R & B Transformation 2,Supplies & Services,G57002/D200008,Technical Services Depot,Payments to Contractors External
Ashfield District Council,37UB,J Tomlinson Ltd,V0975341,06/09/2021,65.26,R & B Transformation 2,Supplies & Services,G57002/D200008,Technical Services Depot,Payments to Contractors External
Ashfield District Council,37UB,J Tomlinson Ltd,V0975342,06/09/2021,65.26,R & B Transformation 2,Supplies & Services,G57002/D200008,Technical Services Depot,Payments to Contractors External
Ashfield District Council,37UB,J Tomlinson Ltd,V0975343,06/09/2021,65.26,R & B Transformation 2,Supplies & Services,G57002/D200008,Technical Services Depot,Payments to Contractors External
Ashfield District Council,37UB,J Tomlinson Ltd,V0975344,06/09/2021,65.26,R & B Transformation 2,Supplies & Services,G57002/D200008,Technical Services Depot,Payments to Contractors External
Ashfield District Council,37UB,J Tomlinson Ltd,V0975345,06/09/2021,65.26,R & B Transformation 2,Supplies & Services,G57002/D200008,Technical Services Depot,Payments to Contractors External
Ashfield District Council,37UB,J Tomlinson Ltd,V0975346,06/09/2021,65.26,R & B Transformation 2,Supplies & Services,G57002/D200008,Technical Services Depot,Payments to Contractors External
Ashfield District Council,37UB,J Tomlinson Ltd,V0975347,06/09/2021,65.26,R & B Transformation 2,Supplies & Services,G57002/D200008,Technical Services Depot,Payments to Contractors External
Ashfield District Council,37UB,J Tomlinson Ltd,V0975348,06/09/2021,65.26,R & B Transformation 2,Supplies & Services,G57002/D200008,Technical Services Depot,Payments to Contractors External
Ashfield District Council,37UB,J Tomlinson Ltd,V0975349,06/09/2021,65.26,R & B Transformation 2,Supplies & Services,G57002/D200008,Technical Services Depot,Payments to Contractors External
Ashfield District Council,37UB,J Tomlinson Ltd,V0975350,06/09/2021,65.26,R & B Transformation 2,Supplies & Services,G57002/D200008,Technical Services Depot,Payments to Contractors External
Ashfield District Council,37UB,J Tomlinson Ltd,V0975351,06/09/2021,65.26,R & B Transformation 2,Supplies & Services,G57002/D200008,Technical Services Depot,Payments to Contractors External
Ashfield District Council,37UB,J Tomlinson Ltd,V0975352,06/09/2021,65.26,R & B Transformation 2,Supplies & Services,G57002/D200008,Technical Services Depot,Payments to Contractors External
Ashfield District Council,37UB,J Tomlinson Ltd,V0975353,06/09/2021,65.26,R & B Transformation 2,Supplies & Services,G57002/D200008,Technical Services Depot,Payments to Contractors External
Ashfield District Council,37UB,J Tomlinson Ltd,V0975354,06/09/2021,65.26,R & B Transformation 2,Supplies & Services,G57002/D200008,Technical Services Depot,Payments to Contractors External
Ashfield District Council,37UB,J Tomlinson Ltd,V0975355,06/09/2021,65.26,R & B Transformation 2,Supplies & Services,G57002/D200008,Technical Services Depot,Payments to Contractors External
Ashfield District Council,37UB,J Tomlinson Ltd,V0975356,06/09/2021,65.26,R & B Transformation 2,Supplies & Services,G57002/D200008,Technical Services Depot,Payments to Contractors External
Ashfield District Council,37UB,J Tomlinson Ltd,V0975357,06/09/2021,65.26,R & B Transformation 2,Supplies & Services,G57002/D200008,Technical Services Depot,Payments to Contractors External
Ashfield District Council,37UB,J Tomlinson Ltd,V0975358,06/09/2021,65.26,R & B Transformation 2,Supplies & Services,G57002/D200008,Technical Services Depot,Payments to Contractors External
Ashfield District Council,37UB,J Tomlinson Ltd,V0975359,06/09/2021,65.26,R & B Transformation 2,Supplies & Services,G57002/D200008,Technical Services Depot,Payments to Contractors External
Ashfield District Council,37UB,J Tomlinson Ltd,V0975360,06/09/2021,65.26,R & B Transformation 2,Supplies & Services,G57002/D200008,Technical Services Depot,Payments to Contractors External
Ashfield District Council,37UB,J Tomlinson Ltd,V0975361,06/09/2021,65.26,R & B Transformation 2,Supplies & Services,G57002/D200008,Technical Services Depot,Payments to Contractors External
Ashfield District Council,37UB,J Tomlinson Ltd,V0975362,06/09/2021,65.26,R & B Transformation 2,Supplies & Services,G57002/D200008,Technical Services Depot,Payments to Contractors External
Ashfield District Council,37UB,J Tomlinson Ltd,V0975363,06/09/2021,65.26,R & B Transformation 2,Supplies & Services,G57002/D200008,Technical Services Depot,Payments to Contractors External
Ashfield District Council,37UB,J Tomlinson Ltd,V0975364,06/09/2021,65.26,R & B Transformation 2,Supplies & Services,G57002/D200008,Technical Services Depot,Payments to Contractors External
Ashfield District Council,37UB,J Tomlinson Ltd,V0975365,06/09/2021,65.26,R & B Transformation 2,Supplies & Services,G57002/D200008,Technical Services Depot,Payments to Contractors External
Ashfield District Council,37UB,J Tomlinson Ltd,V0975366,06/09/2021,65.26,R & B Transformation 2,Supplies & Services,G57002/D200008,Technical Services Depot,Payments to Contractors External
Ashfield District Council,37UB,J Tomlinson Ltd,V0975367,06/09/2021,65.26,R & B Transformation 2,Supplies & Services,G57002/D200008,Technical Services Depot,Payments to Contractors External
Ashfield District Council,37UB,J Tomlinson Ltd,V0975368,06/09/2021,65.26,R & B Transformation 2,Supplies & Services,G57002/D200008,Technical Services Depot,Payments to Contractors External
Ashfield District Council,37UB,J Tomlinson Ltd,V0975369,06/09/2021,65.26,R & B Transformation 2,Supplies & Services,G57002/D200008,Technical Services Depot,Payments to Contractors External
Ashfield District Council,37UB,J Tomlinson Ltd,V0975370,06/09/2021,65.26,R & B Transformation 2,Supplies & Services,G57002/D200008,Technical Services Depot,Payments to Contractors External
Ashfield District Council,37UB,J Tomlinson Ltd,V0975371,06/09/2021,65.26,R & B Transformation 2,Supplies & Services,G57002/D200008,Technical Services Depot,Payments to Contractors External
Ashfield District Council,37UB,J Tomlinson Ltd,V0975372,06/09/2021,65.26,R & B Transformation 2,Supplies & Services,G57002/D200008,Technical Services Depot,Payments to Contractors External
Ashfield District Council,37UB,J Tomlinson Ltd,V0975373,06/09/2021,65.26,R & B Transformation 2,Supplies & Services,G57002/D200008,Technical Services Depot,Payments to Contractors External
Ashfield District Council,37UB,J Tomlinson Ltd,V0975374,06/09/2021,65.26,R & B Transformation 2,Supplies & Services,G57002/D200008,Technical Services Depot,Payments to Contractors External
Ashfield District Council,37UB,J Tomlinson Ltd,V0975375,06/09/2021,65.26,R & B Transformation 2,Supplies & Services,G57002/D200008,Technical Services Depot,Payments to Contractors External
Ashfield District Council,37UB,J Tomlinson Ltd,V0975376,06/09/2021,65.26,R & B Transformation 2,Supplies & Services,G57002/D200008,Technical Services Depot,Payments to Contractors External
Ashfield District Council,37UB,J Tomlinson Ltd,V0975377,06/09/2021,65.26,R & B Transformation 2,Supplies & Services,G57002/D200008,Technical Services Depot,Payments to Contractors External
Ashfield District Council,37UB,J Tomlinson Ltd,V0975378,06/09/2021,65.26,R & B Transformation 2,Supplies & Services,G57002/D200008,Technical Services Depot,Payments to Contractors External
Ashfield District Council,37UB,J Tomlinson Ltd,V0975379,06/09/2021,65.26,R & B Transformation 2,Supplies & Services,G57002/D200008,Technical Services Depot,Payments to Contractors External
Ashfield District Council,37UB,J Tomlinson Ltd,V0975380,06/09/2021,65.26,R & B Transformation 2,Supplies & Services,G57002/D200008,Technical Services Depot,Payments to Contractors External
Ashfield District Council,37UB,J Tomlinson Ltd,V0975381,06/09/2021,65.26,R & B Transformation 2,Supplies & Services,G57002/D200008,Technical Services Depot,Payments to Contractors External
Ashfield District Council,37UB,J Tomlinson Ltd,V0975382,06/09/2021,65.26,R & B Transformation 2,Supplies & Services,G57002/D200008,Technical Services Depot,Payments to Contractors External
Ashfield District Council,37UB,J Tomlinson Ltd,V0975383,06/09/2021,65.26,R & B Transformation 2,Supplies & Services,G57002/D200008,Technical Services Depot,Payments to Contractors External
Ashfield District Council,37UB,J Tomlinson Ltd,V0975384,06/09/2021,65.26,R & B Transformation 2,Supplies & Services,G57002/D200008,Technical Services Depot,Payments to Contractors External
Ashfield District Council,37UB,J Tomlinson Ltd,V0975385,06/09/2021,65.26,R & B Transformation 2,Supplies & Services,G57002/D200008,Technical Services Depot,Payments to Contractors External
Ashfield District Council,37UB,J Tomlinson Ltd,V0975386,06/09/2021,65.26,R & B Transformation 2,Supplies & Services,G57002/D200008,Technical Services Depot,Payments to Contractors External
Ashfield District Council,37UB,J Tomlinson Ltd,V0975387,06/09/2021,65.26,R & B Transformation 2,Supplies & Services,G57002/D200008,Technical Services Depot,Payments to Contractors External
Ashfield District Council,37UB,J Tomlinson Ltd,V0975388,06/09/2021,65.26,R & B Transformation 2,Supplies & Services,G57002/D200008,Technical Services Depot,Payments to Contractors External
Ashfield District Council,37UB,J Tomlinson Ltd,V0975389,06/09/2021,65.26,R & B Transformation 2,Supplies & Services,G57002/D200008,Technical Services Depot,Payments to Contractors External
Ashfield District Council,37UB,J Tomlinson Ltd,V0975390,06/09/2021,65.26,R & B Transformation 2,Supplies & Services,G57002/D200008,Technical Services Depot,Payments to Contractors External
Ashfield District Council,37UB,J Tomlinson Ltd,V0975391,06/09/2021,65.26,R & B Transformation 2,Supplies & Services,G57002/D200008,Technical Services Depot,Payments to Contractors External
Ashfield District Council,37UB,J Tomlinson Ltd,V0975392,06/09/2021,65.26,R & B Transformation 2,Supplies & Services,G57002/D200008,Technical Services Depot,Payments to Contractors External
Ashfield District Council,37UB,J Tomlinson Ltd,V0975393,06/09/2021,65.26,R & B Transformation 2,Supplies & Services,G57002/D200008,Technical Services Depot,Payments to Contractors External
Ashfield District Council,37UB,J Tomlinson Ltd,V0975394,06/09/2021,65.26,R & B Transformation 2,Supplies & Services,G57002/D200008,Technical Services Depot,Payments to Contractors External
Ashfield District Council,37UB,J Tomlinson Ltd,V0975395,06/09/2021,65.26,R & B Transformation 2,Supplies & Services,G57002/D200008,Technical Services Depot,Payments to Contractors External
Ashfield District Council,37UB,J Tomlinson Ltd,V0975396,06/09/2021,65.26,R & B Transformation 2,Supplies & Services,G57002/D200008,Technical Services Depot,Payments to Contractors External
Ashfield District Council,37UB,J Tomlinson Ltd,V0975397,06/09/2021,65.26,R & B Transformation 2,Supplies & Services,G57002/D200008,Technical Services Depot,Payments to Contractors External
Ashfield District Council,37UB,J Tomlinson Ltd,V0975398,06/09/2021,65.26,R & B Transformation 2,Supplies & Services,G57002/D200008,Technical Services Depot,Payments to Contractors External
Ashfield District Council,37UB,J Tomlinson Ltd,V0975399,06/09/2021,65.26,R & B Transformation 2,Supplies & Services,G57002/D200008,Technical Services Depot,Payments to Contractors External
Ashfield District Council,37UB,J Tomlinson Ltd,V0975400,06/09/2021,65.26,R & B Transformation 2,Supplies & Services,G57002/D200008,Technical Services Depot,Payments to Contractors External
Ashfield District Council,37UB,J Tomlinson Ltd,V0975401,06/09/2021,65.26,R & B Transformation 2,Supplies & Services,G57002/D200008,Technical Services Depot,Payments to Contractors External
Ashfield District Council,37UB,J Tomlinson Ltd,V0975402,06/09/2021,65.26,R & B Transformation 2,Supplies & Services,G57002/D200008,Technical Services Depot,Payments to Contractors External
Ashfield District Council,37UB,J Tomlinson Ltd,V0975403,06/09/2021,65.26,R & B Transformation 2,Supplies & Services,G57002/D200008,Technical Services Depot,Payments to Contractors External
Ashfield District Council,37UB,J Tomlinson Ltd,V0975404,06/09/2021,65.26,R & B Transformation 2,Supplies & Services,G57002/D200008,Technical Services Depot,Payments to Contractors External
Ashfield District Council,37UB,J Tomlinson Ltd,V0975405,06/09/2021,65.26,R & B Transformation 2,Supplies & Services,G57002/D200008,Technical Services Depot,Payments to Contractors External
Ashfield District Council,37UB,J Tomlinson Ltd,V0975406,06/09/2021,65.26,R & B Transformation 2,Supplies & Services,G57002/D200008,Technical Services Depot,Payments to Contractors External
Ashfield District Council,37UB,J Tomlinson Ltd,V0975407,06/09/2021,65.26,R & B Transformation 2,Supplies & Services,G57002/D200008,Technical Services Depot,Payments to Contractors External
Ashfield District Council,37UB,J Tomlinson Ltd,V0975408,06/09/2021,65.26,R & B Transformation 2,Supplies & Services,G57002/D200008,Technical Services Depot,Payments to Contractors External
Ashfield District Council,37UB,J Tomlinson Ltd,V0975409,06/09/2021,65.26,R & B Transformation 2,Supplies & Services,G57002/D200008,Technical Services Depot,Payments to Contractors External
Ashfield District Council,37UB,J Tomlinson Ltd,V0975410,06/09/2021,65.26,R & B Transformation 2,Supplies & Services,G57002/D200008,Technical Services Depot,Payments to Contractors External
Ashfield District Council,37UB,J Tomlinson Ltd,V0975411,06/09/2021,65.26,R & B Transformation 2,Supplies & Services,G57002/D200008,Technical Services Depot,Payments to Contractors External
Ashfield District Council,37UB,J Tomlinson Ltd,V0975412,06/09/2021,65.26,R & B Transformation 2,Supplies & Services,G57002/D200008,Technical Services Depot,Payments to Contractors External
Ashfield District Council,37UB,J Tomlinson Ltd,V0975413,06/09/2021,65.26,R & B Transformation 2,Supplies & Services,G57002/D200008,Technical Services Depot,Payments to Contractors External
Ashfield District Council,37UB,J Tomlinson Ltd,V0975414,06/09/2021,65.26,R & B Transformation 2,Supplies & Services,G57002/D200008,Technical Services Depot,Payments to Contractors External
Ashfield District Council,37UB,J Tomlinson Ltd,V0975415,06/09/2021,65.26,R & B Transformation 2,Supplies & Services,G57002/D200008,Technical Services Depot,Payments to Contractors External
Ashfield District Council,37UB,J Tomlinson Ltd,V0975416,06/09/2021,65.26,R & B Transformation 2,Supplies & Services,G57002/D200008,Technical Services Depot,Payments to Contractors External
Ashfield District Council,37UB,J Tomlinson Ltd,V0975417,06/09/2021,65.26,R & B Transformation 2,Supplies & Services,G57002/D200008,Technical Services Depot,Payments to Contractors External
Ashfield District Council,37UB,J Tomlinson Ltd,V0975418,06/09/2021,65.26,R & B Transformation 2,Supplies & Services,G57002/D200008,Technical Services Depot,Payments to Contractors External
Ashfield District Council,37UB,J Tomlinson Ltd,V0975419,06/09/2021,65.26,R & B Transformation 2,Supplies & Services,G57002/D200008,Technical Services Depot,Payments to Contractors External
Ashfield District Council,37UB,J Tomlinson Ltd,V0975420,06/09/2021,65.26,R & B Transformation 2,Supplies & Services,G57002/D200008,Technical Services Depot,Payments to Contractors External
Ashfield District Council,37UB,J Tomlinson Ltd,V0975421,06/09/2021,65.26,R & B Transformation 2,Supplies & Services,G57002/D200008,Technical Services Depot,Payments to Contractors External
Ashfield District Council,37UB,J Tomlinson Ltd,V0975422,06/09/2021,65.26,R & B Transformation 2,Supplies & Services,G57002/D200008,Technical Services Depot,Payments to Contractors External
Ashfield District Council,37UB,J Tomlinson Ltd,V0975423,06/09/2021,65.26,R & B Transformation 2,Supplies & Services,G57002/D200008,Technical Services Depot,Payments to Contractors External
Ashfield District Council,37UB,J Tomlinson Ltd,V0975424,06/09/2021,65.26,R & B Transformation 2,Supplies & Services,G57002/D200008,Technical Services Depot,Payments to Contractors External
Ashfield District Council,37UB,J Tomlinson Ltd,V0975425,06/09/2021,65.26,R & B Transformation 2,Supplies & Services,G57002/D200008,Technical Services Depot,Payments to Contractors External
Ashfield District Council,37UB,J Tomlinson Ltd,V0975426,06/09/2021,65.26,R & B Transformation 2,Supplies & Services,G57002/D200008,Technical Services Depot,Payments to Contractors External
Ashfield District Council,37UB,J Tomlinson Ltd,V0975427,06/09/2021,65.26,R & B Transformation 2,Supplies & Services,G57002/D200008,Technical Services Depot,Payments to Contractors External
Ashfield District Council,37UB,J Tomlinson Ltd,V0975428,06/09/2021,65.26,R & B Transformation 2,Supplies & Services,G57002/D200008,Technical Services Depot,Payments to Contractors External
Ashfield District Council,37UB,J Tomlinson Ltd,V0975429,06/09/2021,65.26,R & B Transformation 2,Supplies & Services,G57002/D200008,Technical Services Depot,Payments to Contractors External
Ashfield District Council,37UB,J Tomlinson Ltd,V0975430,06/09/2021,65.26,R & B Transformation 2,Supplies & Services,G57002/D200008,Technical Services Depot,Payments to Contractors External
Ashfield District Council,37UB,J Tomlinson Ltd,V0975431,06/09/2021,65.26,R & B Transformation 2,Supplies & Services,G57002/D200008,Technical Services Depot,Payments to Contractors External
Ashfield District Council,37UB,J Tomlinson Ltd,V0975432,06/09/2021,65.26,R & B Transformation 2,Supplies & Services,G57002/D200008,Technical Services Depot,Payments to Contractors External
Ashfield District Council,37UB,J Tomlinson Ltd,V0975433,06/09/2021,65.26,R & B Transformation 2,Supplies & Services,G57002/D200008,Technical Services Depot,Payments to Contractors External
Ashfield District Council,37UB,J Tomlinson Ltd,V0975434,06/09/2021,65.26,R & B Transformation 2,Supplies & Services,G57002/D200008,Technical Services Depot,Payments to Contractors External
Ashfield District Council,37UB,J Tomlinson Ltd,V0975435,06/09/2021,65.26,R & B Transformation 2,Supplies & Services,G57002/D200008,Technical Services Depot,Payments to Contractors External
Ashfield District Council,37UB,J Tomlinson Ltd,V0975436,06/09/2021,65.26,R & B Transformation 2,Supplies & Services,G57002/D200008,Technical Services Depot,Payments to Contractors External
Ashfield District Council,37UB,J Tomlinson Ltd,V0975437,06/09/2021,65.26,R & B Transformation 2,Supplies & Services,G57002/D200008,Technical Services Depot,Payments to Contractors External
Ashfield District Council,37UB,J Tomlinson Ltd,V0975438,06/09/2021,65.26,R & B Transformation 2,Supplies & Services,G57002/D200008,Technical Services Depot,Payments to Contractors External
Ashfield District Council,37UB,J Tomlinson Ltd,V0975439,06/09/2021,65.26,R & B Transformation 2,Supplies & Services,G57002/D200008,Technical Services Depot,Payments to Contractors External
Ashfield District Council,37UB,J Tomlinson Ltd,V0975440,06/09/2021,65.26,R & B Transformation 2,Supplies & Services,G57002/D200008,Technical Services Depot,Payments to Contractors External
Ashfield District Council,37UB,J Tomlinson Ltd,V0975441,06/09/2021,65.26,R & B Transformation 2,Supplies & Services,G57002/D200008,Technical Services Depot,Payments to Contractors External
Ashfield District Council,37UB,J Tomlinson Ltd,V0975442,06/09/2021,65.26,R & B Transformation 2,Supplies & Services,G57002/D200008,Technical Services Depot,Payments to Contractors External
Ashfield District Council,37UB,J Tomlinson Ltd,V0975443,06/09/2021,65.26,R & B Transformation 2,Supplies & Services,G57002/D200008,Technical Services Depot,Payments to Contractors External
Ashfield District Council,37UB,J Tomlinson Ltd,V0975444,06/09/2021,65.26,R & B Transformation 2,Supplies & Services,G57002/D200008,Technical Services Depot,Payments to Contractors External
Ashfield District Council,37UB,J Tomlinson Ltd,V0975445,06/09/2021,65.26,R & B Transformation 2,Supplies & Services,G57002/D200008,Technical Services Depot,Payments to Contractors External
